{"text_format":"1","workbook":"xlsx","n_sheets":9,"sheets":["PONDERACIONES","Aplic. SO","Cat. SO","Cat. Res","Art 55","Obligaciones","Glosario","observaciones","calificación"],"not_rendered":{"charts":0,"images":0,"macros":1,"external_links":1,"defined_names":28,"comments":0,"pivot_tables":0},"unopened":[],"bounds":{"document_bytes":16777216,"sheet_cells":100000,"rows_first":2000,"rows_last":500,"rows_between":2000,"halvings":0,"cell_chars":16384,"cell_head_chars":4096},"cells_cut":0,"cells_raw":0,"read":"whole","date_system":"1900"}

{"sheet":"PONDERACIONES","index":0,"n_rows":16,"n_cols":9,"rows_kept":16,"cut":false,"hidden":true,"merged":[[13,1,13,4],[14,1,14,4],[15,1,15,4],[0,0,0,8],[10,1,10,4],[8,1,8,4],[7,1,7,4],[9,1,9,4],[11,1,11,4],[12,1,12,4]]}
["TABLA DE PESOS DEFINITIVA"]
["CASO",1,2,3,4,5,6,7,8]
["IOC",0.66666666666666663,"",0.92307692307692302,0.70588235294117652,1,"","",""]
["IOEG",0.27777777777777779,0.83333333333333326,"",0.29411764705882354,"",1,"",""]
["IOA",5.5555555555555559E-2,0.16666666666666666,7.6923076923076927E-2,"","","",1,""]
[]
[]
["GRUPO","EXPLICACIÓN"]
[1,"Aplican los tres componentes "]
[2,"Aplica solo segundo y tercer componente"]
[3,"Aplica solo primer y tercer componente"]
[4,"Aplica solo primer y segundo componente"]
[5,"Solo aplica primer componente"]
[6,"Solo aplica segundo componente"]
[7,"Solo aplica el tercer componente"]
[8,"Ningún componente aplica"]

{"sheet":"Aplic. SO","index":1,"n_rows":446,"n_cols":50,"rows_kept":446,"cut":false,"hidden":true,"merged":[]}
["Volver al índice","I","II","III","IV","V","VI","VII","VIII","IX","X","XI","XII","XIII","XIV","XV","XVI","XVII","XVIII","XIX","XX","XXI","XXII","XXIII","XXIV","XXV","XXVI","XXVII","XXVIII","XXIX","XXX","XXXI","XXXII","XXXIII","XXXIV","XXXV","XXXVI","XXXVII","XXXVIII","XXXIX","XL","XLI","XLII","XLIII","XLIV","XLV","XLVI","XLVII","XLVIII","texto"]
["Camino Democrático","","","","","","","","","","","","","","",", XV","","","","","","",", XXII","","","",", XXVI","","","","","","","","","",", XXXVI","",", XXXVIII","",", XL","","","","","",", XLVI",", XLVII",""]
["Cámara de Diputados","","","","","","","","","","","","","","",", XV","","","","","","",", XXII","","","","","","","","","","","","","","","",", XXXVIII","",", XL","","","","","","",", XLVII",""]
["Senado de la República","","","","","","","","","","","","","","",", XV","","","","","","",", XXII","","",", XXV","","","","","","","","","","",", XXXVI","",", XXXVIII","",", XL","","","","","","",", XLVII",""]
["Secretaría de Gobernación","","","","","","","","","","","","","","","","","","","","","","","","","","","","","","","","","","","","","","","","","","","","","","","",""]
["Secretaría de Relaciones Exteriores","","","","","","","","","","","","","","","","","","","","","","","","","","","","","","","","","","","","","","","","","","","","","","",", XLVII",""]
["Agencia de Investigación Criminal (*)","","","","","","","","","","","","","","","","","","","","","","","","","","","","","","","","","","","","","","","","","","","","","","",", XLVII",""]
["Centro de Evaluación y Control de Confianza (*)","","","","","","","","","","","","","","","","","","","","","","","","","","","","","","","","","","","","","","","","","","","","","","",", XLVII",""]
["Centro Federal de Protección a Personas (*)","","","","","","","","","","","","","","","","","","","","","","","","","","","","","","","","","","","","","","","","","","","","","","",", XLVII",""]
["Centro Nacional de Planeación, Análisis e Información para el Combate a la Delincuencia (*)","","","","","","","","","","","","","","","","","","","","","","","","","","","","","","","","","","","","","","","","","","","","","","",", XLVII",""]
["Instituto de Formación Ministerial, Policial y Pericial (*)","","","","","","","","","","","","","","","","","","","","","","","","","","","","","","","","","","","","","","","","","","","","","","",", XLVII",""]
["Órgano Administrativo Desconcentrado Especializado en Mecanismos Alternativos de Solución de Controversias en Materia Penal (*)","","","","","","","","","","","","","","","","","","","","","","","","","","","","","","","","","","","","","","","","","","","","","","",", XLVII",""]
["Secretaría de Hacienda y Crédito Público","","","","","","","","","","","","","","","","","","","","","","","","","","","","","","","","","","","","","","","","","","","","","","",", XLVII",""]
["Agencia de Servicios a la Comercialización y Desarrollo de Mercados Agropecuarios","","","","","","","","","","","","","","","","","","","","","","","","","","","","","","","","","","","","","","","","","","","","","","",", XLVII",""]
["Colegio Superior Agropecuario del Estado de Guerrero","","","","","","","","","","","","","","","","","","","","","","","","","","","","","","","","","","","","","","","","","","","","","","",", XLVII",""]
["Comisión Nacional de Acuacultura y Pesca","","","","","","","","","","","","","","","","","","","","","","","","","","","","","","","","","","","","","","","","","","","","","","",", XLVII",""]
["Servicio de Información Agroalimentaria y Pesquera","","","","","","","","","","","","","","","","","","","","","","","","","","","","","","","","","","","",", XXXVI","","","","","","","","","","",", XLVII",""]
["Servicio Nacional de Inspección y Certificación de Semillas","","","","","","","","","","","","","","","","","","","","","","","","","","","","","","","","","","","",", XXXVI","","","","","","","","","","",", XLVII",""]
["Servicio Nacional de Sanidad, Inocuidad y Calidad Agroalimentaria","","","","","","","","","","","","","","","","","","","","","","","","","","","","","","","","","","","","","","","","","","","","","","",", XLVII",""]
["Secretaría de la Defensa Nacional","","","","","","","","","","","","","",", XIV","",", XVI","","","","","","","","","","","","","","","","","","","","","","","","","","","","","",", XLVI","",""]
["Instituto Mexicano del Transporte (*)","","","","","","","","","","","","","","","","","","","","","","","","","","","","","","","","","","","",", XXXVI","","","","","","","","","","",", XLVII",""]
["Servicios a la Navegación en el Espacio Aéreo Mexicano","","","","","","","","","","","","","","","","","","","","","","","","","","","","","","","","","","","","","","","","","","","","","","",", XLVII",""]
["Secretaría de Agricultura, Ganadería, Desarrollo Rural, Pesca y Alimentación","","","","","","","","","","","","","","","","","","","","","","","","","","","","","","","","","","","","","","","","","","","","","","",", XLVII",""]
["Instituto Nacional de Antropología e Historia","","","","","","","","","","","","","","","","","","","","","","","","","","","","","","","","","","","","","","","","","","","","","","",", XLVII",""]
["Instituto Nacional de Bellas Artes y Literatura","","","","","","","","","","","","","","","","","","","","","","","","","","","","","","","","","","","","","","","","","","","","","","",", XLVII",""]
["Instituto Nacional del Derecho de Autor (*)","","","","","","","","","","","","","","","","","","","","","","","","","","","","","","","","","","","","","","","","","","","","","",", XLVI",", XLVII",""]
["Radio Educación (*)","","","","","","","","","","","","","","","","","","","","","","","","","","","","","","","","","","","","","","","","","","","","","","",", XLVII",""]
["Instituto Nacional de Estudios Históricos de las Revoluciones de México","","","","","","","","","","","","","","","","","","","","","","","","","","","","","","","","","","","","","","","","","","","","","","",", XLVII",""]
["Secretaría de Comunicaciones y Transportes","","","","","","","","","","","","","","","","","","","","","","","","","","","","","","","","","","","","","","","","","","","","","","","",""]
["Registro Agrario Nacional","","","","","","","","","","","","","","","","","","","","","","","","","","","","","","","","","","","",", XXXVI","","","","","","","","","",", XLVI",", XLVII",""]
["Secretaría de Economía","","","","","","","","","","","","","","","","","","","","","","","","","","","","","","","","","","","","","","","","","","","","","","",", XLVII",""]
["Coordinación Nacional de PROSPERA Programa de Inclusión Social","","","","","","","","","","","","","","","","","","","","","","","","","","","","","","","","","","","","","","","","","","","","","","",", XLVII",""]
["Instituto Nacional de Desarrollo Social","","","","","","","","","","","","","","","","","","","","","","","","","","","","","","","","","","","","","","","","","","","","","",", XLVI",", XLVII",""]
["Instituto Nacional de la Economía Social","","","","","","","","","","","","","","","","","","","","","","","","","","","","","","","","","","","","","","","","","","","","","","",", XLVII",""]
["Secretaría de Educación Pública","","","","","","","","","","","","","","","","","","","","","","","","","","","","","","","","","","","","","","","","","","","","","","",", XLVII",""]
["Comisión Federal de Mejora Regulatoria","","","","","","","","","","","","","","","","","","","","","","","","","","","","","","","","","","","",", XXXVI",", XXXVII","","","","","","","","","",", XLVII",""]
["Instituto Nacional del Emprendedor","","","","","","","","","","","","","","","","","","","","","","","","","","","","","","","","","","","","","","","","","","","","","","",", XLVII",""]
["Secretaría de Salud","","","","","","","","","","","","","","","","","","","","","","","","","","","","","","","","","","","","","","","","","","","","","","",", XLVII",""]
["Administración Federal de Servicios Educativos en el Distrito Federal","","","","","","","","","","","","","","","","","","","","","","","","","","","","","","","","","","","","","","","","","","","","","","",", XLVII",""]
["Comisión de Apelación y Arbitraje del Deporte (*)","","","","","","","","","","","","","","","","","","","","","","","","","","","","","","","","","","","","","","","","","","","","","","",", XLVII",""]
["Coordinación General @prende.mx (*)","","","","","","","","","","","","","","","","","","","","","","","","","","","","","","","","","","","","","","","","","","","","","","",", XLVII",""]
["Coordinación Nacional del Servicio Profesional Docente (*)","","","","","","","","","","","","","","","","","","","","","","","","","","","","","","","","","","","","","","","","","","","","","",", XLVI",", XLVII",""]
["Instituto Politécnico Nacional","","","","","","","","","","","","","","","","","","","","","","","","","","","","","","","","","","","","","","","","","","","","","","",", XLVII",""]
["Tecnológico Nacional de México (*)","","","","","","","","","","","","","","","","","","","","","","","","","","","","","","","","","","","","","","","","","","","","","",", XLVI",", XLVII",""]
["Universidad Abierta y a Distancia de México (*)","","","","","","","","","","","","","","","","","","","","","","","","","","","","","","","","","","","",", XXXVI","","","","","","","","","","",", XLVII",""]
["Universidad Pedagógica Nacional","","","","","","","","","","","","","","","","","","","","","","","","","","","","","","","","","","","","","","","","","","","","","","",", XLVII",""]
["XE-IPN Canal 11 (*)","","","","","","","","","","","","","","","","","","","","","","","","","","","","","","","","","","","","","","","","","","","","","","",", XLVII",""]
["Secretaría de Marina","","","","","","","","","","","","","",", XIV","","","","","","","","","","","","","","","","","","","","","","","","","","","","","","","","","",""]
["Comisión Nacional de Seguridad Nuclear y Salvaguardias","","","","","","","","","","","","","","","","","","","","","","","","","","","","","","","","","","","","","","","","","","","","","","",", XLVII",""]
["Comisión Nacional para el Uso Eficiente de la Energía","","","","","","","","","","","","","","","","","","","","","","","","","","","","","","","","","","","","","","","","","","","","","",", XLVI",", XLVII",""]
["Secretaría del Trabajo y Previsión Social","","","","","","","","","","","","","","","","","","","","","","","","","","","","","","","","","","","","","","","","","","","","","","",", XLVII",""]
["Centro de Investigación y Seguridad Nacional","","","","","","","","","","","","","","","","","","","","","","","","","","","","","","","","","","","",", XXXVI","","","","","","","","","",", XLVI","",""]
["Centro de Producción de Programas Informativos y Especiales (*)","","","","","","","","","","","","","","","","","","","","","","","","","","","","","","","","","","","",", XXXVI","","","","","","","","","",", XLVI",", XLVII",""]
["Centro Nacional de Prevención de Desastres","","","","","","","","","","","","","","","","","","","","","","","","","","","","","","","","","","","",", XXXVI","","","","","","","","","",", XLVI",", XLVII",""]
["Comisión Nacional para Prevenir y Erradicar la Violencia Contra las Mujeres (*)","","","","","","","","","","","","","","","","","","","","","","","","","","","","","","","","","","","","","","","","","","","","","","",", XLVII",""]
["Coordinación General de la Comisión Mexicana de Ayuda a Refugiados","","","","","","","","","","","","","","","","","","","","","","","","","","","","","","","","","","","","","","","","","","","","","",", XLVI",", XLVII",""]
["Coordinación Nacional Antisecuestro (*)","","","","","","","","","","","","","","","","","","","","","","","","","","","","","","","","","","","",", XXXVI","","","","","","","","","",", XLVI",", XLVII",""]
["Coordinación para la Atención Integral de la Migración en la Frontera Sur (*)","","","","","","","","","","","","","","","","","","","","","","","","","","","","","","","","","","","","","","","","","","","","","",", XLVI",", XLVII",""]
["Instituto Nacional de Migración","","","","","","","","","","","","","","","","","","","","","","","","","","","","","","","","","","","","","","","","","","","","","","",", XLVII",""]
["Instituto Nacional para el Federalismo y el Desarrollo Municipal (*)","","","","","","","","","","","","","","","","","","","","","","","","","","","","","","","","","","","","","","","","","","","","","","",", XLVII",""]
["Policía Federal","","","","","","","","","","","","","","","","","","","","","","","","","","","","","","","","","","","","","","","","","","","","","","","",""]
["Prevención y Readaptación Social","","","","","","","","","","","","","","","","","","","","","","","","","","","","","","","","","","","","","","","","","","","","","",", XLVI",", XLVII",""]
["Secretaría Ejecutiva del Sistema Nacional para la Protección Integral de Niñas, Niños y Adolescentes (*)","","","","","","","","","","","","","","","","","","","","","","","","","","","","","","","","","","","",", XXXVI","","","","","","","","","","",", XLVII",""]
["Secretaría General del Consejo Nacional de Población","","","","","","","","","","","","","","","","","","","","","","","","","","","","","","","","","","","","","","","","","","","","","","",", XLVII",""]
["Secretaría Técnica de la Comisión Calificadora de Publicaciones y Revistas Ilustradas (*)","","","","","","","","","","","","","","","","","","","","","","","","","","","","","","","","","","","","","","","","","","","","","","",", XLVII",""]
["Secretaría Técnica del Consejo de Coordinación para la Implementación del Sistema de Justicia Penal (*)","","","","","","","","","","","","","","","","","","","","","","","","","","","","","","","","","","","",", XXXVI","","","","","","","","","",", XLVI",", XLVII",""]
["Secretariado Ejecutivo del Sistema Nacional de Seguridad Pública","","","","","","","","","","","","","","","","","","","","","","","","","","","","","","","","","","","","","","","","","","","","","",", XLVI",", XLVII",""]
["Servicio de Protección Federal","","","","","","","","","","","","","","","","","","","","","","","","","","","","","","","","","","","","","","","","","","","","","",", XLVI",", XLVII",""]
["Secretaría de Desarrollo Agrario, Territorial y Urbano","","","","","","","","","","","","","","","","","","","","","","","","","","","","","","","","","","","","","","","","","","","","","","",", XLVII",""]
["Comisión Nacional Bancaria y de Valores","","","","","","","","","","","","","","","","","","","","","","","","","","","","","","","","","","","","","","","","","","","","","",", XLVI",", XLVII",""]
["Comisión Nacional de Seguros y Fianzas","","","","","","","","","","","","","","","","","","","","","","","","","","","","","","","","","","","","","","","","","","","","","","",", XLVII",""]
["Comisión Nacional del Sistema de Ahorro para el Retiro","","","","","","","","","","","","","","","","","","","","","","","","","","","","","","","","","","","","","","","","","","","","","",", XLVI",", XLVII",""]
["Servicio de Administración Tributaria","","","","","","","","","","","","","","","","","","","","","","","","","","","","","","","","","","","","","","","","","","","","","",", XLVI",", XLVII",""]
["Secretaría de Medio Ambiente y Recursos Naturales","","","","","","","","","","","","","","","","","","","","","","","","","","","","","","","","","","","","","","","","","","","","","","",", XLVII",""]
["Procuraduría General de la República","","","","","","","","","","","","","","","","","","","","","","","","","","","","","","","","","","","","","","","","","","","","","","","",""]
["Instituto de Administración y Avalúos de Bienes Nacionales (*)","","","","","","","","","","","","","","","","","","","","","","","","","","","","","","","","","","","","","","","","","","","","","","",", XLVII",""]
["Secretaría de Energía","","","","","","","","","","","","","","","","","","","","","","","","","","","","","","","","","","","","","","","","","","","","","","",", XLVII",""]
["Secretaría de Desarrollo Social","","","","","","","","","","","","","","","","","","","","","","","","","","","","","","","","","","","","","","","","","","","","","","",", XLVII",""]
["Agencia Nacional de Seguridad Industrial y de Protección al Medio Ambiente del Sector Hidrocarburos","","","","","","","","","","","","","","","","","","","","","","","","","","","","","","","","","","","","","","","","","","","","","","",", XLVII",""]
["Comisión Nacional de Áreas Naturales Protegidas","","","","","","","","","","","","","","","","","","","","","","","","","","","","","","","","","","","",", XXXVI","","","","","","","","","",", XLVI",", XLVII",""]
["Comisión Nacional del Agua","","","","","","","","","","","","","","","","","","","","","","","","","","","","","","","","","","","","","","","","","","","","","","",", XLVII",""]
["Procuraduría Federal de Protección al Ambiente","","","","","","","","","","","","","","","","","","","","","","","","","","","","","","","","","","","","","","","","","","","","","",", XLVI",", XLVII",""]
["Secretaría de Turismo","","","","","","","","","","","","","","","","","","","","","","","","","","","","","","","","","","","","","","","","","","","","","","",", XLVII",""]
["Agencia Mexicana de Cooperación Internacional para el Desarrollo (*)","","","","","","","","","","","","","","","","","","","","","","","","","","","","","","","","","","","","","","","","","","","","","","",", XLVII",""]
["Instituto de los Mexicanos en el Exterior (*)","","","","","","","","","","","","","","","","","","","","","","","","","","","","","","","","","","","","","","","","","","","","","","",", XLVII",""]
["Instituto Matías Romero (*)","","","","","","","","","","","","","","","","","","","","","","","","","","","","","","","","","","","","","","","","","","","","","",", XLVI",", XLVII",""]
["Sección Mexicana de la Comisión Internacional de Límites y Aguas entre México y Estados Unidos (*)","","","","","","","","","","","","","","","","","","","","","","","","","","","","","","","","","","","","","","","","","","","","","","",", XLVII",""]
["Secciones Mexicanas de las Comisiones Internacionales de Límites y Aguas entre México y Guatemala, y entre México y Belice (*)","","","","","","","","","","","","","","","","","","","","","","","","","","","","","","","","","","","",", XXXVI","","","","","","","","","",", XLVI",", XLVII",""]
["Secretaría de la Función Pública","","","","","","","","","","","","","","","","","","","","","","","","","","","","","","","","","","","","","","","","","","","","","","",", XLVII",""]
["Administración del Patrimonio de la Beneficencia Pública (*)","","","","","","","","","","","","","","","","","","","","","","","","","","","","","","","","","","","","","","","","","","","","","",", XLVI",", XLVII",""]
["Centro Nacional de Equidad de Género y Salud Reproductiva (*)","","","","","","","","","","","","","","","","","","","","","","","","","","","","","","","","","","","",", XXXVI","","","","","","","","","",", XLVI",", XLVII",""]
["Centro Nacional de Excelencia Tecnológica en Salud (*)","","","","","","","","","","","","","","","","","","","","","","","","","","","","","","","","","","","","","","","","","","","","","","",", XLVII",""]
["Centro Nacional de la Transfusión Sanguínea (*)","","","","","","","","","","","","","","","","","","","","","","","","","","","","","","","","","","","","","","","","","","","","","",", XLVI",", XLVII",""]
["Centro Nacional de Programas Preventivos y Control de Enfermedades (*)","","","","","","","","","","","","","","","","","","","","","","","","","","","","","","","","","","","","","","","","","","","","","","",", XLVII",""]
["Centro Nacional de Trasplantes (*)","","","","","","","","","","","","","","","","","","","","","","","","","","","","","","","","","","","",", XXXVI","","","","","","","","","","",", XLVII",""]
["Centro Nacional para la Prevención y el Control de las Adicciones (*)","","","","","","","","","","","","","","","","","","","","","","","","","","","","","","","","","","","",", XXXVI","","","","","","","","","","",", XLVII",""]
["Centro Nacional para la Prevención y el Control del VIH/SIDA (*)","","","","","","","","","","","","","","","","","","","","","","","","","","","","","","","","","","","",", XXXVI","","","","","","","","","",", XLVI",", XLVII",""]
["Centro Nacional para la Salud de la Infancia y la Adolescencia (*)","","","","","","","","","","","","","","","","","","","","","","","","","","","","","","","","","","","",", XXXVI","","","","","","","","","",", XLVI",", XLVII",""]
["Comisión Federal para la Protección contra Riesgos Sanitarios","","","","","","","","","","","","","","","","","","","","","","","","","","","","","","","","","","","","","","","","","","","","","","",", XLVII",""]
["Comisión Nacional de Arbitraje Médico","","","","","","","","","","","","","","","","","","","","","","","","","","","","","","","","","","","","","","","","","","","","","","",", XLVII",""]
["Comisión Nacional de Bioética (*)","","","","","","","","","","","","","","","","","","","","","","","","","","","","","","","","","","","","","","","","","","","","","","",", XLVII",""]
["Comisión Nacional de Protección Social en Salud","","","","","","","","","","","","","","","","","","","","","","","","","","","","","","","","","","","","","","","","","","","","","","",", XLVII",""]
["Servicios de Atención Psiquiátrica (*)","","","","","","","","","","","","","","","","","","","","","","","","","","","","","","","","","","","",", XXXVI","","","","","","","","","","",", XLVII",""]
["Oficina de la Presidencia de la República","","","","","","","","","","","","","",", XIV","","","","","","","","","","","","","","","","","","","","","","","","","","","","","","","","",", XLVII",""]
["Corporación de Servicios al Turista Ángeles Verdes (*)","","","","","","","","","","","","","","","","","","","","","","","","","","","","","","","","","","","","","","","","","","","","","","",", XLVII",""]
["Instituto de Competitividad Turística (*)","","","","","","","","","","","","","","","","","","","","","","","","","","","","","","","","","","","","","","","","","","","","","","",", XLVII",""]
["Consejería Jurídica del Ejecutivo Federal","","","","","","","","","","","","","","","","","","","","","","","","","","","","","","","","","","","","","","","","","","","","","","",", XLVII",""]
["Comité Nacional Mixto de Protección al Salario","","","","","","","","","","","","","","","","","","","","","","","","","","","","","","","","","","","","","","","","","","","","","","",", XLVII",""]
["Secretaría de Cultura","","","","","","","","","","","","","","","","","","","","","","","","","","","","","","","","","","","","","","","","","","","","","","",", XLVII",""]
["Procuraduría Federal de la Defensa del Trabajo","","","","","","","","","","","","","","",", XV","","","","","","",", XXII","","","",", XXVI","","","","","","","","","","","","","","","","",", XLIII","","","",", XLVII",""]
["Junta Federal de Conciliación y Arbitraje","","","","","","","","","","","","","","",", XV","","","","","","",", XXII","","","",", XXVI","","","","","","","","","","","","","","","","","","","",", XLVI",", XLVII",""]
["Comisión Nacional de Hidrocarburos","","","","","","","","","","","","","","","","","","","","","","","","","","","","","","","","","","","","","","","","","","","","","","",", XLVII",""]
["Comisión Reguladora de Energía","","","","","","","","","","","","","","","","","","","","","","","","","","","","","","","","","","","","","","","","","","","","","","",", XLVII",""]
["Comisión Nacional de los Salarios Mínimos","","","","","","","","","","","","","","","","","","","","","","","","","","","","","","","","","","","","","","","","","","","","","","",", XLVII",""]
["Comisión Nacional para el Desarrollo de los Pueblos Indígenas","","","","","","","","","","","","","","","","","","","","","","","","","","","","","","","","","","","","","","","","","","","","","","",", XLVII",""]
["Procuraduría de la Defensa del Contribuyente","","","","","","","","","","","","","","","","","","","","","","","","","","","","","","","","","","","","","","","","","","","","","","",", XLVII",""]
["Comisión Ejecutiva de Atención a Víctimas","","","","","","","","","","","","","","","","","","","","","","","","","","","","","","","","","","","","","","","","","","","","","","",", XLVII",""]
["Consejo Nacional para el Desarrollo y la Inclusión de las Personas con Discapacidad","","","","","","","","","","","","","","","","","","","","","","","","","","","","","","","","","","","","","","","","","","","","","","",", XLVII",""]
["Instituto de Seguridad y Servicios Sociales de los Trabajadores del Estado","","","","","","","","","","","","","","","","","","","","","","","","","","","","","","","","","","","","","","","","","","","","","","",", XLVII",""]
["Instituto Mexicano del Seguro Social","","","","","","","","","","","","","","","","","","","","","","","","","","","","","","","","","","","","","","","","","","","","","","",", XLVII",""]
["Talleres Gráficos de México","","","","","","","","","","","","","","","","","","","","","","","","","","","","","","","","","","","","","","","","","","","","","",", XLVI",", XLVII",""]
["Consejo Nacional para Prevenir la Discriminación","","","","","","","","","","","","","","","","","","","","","","","","","","","","","","","","","","","","","","","","","","","","","","",", XLVII",""]
["Sistema Público de Radiodifusión del Estado Mexicano","","","","","","","","","","","","","","","","","","","","","","","","","","","","","","","","","","","","","","","","","","","","","","",", XLVII",""]
["Archivo General de la Nación","","","","","","","","","","","","","","","","","","","","","","","","","","","","","","","","","","","","","","","","","","","","","","",", XLVII",""]
["Instituto Nacional de las Mujeres","","","","","","","","","","","","","","","","","","","","","","","","","","","","","","","","","","","",", XXXVI","","","","","","","","","","",", XLVII",""]
["Instituto para el Desarrollo Técnico de las Haciendas Públicas","","","","","","","","","","","","","","","","","","","","","","","","","","","","","","","","","","","","","","","","","","","","","",", XLVI",", XLVII",""]
["Casa de Moneda","","","","","","","","","","","","","","","","","","","","","","","","","","","","","","","","","","","","","","","","","","","","","",", XLVI",", XLVII",""]
["Comisión Nacional para la Protección y Defensa de los Usuarios de Servicios Financieros","","","","","","","","","","","","","","","","","","","","","","","","","","","","","","","","","","","","","","","","","","","","","","",", XLVII",""]
["Financiera Nacional de Desarrollo Agropecuario, Rural, Forestal y Pesquero","","","","","","","","","","","","","","","","","","","","","","","","","","","","","","","","","","","","","","","","","","","","","","",", XLVII",""]
["Notimex, Agencia de Noticias del Estado Mexicano","","","","","","","","","","","","","","","","","","","","","","","","","","","","","","","","","","","","","","","","","","","","","","",", XLVII",""]
["Instituto para la Protección al Ahorro Bancario","","","","","","","","","","","","","","","","","","","","","","","","","","","","","","","","","","","","","","","","","","","","","","",", XLVII",""]
["Lotería Nacional para la Asistencia Pública","","","","","","","","","","","","","","","","","","","","","","","","","","","","","","","","","","","","","","","","","","","","","","",", XLVII",""]
["Pronósticos para la Asistencia Pública","","","","","","","","","","","","","","","","","","","","","","","","","","","","","","","","","","","","","","","","","","","","","","",", XLVII",""]
["Servicio de Administración y Enajenación de Bienes","","","","","","","","","","","","","","","","","","","","","","","","","","","","","","","","","","","",", XXXVI","","","","","","","","","","",", XLVII",""]
["Instituto de Seguridad Social para las Fuerzas Armadas Mexicanas","","","","","","","","","","","","","","","","","","","","","","","","","","","","","","","","","","","","","","","","","","","","","",", XLVI",", XLVII",""]
["Comité Nacional para el Desarrollo Sustentable de la Caña de Azúcar (*)","","","","","","","","","","","","","","","","","","","","","","","","","","","","","","","","","","","",", XXXVI","","","","","","","","","",", XLVI",", XLVII",""]
["Colegio de Postgraduados","","","","","","","","","","","","","","","","","","","","","","","","","","","","","","","","","","","","","","","","","","","","","","",", XLVII",""]
["Instituto Nacional de Investigaciones Forestales, Agrícolas y Pecuarias","","","","","","","","","","","","","","","","","","","","","","","","","","","","","","","","","","","","","","","","","","","","","","",", XLVII",""]
["Instituto Nacional de Pesca","","","","","","","","","","","","","","","","","","","","","","","","","","","","","","","","","","","","","","","","","","","","","","",", XLVII",""]
["Productora Nacional de Biológicos Veterinarios","","","","","","","","","","","","","","","","","","","","","","","","","","","","","","","","","","","","","","","","","","","","","","",", XLVII",""]
["Aeropuertos y Servicios Auxiliares","","","","","","","","","","","","","","","","","","","","","","","","","","","","","","","","","","","",", XXXVI","","","","","","","","","","",", XLVII",""]
["Agencia Espacial Mexicana","","","","","","","","","","","","","","","","","","","","","","","","","","","","","","","","","","","","","","","","","","","","","","",", XLVII",""]
["Caminos y Puentes Federales de Ingresos y Servicios Conexos","","","","","","","","","","","","","","","","","","","","","","","","","","","","","","","","","","","","","","","","","","","","","","",", XLVII",""]
["Servicio Postal Mexicano","","","","","","","","","","","","","","","","","","","","","","","","","","","","","","","","","","","","","","","","","","","","","","",", XLVII",""]
["Telecomunicaciones de México","","","","","","","","","","","","","","","","","","","","","","","","","","","","","","","","","","","",", XXXVI","","","","","","","","","",", XLVI",", XLVII",""]
["Centro Nacional de Metrología","","","","","","","","","","","","","","","","","","","","","","","","","","","","","","","","","","","","","","","","","","","","","",", XLVI",", XLVII",""]
["Servicio Geológico Mexicano","","","","","","","","","","","","","","","","","","","","","","","","","","","","","","","","","","","","","","","","","","","","","",", XLVI",", XLVII",""]
["Instituto Mexicano de la Propiedad Industrial","","","","","","","","","","","","","","","","","","","","","","","","","","","","","","","","","","","","","","","","","","","","","",", XLVI",", XLVII",""]
["Procuraduría Federal del Consumidor","","","","","","","","","","","","","","","","","","","","","","","","","","","","","","","","","","","","","","","","","","","","","","",", XLVII",""]
["Centro de Enseñanza Técnica Industrial","","","","","","","","","","","","","","","","","","","","","","","","","","","","","","","","","","","","","","","","","","","","","","",", XLVII",""]
["Centro de Investigación y de Estudios Avanzados del Instituto Politécnico Nacional","","","","","","","","","","","","","","","","","","","","","","","","","","","","","","","","","","","","","","","","","","","","","","",", XLVII",""]
["Centro de Investigaciones y Estudios Superiores en Antropología Social","","","","","","","","","","","","","","","","","","","","","","","","","","","","","","","","","","","",", XXXVI","","","","","","","","","","",", XLVII",""]
["Centro de Investigación Científica y de Educación Superior de Ensenada, Baja California","","","","","","","","","","","","","","","","","","","","","","","","","","","","","","","","","","","",", XXXVI","","","","","","","","","","",", XLVII",""]
["El Colegio de la Frontera Sur","","","","","","","","","","","","","","","","","","","","","","","","","","","","","","","","","","","","","","","","","","","","","","",", XLVII",""]
["Centro de Investigación en Química Aplicada","","","","","","","","","","","","","","","","","","","","","","","","","","","","","","","","","","","","","","","","","","","","","","",", XLVII",""]
["Consejo Nacional de Ciencia y Tecnología","","","","","","","","","","","","","","","","","","","","","","","","","","","","","","","","","","","",", XXXVI","","","","","","","","","","",", XLVII",""]
["Colegio de Bachilleres","","","","","","","","","","","","","","","","","","","","","","","","","","","","","","","","","","","","","","","","","","","","","","",", XLVII",""]
["Centro de Ingeniería y Desarrollo Industrial","","","","","","","","","","","","","","","","","","","","","","","","","","","","","","","","","","","","","","","","","","","","","","",", XLVII",""]
["Colegio Nacional de Educación Profesional Técnica","","","","","","","","","","","","","","","","","","","","","","","","","","","","","","","","","","","","","","","","","","","","","","",", XLVII",""]
["Comisión Nacional de Cultura Física y Deporte","","","","","","","","","","","","","","","","","","","","","","","","","","","","","","","","","","","","","","","","","","","","","","",", XLVII",""]
["Comisión de Operación y Fomento de Actividades Académicas del Instituto Politécnico Nacional","","","","","","","","","","","","","","","","","","","","","","","","","","","","","","","","","","","","","","","","","","","","","","",", XLVII",""]
["Comisión Nacional de Libros de Texto Gratuitos","","","","","","","","","","","","","","","","","","","","","","","","","","","","","","","","","","","","","","","","","","","","","","",", XLVII",""]
["Instituto Nacional de la Infraestructura Física Educativa","","","","","","","","","","","","","","","","","","","","","","","","","","","","","","","","","","","","","","","","","","","","","","",", XLVII",""]
["Consejo Nacional de Fomento Educativo","","","","","","","","","","","","","","","","","","","","","","","","","","","","","","","","","","","","","","","","","","","","","","",", XLVII",""]
["Centro Nacional de Control de Energía","","","","","","","","","","","","","","","","","","","","","","","","","","","","","","","","","","","","","","","","","","","","","","",", XLVII",""]
["Fondo de Cultura Económica","","","","","","","","","","","","","","","","","","","","","","","","","","","","","","","","","","","","","","","","","","","","","","",", XLVII",""]
["Instituto de Investigaciones \"Dr. José María Luis Mora\"","","","","","","","","","","","","","","","","","","","","","","","","","","","","","","","","","","","","","","","","","","","","","","",", XLVII",""]
["Instituto Nacional de Astrofísica, Óptica y Electrónica","","","","","","","","","","","","","","","","","","","","","","","","","","","","","","","","","","","","","","","","","","","","","","",", XLVII",""]
["Instituto Nacional para la Educación de los Adultos","","","","","","","","","","","","","","","","","","","","","","","","","","","","","","","","","","","",", XXXVI","","","","","","","","","","",", XLVII",""]
["Instituto Nacional de Lenguas Indígenas","","","","","","","","","","","","","","","","","","","","","","","","","","","","","","","","","","","","","","","","","","","","","","",", XLVII",""]
["Instituto Mexicano de Cinematografía","","","","","","","","","","","","","","","","","","","","","","","","","","","","","","","","","","","",", XXXVI","","","","","","","","","","",", XLVII",""]
["Instituto Mexicano de la Juventud","","","","","","","","","","","","","","","","","","","","","","","","","","","","","","","","","","","","","","","","","","","","","","",", XLVII",""]
["Instituto Mexicano de la Radio","","","","","","","","","","","","","","","","","","","","","","","","","","","","","","","","","","","","","","","","","","","","","",", XLVI",", XLVII",""]
["Patronato de Obras e Instalaciones del Instituto Politécnico Nacional","","","","","","","","","","","","","","","","","","","","","","","","","","","","","","","","","","","","","","","","","","","","","","",", XLVII",""]
["Instituto Nacional de Geriatría (*)","","","","","","","","","","","","","","","","","","","","","","","","","","","","","","","","","","","","","","","","","","","","","",", XLVI",", XLVII",""]
["Centro Regional de Alta Especialidad de Chiapas","","","","","","","","","","","","","","","","","","","","","","","","","","","","","","","","","","","","","","","","","","","","","","",", XLVII",""]
["Hospital Juárez de México","","","","","","","","","","","","","","","","","","","","","","","","","","","","","","","","","","","","","","","","","","","","","","",", XLVII",""]
["Hospital General \"Dr. Manuel Gea González\"","","","","","","","","","","","","","","","","","","","","","","","","","","","","","","","","","","","","","","","","","","","","","","",", XLVII",""]
["Hospital General de México \"Dr. Eduardo Liceaga\"","","","","","","","","","","","","","","","","","","","","","","","","","","","","","","","","","","","","","","","","","","","","","","",", XLVII",""]
["Hospital Infantil de México Federico Gómez","","","","","","","","","","","","","","","","","","","","","","","","","","","","","","","","","","","",", XXXVI","","","","","","","","","","",", XLVII",""]
["Hospital Regional de Alta Especialidad del Bajío","","","","","","","","","","","","","","","","","","","","","","","","","","","","","","","","","","","","","","","","","","","","","","",", XLVII",""]
["Hospital Regional de Alta Especialidad de Oaxaca","","","","","","","","","","","","","","","","","","","","","","","","","","","","","","","","","","","","","","","","","","","","","","",", XLVII",""]
["Hospital Regional de Alta Especialidad de la Península de Yucatán","","","","","","","","","","","","","","","","","","","","","","","","","","","","","","","","","","","",", XXXVI","","","","","","","","","","",", XLVII",""]
["Hospital Regional de Alta Especialidad de Ciudad Victoria \"Bicentenario 2010\"","","","","","","","","","","","","","","","","","","","","","","","","","","","","","","","","","","","","","","","","","","","","","","",", XLVII",""]
["Hospital Regional de Alta Especialidad de Ixtapaluca","","","","","","","","","","","","","","","","","","","","","","","","","","","","","","","","","","","",", XXXVI","","","","","","","","","","",", XLVII",""]
["Instituto Nacional de Cancerología","","","","","","","","","","","","","","","","","","","","","","","","","","","","","","","","","","","","","","","","","","","","","","",", XLVII",""]
["Instituto Nacional de Cardiología Ignacio Chávez","","","","","","","","","","","","","","","","","","","","","","","","","","","","","","","","","","","","","","","","","","","","","","",", XLVII",""]
["Instituto Nacional de Enfermedades Respiratorias Ismael Cosío Villegas","","","","","","","","","","","","","","","","","","","","","","","","","","","","","","","","","","","","","","","","","","","","","","",", XLVII",""]
["Instituto Nacional de Ciencias Médicas y Nutrición Salvador Zubirán","","","","","","","","","","","","","","","","","","","","","","","","","","","","","","","","","","","","","","","","","","","","","","",", XLVII",""]
["Instituto Nacional de Neurología y Neurocirugía Manuel Velasco Suárez","","","","","","","","","","","","","","","","","","","","","","","","","","","","","","","","","","","","","","","","","","","","","",", XLVI",", XLVII",""]
["Instituto Nacional de Pediatría","","","","","","","","","","","","","","","","","","","","","","","","","","","","","","","","","","","","","","","","","","","","","",", XLVI",", XLVII",""]
["Instituto Nacional de Perinatología Isidro Espinosa de los Reyes","","","","","","","","","","","","","","","","","","","","","","","","","","","","","","","","","","","","","","","","","","","","","","",", XLVII",""]
["Instituto Nacional de Salud Pública","","","","","","","","","","","","","","","","","","","","","","","","","","","","","","","","","","","","","","","","","","","","","",", XLVI",", XLVII",""]
["Instituto Nacional de Psiquiatría Ramón de la Fuente Muñiz","","","","","","","","","","","","","","","","","","","","","","","","","","","","","","","","","","","","","","","","","","","","","","",", XLVII",""]
["Instituto Nacional de Rehabilitación Luis Guillermo Ibarra Ibarra","","","","","","","","","","","","","","","","","","","","","","","","","","","","","","","","","","","","","","","","","","","","","","",", XLVII",""]
["Sistema Nacional para el Desarrollo Integral de la Familia","","","","","","","","","","","","","","","","","","","","","","","","","","","","","","","","","","","","","","","","","","","","","","",", XLVII",""]
["Instituto Nacional de Medicina Genómica","","","","","","","","","","","","","","","","","","","","","","","","","","","","","","","","","","","",", XXXVI","","","","","","","","","",", XLVI",", XLVII",""]
["Instituto del Fondo Nacional para el Consumo de los Trabajadores","","","","","","","","","","","","","","","","","","","","","","","","","","","","","","","","","","","",", XXXVI","","","","","","","","","",", XLVI",", XLVII",""]
["Comisión para la Regularización de la Tenencia de la Tierra","","","","","","","","","","","","","","","","","","","","","","","","","","","","","","","","","","","","","","","","","","","","","","",", XLVII",""]
["Procuraduría Agraria","","","","","","","","","","","","","","","","","","","","","","","","","","","","","","","","","","","","","","","","","","","","","","",", XLVII",""]
["Instituto Mexicano de Tecnología del Agua","","","","","","","","","","","","","","","","","","","","","","","","","","","","","","","","","","","","","","","","","","","","","",", XLVI",", XLVII",""]
["Instituto Nacional de Ecología y Cambio Climático","","","","","","","","","","","","","","","","","","","","","","","","","","","","","","","","","","","","","","","","","","","","","","",", XLVII",""]
["Comisión Nacional Forestal","","","","","","","","","","","","","","","","","","","","","","","","","","","","","","","","","","","","","","","","","","","","","","",", XLVII",""]
["Instituto Nacional de Ciencias Penales","","","","","","","","","","","","","","","","","","","","","","","","","","","","","","","","","","","","","","","","","","","","","","",", XLVII",""]
["Centro Nacional de Control del Gas Natural","","","","","","","","","","","","","","","","","","","","","","","","","","","","","","","","","","","","","","","","","","","","","","",", XLVII",""]
["Instituto de Investigaciones Eléctricas","","","","","","","","","","","","","","","","","","","","","","","","","","","","","","","","","","","","","","","","","","","","","","",", XLVII",""]
["Instituto Mexicano del Petróleo","","","","","","","","","","","","","","","","","","","","","","","","","","","","","","","","","","","",", XXXVI","","","","","","","","","",", XLVI",", XLVII",""]
["Instituto Nacional de Investigaciones Nucleares","","","","","","","","","","","","","","","","","","","","","","","","","","","","","","","","","","","","","","","","","","","","","",", XLVI",", XLVII",""]
["Comisión Nacional de las Zonas Áridas","","","","","","","","","","","","","","","","","","","","","","","","","","","","","","","","","","","","","","","","","","","","","","",", XLVII",""]
["Comisión Nacional de Vivienda","","","","","","","","","","","","","","","","","","","","","","","","","","","","","","","","","","","","","","","","","","","","","","",", XLVII",""]
["Consejo Nacional de Evaluación de la Política de Desarrollo Social","","","","","","","","","","","","","","","","","","","","","","","","","","","","","","","","","","","",", XXXVI","","","","","","","","","","",", XLVII",""]
["Instituto Nacional de las Personas Adultas Mayores","","","","","","","","","","","","","","","","","","","","","","","","","","","","","","","","","","","","","","","","","","","","","","",", XLVII",""]
["Administración Portuaria Integral de Altamira, S.A. de C.V.","","","","","","","","","","","","","","","","","","","","","","","","","","","","","","","","","","","",", XXXVI","","","","","","","","","",", XLVI",", XLVII",""]
["Administración Portuaria Integral de Coatzacoalcos, S.A. de C.V.","","","","","","","","","","","","","","","","","","","","","","","","","","","","","","","","","","","",", XXXVI","","","","","","","","","",", XLVI",", XLVII",""]
["Administración Portuaria Integral de Dos Bocas, S.A. de C.V.","","","","","","","","","","","","","","","","","","","","","","","","","","","","","","","","","","","",", XXXVI","","","","","","","","","",", XLVI",", XLVII",""]
["Administración Portuaria Integral de Ensenada, S.A. de C.V.","","","","","","","","","","","","","","","","","","","","","","","","","","","","","","","","","","","",", XXXVI","","","","","","","","","",", XLVI",", XLVII",""]
["Administración Portuaria Integral de Guaymas, S.A. de C.V.","","","","","","","","","","","","","","","","","","","","","","","","","","","","","","","","","","","",", XXXVI","","","","","","","","","",", XLVI",", XLVII",""]
["Administración Portuaria Integral de Lázaro Cárdenas, S.A. de C.V.","","","","","","","","","","","","","","","","","","","","","","","","","","","","","","","","","","","",", XXXVI","","","","","","","","","",", XLVI",", XLVII",""]
["Administración Portuaria Integral de Manzanillo, S.A. de C.V.","","","","","","","","","","","","","","","","","","","","","","","","","","","","","","","","","","","",", XXXVI","","","","","","","","","",", XLVI",", XLVII",""]
["Administración Portuaria Integral de Mazatlán, S.A. de C.V.","","","","","","","","","","","","","","","","","","","","","","","","","","","","","","","","","","","",", XXXVI","","","","","","","","","",", XLVI",", XLVII",""]
["Administración Portuaria Integral de Progreso, S.A. de C.V.","","","","","","","","","","","","","","","","","","","","","","","","","","","","","","","","","","","",", XXXVI","","","","","","","","","",", XLVI",", XLVII",""]
["Administración Portuaria Integral de Puerto Madero, S.A. de C.V.","","","","","","","","","","","","","","","","","","","","","","","","","","","","","","","","","","","",", XXXVI","","","","","","","","","",", XLVI",", XLVII",""]
["Administración Portuaria Integral de Puerto Vallarta, S.A. de C.V.","","","","","","","","","","","","","","","","","","","","","","","","","","","","","","","","","","","",", XXXVI","","","","","","","","","",", XLVI",", XLVII",""]
["Administración Portuaria Integral de Salina Cruz, S.A. de C.V.","","","","","","","","","","","","","","","","","","","","","","","","","","","","","","","","","","","",", XXXVI","","","","","","","","","",", XLVI",", XLVII",""]
["Administración Portuaria Integral de Tampico, S.A. de C.V.","","","","","","","","","","","","","","","","","","","","","","","","","","","","","","","","","","","",", XXXVI","","","","","","","","","",", XLVI",", XLVII",""]
["Administración Portuaria Integral de Topolobampo, S.A. de C.V.","","","","","","","","","","","","","","","","","","","","","","","","","","","","","","","","","","","",", XXXVI","","","","","","","","","",", XLVI",", XLVII",""]
["Administración Portuaria Integral de Tuxpan, S.A. de C.V.","","","","","","","","","","","","","","","","","","","","","","","","","","","","","","","","","","","",", XXXVI","","","","","","","","","",", XLVI",", XLVII",""]
["Administración Portuaria Integral de Veracruz, S.A. de C.V.","","","","","","","","","","","","","","","","","","","","","","","","","","","","","","","","","","","",", XXXVI","","","","","","","","","",", XLVI",", XLVII",""]
["Aeropuerto Internacional de la Ciudad de México, S.A. de C.V.","","","","","","","","","","",", XI","","","","","","","","","","","","","","","","","","","","","","","","",", XXXVI","","","","","","","","","",", XLVI",", XLVII",""]
["Centro de Capacitación Cinematográfica, A.C.","","","","","","","","","","","","","","","","","","","","","","","","","","","","","","","","","","","",", XXXVI","","","","","","","","","",", XLVI",", XLVII",""]
["Centro de Investigación Científica de Yucatán, A.C.","","","","","","","","","","","","","","","","","","","","","","","","","","","","","","","","","","","",", XXXVI","","","","","","","","","","",", XLVII",""]
["Centro de Investigación en Alimentación y Desarrollo, A.C.","","","","","","","","","","","","","","","","","","","","","","","","","","","","","","","","","","","",", XXXVI","","","","","","","","","","",", XLVII",""]
["Centro de Investigación en Geografía y Geomática \"Ing. Jorge L. Tamayo\", A.C.","","","","","","","","","","","","","","","","","","","","","","","","","","","","","","","","","","","",", XXXVI","","","","","","","","","","",", XLVII",""]
["Centro de Investigación en Matemáticas, A.C.","","","","","","","","","","","","","","","","","","","","","","","","","","","","","","","","","","","",", XXXVI","","","","","","","","","","",", XLVII",""]
["Centro de Investigación en Materiales Avanzados, S.C.","","","","","","","","","","","","","","","","","","","","","","","","","","","","","","","","","","","",", XXXVI","","","","","","","","","","",", XLVII",""]
["Centro de Investigación y Asistencia en Tecnología y Diseño del Estado de Jalisco, A.C.","","","","","","","","","","","","","","","","","","","","","","","","","","","","","","","","","","","",", XXXVI","","","","","","","","","","",", XLVII",""]
["Centro de Investigación y Desarrollo Tecnológico en Electroquímica, S.C.","","","","","","","","","","","","","","","","","","","","","","","","","","","","","","","","","","","",", XXXVI","","","","","","","","","","",", XLVII",""]
["Centro de Investigación y Docencia Económicas, A.C.","","","","","","","","","","","","","","","","","","","","","","","","","","","","","","","","","","","",", XXXVI","","","","","","","","","","",", XLVII",""]
["Centro de Investigaciones Biológicas del Noroeste, S.C.","","","","","","","","","","","","","","","","","","","","","","","","","","","","","","","","","","","",", XXXVI","","","","","","","","","","",", XLVII",""]
["Centro de Investigaciones en Óptica, A.C.","","","","","","","","","","","","","","","","","","","","","","","","","","","","","","","","","","","",", XXXVI","","","","","","","","","","",", XLVII",""]
["Centros de Integración Juvenil, A.C.","","","","","","","","","","","","","","","","","","","","","","","","","","","","","","","","","","","",", XXXVI","","","","","","","","","",", XLVI",", XLVII",""]
["CIATEC, A.C. \"Centro de Innovación Aplicada en Tecnologías Competitivas\"","","","","","","","","","","","","","","","","","","","","","","","","","","","","","","","","","","","",", XXXVI","","","","","","","","","","",", XLVII",""]
["CIATEQ, A.C. Centro de Tecnología Avanzada","","","","","","","","","","","","","","","","","","","","","","","","","","","","","","","","","","","",", XXXVI","","","","","","","","","","",", XLVII",""]
["Compañía Mexicana de Exploraciones, S.A. de C.V.","","","","","","","","","","","","","","","","","","","","","","","","","","","","","","","","","","","",", XXXVI","","","","","","","","","",", XLVI",", XLVII",""]
["Compañía Operadora del Centro Cultural y Turístico de Tijuana, S.A. de C.V.","","","","","","","","","","","","","","","","","","","","","","","","","","","","","","","","","","","",", XXXVI","","","","","","","","","","",", XLVII",""]
["Consejo de Promoción Turística de México, S.A. de C.V.","","","","","","","","","","","","","","","","","","","","","","","","","","","","","","","","","","","","","","","","","","","","","","",", XLVII",""]
["Corporación Mexicana de Investigación en Materiales, S.A. de C.V.","","","","","","","","","","","","","","","","","","","","","","","","","","","","","","","","","","","",", XXXVI",", XXXVII","","","","","","","","","",", XLVII",""]
["Diconsa, S.A. de C.V.","","","","","","","","","","","","","","","","","","","","","","","","","","","","","","","","","","","",", XXXVI","","","","","","","","","",", XLVI",", XLVII",""]
["Educal, S.A. de C.V.","","","","","","","","","","","","","","","","","","","","","","","","","","","","","","","","","","","",", XXXVI","","","","","","","","","","",", XLVII",""]
["El Colegio de la Frontera Norte, A.C.","","","","","","","","","","","","","","","","","","","","","","","","","","","","","","","","","","","",", XXXVI","","","","","","","","","","",", XLVII",""]
["El Colegio de México, A.C.","","","","","","","","","","","","","","","","","","","","","","","","","","","","","","","","","","","","","","","","","","","","","",", XLVI",", XLVII",""]
["El Colegio de Michoacán, A.C.","","","","","","","","","","","","","","","","","","","","","","","","","","","","","","","","","","","",", XXXVI",", XXXVII","","","","","","","","","",", XLVII",""]
["El Colegio de San Luis, A.C.","","","","","","","","","","","","","","","","","","","","","","","","","","","","","","","","","","","",", XXXVI","","","","","","","","","",", XLVI",", XLVII",""]
["Estudios Churubusco Azteca, S.A.","","","","","","","","","","","","","","","","","","","","","","","","","","","","","","","","","","","",", XXXVI","","","","","","","","","","",", XLVII",""]
["Exportadora de Sal, S.A. de C.V.","","","","","","","","","","","","","","","","","","","","","","","","","","","","","","","","","","","",", XXXVI","","","","","","","","","","",", XLVII",""]
["Ferrocarril del Istmo de Tehuantepec, S.A. de C.V.","","","","","","","","","","","","","","","","","","","","","","","","","","","","","","","","","","","",", XXXVI","","","","","","","","","","",", XLVII",""]
["FONATUR Constructora, S.A. de C.V.","","","","","","","","","","","","","","","","","","","","","","","","","","","","","","","","","","","",", XXXVI","","","","","","","","","","",", XLVII",""]
["FONATUR Mantenimiento Turístico, S.A. de C.V.","","","","","","","","","","","","","","",", XV","","","","","","","","","","","","","","","","","","","","",", XXXVI","",", XXXVIII","","","","","","","",", XLVI",", XLVII",""]
["FONATUR Operadora Portuaria, S.A. de C.V.","","","","","","","","","","","","","","","","","","","","","","","","","","","","","","","","","","","",", XXXVI","","","","","","","","","","",", XLVII",""]
["Grupo Aeroportuario de la Ciudad de México, S.A. de C.V.","","","","","","","","","","","","","","","","","","","","","","","","","","","","","","","","","","","",", XXXVI","","","","","","","","","",", XLVI",", XLVII",""]
["Impresora y Encuadernadora Progreso, S.A. de C.V.","","","","","","","","","","","","","","","","","","","","","","","","","","","","","","","","","","","",", XXXVI","","","","","","","","","","",", XLVII",""]
["Instituto de Ecología, A.C.","","","","","","","","","","","","","","","","","","","","","","","","","","","","","","","","","","","",", XXXVI","","","","","","","","","",", XLVI",", XLVII",""]
["Instituto Nacional para el Desarrollo de Capacidades del Sector Rural, A.C.","","","","","","","","","","","","","","","","","","","","","","","","","","","","","","","","","","","",", XXXVI","","","","","","","","","","",", XLVII",""]
["Instituto Potosino de Investigación Científica y Tecnológica, A.C.","","","","","","","","","","","","","","","","","","","","","","","","","","","","","","","","","","","",", XXXVI","","","","","","","","","",", XLVI",", XLVII",""]
["Laboratorios de Biológicos y Reactivos de México, S.A. de C.V.","","","","","","","","","","","","","","",", XV","","","","","","","","","","","","","","","","","","","","",", XXXVI","",", XXXVIII","",", XL","","","","","",", XLVI",", XLVII",""]
["Liconsa, S.A. de C.V.","","","","","","","","","","","","","","","","","","","","","","","","","","","","","","","","","","","",", XXXVI","","","","","","","","","","",", XLVII",""]
["Servicios Aeroportuarios de la Ciudad de México, S.A. de C.V.","","","","","","","","","","",", XI","","","","","","","","","","","","","","","","","","","","","","","","",", XXXVI","","","","","","","","","",", XLVI",", XLVII",""]
["Televisión Metropolitana, S.A. de C.V.","","","","","","","","","","","","","","","","","","","","","","","","","","","","","","","","","","","",", XXXVI","","","","","","","","","","",", XLVII",""]
["FONATUR Prestadora de Servicios, S.A. de C.V. (*)","",", II",", III",", IV","","",", VII",", VIII",", IX",", X",", XI",", XII",", XIII",", XIV","",", XVI",", XVII",", XVIII","","","","","","","","","","","","","","","","","",", XXXVI","","",", XXXIX","","",", XLII","","",", XLV",", XLVI",", XLVII",""]
["Agroasemex, S.A.","","","","","","","","","","","","","","","","","","","","","","","","","","","","","","","","","","","",", XXXVI","","","","","","","","","",", XLVI",", XLVII",""]
["Banco del Ahorro Nacional y Servicios Financieros, S.N.C.","","","","","","","","","","","","","","","","","","","","","","","","","","","","","","","","","","","",", XXXVI","","","","","","","","","",", XLVI",", XLVII",""]
["Banco Nacional de Comercio Exterior, S.N.C.","","","","","","","","","","","","","","","","","","","","","","","","","","","","","","","","","","","",", XXXVI","","","","","","","","","",", XLVI",", XLVII",""]
["Banco Nacional de Obras y Servicios Públicos, S.N.C.","","","","","","","","","","","","","","","","","","","","","","","","","","","","","","","","","","","",", XXXVI","","","","","","","","","","",", XLVII",""]
["Banco Nacional del Ejército, Fuerza Aérea y Armada, S.N.C.","","","","","","","","","","","","","","","","","","","","","","","","","","","","","","","","","","","",", XXXVI","","","","","","","","","","",", XLVII",""]
["Nacional Financiera, S.N.C.","","","","","","","","","","","","","","","","","","","","","","","","","","","","","","","","","","","",", XXXVI","","","","","","","","","","",", XLVII",""]
["Sociedad Hipotecaria Federal, S.N.C.","","","","","","","","","","","","","","","","","","","","","","","","","","","","","","","","","","","",", XXXVI","","","","","","","","","",", XLVI",", XLVII",""]
["Seguros de Crédito a la Vivienda SHF, S.A. de C.V. (*)","",", II",", III",", IV","","",", VII",", VIII",", IX",", X",", XI",", XII",", XIII",", XIV","",", XVI",", XVII",", XVIII","","","","","","","","","","","","","","","","","",", XXXVI","","",", XXXIX","","",", XLII","","",", XLV",", XLVI",", XLVII",""]
["Comisión Federal de Electricidad","","","","","","","","","","","","","","","","","","","","","","","","","","","","","","","","","","","","","","","","","","","","","","",", XLVII",""]
["Petróleos Mexicanos","","","","","","","","","","","","","","","","","","","","","","","","","","","","","","","","","","","",", XXXVI","","","","","","","","","",", XLVI",", XLVII",""]
["Pemex Cogeneración y Servicios","","","","","","","","","","","","","","","","","","","","","","","","","","","","","","","","","","","",", XXXVI","","","","","","","","","",", XLVI",", XLVII",""]
["Pemex Etileno","","","","","","","","","","","","","","","","","","","","","","","","","","","","","","","","","","","",", XXXVI","","","","","","","","","",", XLVI",", XLVII",""]
["Pemex Exploración y Producción","","","","","","","","","","","","","","","","","","","","","","","","","","","","","","","","","","","",", XXXVI","","","","","","","","","",", XLVI",", XLVII",""]
["Pemex Fertilizantes","","","","","","","","","","","","","","","","","","","","","","","","","","","","","","","","","","","",", XXXVI","","","","","","","","","",", XLVI",", XLVII",""]
["Pemex Logística","","","","","","","","","","","","","","","","","","","","","","","","","","","","","","","","","","","",", XXXVI","","","","","","","","","",", XLVI",", XLVII",""]
["Pemex Perforación y Servicios","","","","","","","","","","","","","","","","","","","","","","","","","","","","","","","","","","","",", XXXVI","","","","","","","","","",", XLVI",", XLVII",""]
["Pemex Transformación Industrial","","","","","","","","","","","","","","","","","","","","","","","","","","","","","","","","","","","",", XXXVI","","","","","","","","","",", XLVI",", XLVII",""]
["Tribunal Federal de Conciliación y Arbitraje","","","","","","","","","","","","","",", XIV",", XV","","","","","","",", XXII","","","",", XXVI","","","","","","","","","","","","","","","","","",", XLIV","",", XLVI",", XLVII",""]
["Tribunal Federal de Justicia Fiscal y Administrativa","","","","","","","","","","","","","","",", XV","","","","","","","","","","","","","","","","","","","","","","",", XXXVIII","","","","","","","",", XLVI",", XLVII",""]
["Tribunal Superior Agrario","","","","","","","","","","","","","","",", XV","","","","","","",", XXII","","","",", XXVI","","","","","","","","","","","","","","","","","","","",", XLVI",", XLVII",""]
["Consejo de la Judicatura Federal","","","","","","","","","","","","","","",", XV","","","","","","",", XXII","","","",", XXVI","","","","","","",", XXXIII","","","",", XXXVII",", XXXVIII","",", XL","","","","","",", XLVI","",""]
["Suprema Corte de Justicia de la Nación","","","","","","","","","","","","","","",", XV","","","","","","",", XXII","","","","","","","","","","",", XXXIII","","","",", XXXVII",", XXXVIII","",", XL","","","","","","",", XLVII",""]
["Tribunal Electoral del Poder Judicial de la Federación","","","","","","","","","","","","","","",", XV","","","","","","",", XXII","","",", XXV",", XXVI","","","","","","","","","","",", XXXVII","","","","","","","","","",", XLVII",""]
["Banco de México","","","","","","","","","","","","","","",", XV","","","","","",", XXI",", XXII","","","","","","","","",", XXXI","","","","","",", XXXVII",", XXXVIII","",", XL","","","","","","",", XLVII",""]
["Comisión Federal de Competencia Económica","","","","","","","","","","","","","","",", XV","","","","","","",", XXII","","","","","","","","","","","","","","","","","","","","","","","","",", XLVII",""]
["Comisión Nacional de los Derechos Humanos","","","","","","","","","","","","","","",", XV","","","","","","",", XXII","","","","","","","","","","","","","",", XXXVI","","","","","","","","","","",", XLVII",""]
["Instituto Federal de Telecomunicaciones","","","","","","","","","","","","","","",", XV","","","","","","",", XXII","","","","","","","","","","","","","","","","","","","","","","","","",", XLVII",""]
["Instituto Nacional de Estadística y Geografía","","","","","","","","","","","","","","",", XV","","","","","","",", XXII","","","","","","","","","","","","","","","","","","","","","","","","",", XLVII",""]
["Instituto Nacional de Transparencia, Acceso a la Información y Protección de Datos Personales","","","","","","","","","","","","","","",", XV","","","","","","",", XXII","","","","","","","","","","","","","","","","","","","","","","","","",", XLVII",""]
["Instituto Nacional Electoral","","","","","","","","","","","","","","",", XV","","","","","","",", XXII","","","","","","","","","","","","","",", XXXVI","",", XXXVIII","",", XL","","","","","","",", XLVII",""]
["Instituto Nacional para la Evaluación de la Educación","","","","","","","","","","","","","","",", XV","","","","","","",", XXII","","","","","","","","","","","","","",", XXXVI","","","","","","","","","","",", XLVII",""]
["Instituto del Fondo Nacional de la Vivienda para los Trabajadores","","","","","","","","","","","","","",", XIV","","","","","","","",", XXII","","","","","","","","","","","","","","",", XXXVII","","","","","","","","","",", XLVII",""]
["Universidad Autónoma Agraria Antonio Narro","","","","","","","","","","","","","",", XIV","","","","","","","",", XXII","","","","","","","","","","",", XXXIII","","","","","","","","","","","","",", XLVI",", XLVII",""]
["Universidad Autónoma Chapingo","","","","","","","","","","","","","",", XIV","","","","","","","",", XXII","","","","","","","","","","",", XXXIII","","","","",", XXXVIII","","","","","","","",", XLVI",", XLVII",""]
["Universidad Autónoma Metropolitana","","","","","","","","","","","","","",", XIV",", XV","","","","","","",", XXII","","","","","","","","","","",", XXXIII","","","",", XXXVII",", XXXVIII","","","","","","","",", XLVI",", XLVII",""]
["Universidad Nacional Autónoma de México","","","","","","","","","","","","","",", XIV",", XV","","","","","","",", XXII","","","","","","","","","","",", XXXIII","","","",", XXXVII",", XXXVIII","","","","","","","",", XLVI",", XLVII",""]
["Partido Acción Nacional","","","","","","",", VII",", VIII","",", X","",", XII","",", XIV",", XV","","",", XVIII","","",", XXI",", XXII","","","",", XXVI","",", XXVIII","","","","","","","","","",", XXXVIII","",", XL","","","",", XLIV","","",", XLVII",""]
["Partido Revolucionario Institucional","","","","","","",", VII",", VIII","",", X","",", XII","",", XIV",", XV","","",", XVIII","","",", XXI",", XXII","","","",", XXVI","",", XXVIII","","","","","","","","","",", XXXVIII","",", XL","","","",", XLIV","","",", XLVII",""]
["Partido de la Revolución Democrática","","","","","","",", VII",", VIII","",", X","",", XII","",", XIV",", XV","","",", XVIII","","",", XXI",", XXII","","","",", XXVI","",", XXVIII","","","","","","","","","",", XXXVIII","",", XL","","","",", XLIV","","",", XLVII",""]
["Partido Verde Ecologista de México","","","","","","",", VII",", VIII","",", X","",", XII","",", XIV",", XV","","",", XVIII","","",", XXI",", XXII","","","",", XXVI","",", XXVIII","","","","","","","","","",", XXXVIII","",", XL","","","",", XLIV","","",", XLVII",""]
["Partido del Trabajo","","","","","","",", VII",", VIII","",", X","",", XII","",", XIV",", XV","","",", XVIII","","",", XXI",", XXII","","","",", XXVI","",", XXVIII","","","","","","","","","",", XXXVIII","",", XL","","","",", XLIV","","",", XLVII",""]
["Movimiento Ciudadano","","","","","","",", VII",", VIII","",", X","",", XII","",", XIV",", XV","","",", XVIII","","",", XXI",", XXII","","","",", XXVI","",", XXVIII","","","","","","","","","",", XXXVIII","",", XL","","","",", XLIV","","",", XLVII",""]
["Nueva Alianza","","","","","","",", VII",", VIII","",", X","",", XII","",", XIV",", XV","","",", XVIII","","",", XXI",", XXII","","","",", XXVI","",", XXVIII","","","","","","","","","",", XXXVIII","",", XL","","","",", XLIV","","",", XLVII",""]
["Morena","","","","","","",", VII",", VIII","",", X","",", XII","",", XIV",", XV","","",", XVIII","","",", XXI",", XXII","","","",", XXVI","",", XXVIII","","","","","","","","","",", XXXVIII","",", XL","","","",", XLIV","","",", XLVII",""]
["Partido Encuentro Social","","","","","","",", VII",", VIII","",", X","",", XII","",", XIV",", XV","","",", XVIII","","",", XXI",", XXII","","","",", XXVI","",", XXVIII","","","","","","","","","",", XXXVIII","",", XL","","","",", XLIV","","",", XLVII",""]
["Fideicomiso de Fomento Minero","","","","","","","","","","","","","","","","","","","","","","","","","","","","","","","","","","","",", XXXVI","","","","","","","","","",", XLVI",", XLVII",""]
["Fideicomiso de Formación y Capacitación para el Personal de la Marina Mercante Nacional","","","","","","","","","","","","","","","","","","","","","","","","","","","","","","","","","","","",", XXXVI","","","","","","","","","",", XLVI",", XLVII",""]
["Fideicomiso de los Sistemas Normalizado de Competencia Laboral y de Certificación de Competencia Laboral","","","","","","","","","","","","","","","","","","","","","","","","","","","","","","","","","","","","","","","","","","","","","","",", XLVII",""]
["Fideicomiso de Riesgo Compartido","","","","","","","","","","","","","","","","","","","","","","","","","","","","","","","","","","","",", XXXVI","","","","","","","","","",", XLVI",", XLVII",""]
["Fideicomiso Fondo Nacional de Fomento Ejidal","","","","","","","","","","","","","","","","","","","","","","","","","","","","","","","","","","","",", XXXVI","","","","","","","","","","",", XLVII",""]
["Fideicomiso Fondo Nacional de Habitaciones Populares","","","","","","","","","","","","","","","","","","","","","","","","","","","","","","","","","","","",", XXXVI","","","","","","","","","",", XLVI",", XLVII",""]
["Fideicomiso para la Cineteca Nacional","","","","","","","","","","","","","","","","","","","","","","","","","","","","","","","","","","","",", XXXVI","","","","","","","","","","",", XLVII",""]
["Fondo de Capitalización e Inversión del Sector Rural","","","","","","","","","","","","","","","","","","","","","","","","","","","","","","","","","","","","","","","","","","","","","",", XLVI",", XLVII",""]
["Fondo de Garantía y Fomento para la Agricultura, Ganadería y Avicultura","","","","","","","","","","","","","","","","","","","","","","","","","","","","","","","","","","","",", XXXVI","","","","","","","","","",", XLVI",", XLVII",""]
["Fondo Nacional de Fomento al Turismo","","","","","","","","","","","","","","","","","","","","","","","","","","","","","","","","","","","",", XXXVI","","","","","","","","","",", XLVI",", XLVII",""]
["Fondo Nacional para el Fomento de las Artesanías","","","","","","","","","","","","","","","","","","","","","","","","","","","","","","","","","","","",", XXXVI","","","","","","","","","",", XLVI",", XLVII",""]
["INFOTEC Centro de Investigación e Innovación en Tecnologías de la Información y Comunicación","","","","","","","","","","","","","","","","","","","","","","","","","","","","","","","","","","","",", XXXVI","","","","","","","","","",", XLVI",", XLVII",""]
["ProMéxico","","","","","","","","","","","","","","","","","","","","","","","","","","","","","","","","","","","",", XXXVI","","","","","","","","","","",", XLVII",""]
["Asociación Autónoma del Personal Académico de la Universidad Nacional Autónoma de México","","","",", IV",", V",", VI",", VII",", VIII","",", X",", XI",", XII","",", XIV",", XV",", XVI",", XVII",", XVIII","","",", XXI",", XXII","","",", XXV",", XXVI","",", XXVIII","","",", XXXI",", XXXII",", XXXIII","",", XXXV",", XXXVI",", XXXVII",", XXXVIII","",", XL","",", XLII",", XLIII",", XLIV","",", XLVI",", XLVII",""]
["Confederación Patronal de la República Mexicana","","","",", IV",", V",", VI",", VII",", VIII","",", X",", XI",", XII","",", XIV",", XV",", XVI",", XVII",", XVIII","","",", XXI",", XXII","","",", XXV",", XXVI","",", XXVIII","","",", XXXI",", XXXII",", XXXIII","",", XXXV",", XXXVI",", XXXVII",", XXXVIII","",", XL","",", XLII",", XLIII",", XLIV","",", XLVI",", XLVII",""]
["Sindicato de Investigadores y Profesores de El Colegio de la Frontera Norte","","","",", IV",", V",", VI",", VII",", VIII","",", X",", XI",", XII","",", XIV",", XV",", XVI",", XVII",", XVIII","","",", XXI",", XXII","","",", XXV",", XXVI","",", XXVIII","","",", XXXI",", XXXII",", XXXIII","",", XXXV",", XXXVI",", XXXVII",", XXXVIII","",", XL","",", XLII",", XLIII",", XLIV","",", XLVI",", XLVII",""]
["Sindicato de Trabajadores Académicos de la Universidad Autónoma de Chapingo","","","",", IV",", V",", VI",", VII",", VIII","",", X",", XI",", XII","",", XIV",", XV",", XVI",", XVII",", XVIII","","",", XXI",", XXII","","",", XXV",", XXVI","",", XXVIII","","",", XXXI",", XXXII",", XXXIII","",", XXXV",", XXXVI",", XXXVII",", XXXVIII","",", XL","",", XLII",", XLIII",", XLIV","",", XLVI",", XLVII",""]
["Sindicato de Trabajadores de la Cámara de Diputados del H. Congreso de la Unión","","","",", IV",", V",", VI",", VII",", VIII","",", X",", XI",", XII","",", XIV",", XV",", XVI",", XVII",", XVIII","","",", XXI",", XXII","","",", XXV",", XXVI","",", XXVIII","","",", XXXI",", XXXII",", XXXIII","",", XXXV",", XXXVI",", XXXVII",", XXXVIII","",", XL","",", XLII",", XLIII",", XLIV","",", XLVI",", XLVII",""]
["Sindicato de Trabajadores de la Cámara de Diputados del Poder Legislativo Federal","","","",", IV",", V",", VI",", VII",", VIII","",", X",", XI",", XII","",", XIV",", XV",", XVI",", XVII",", XVIII","","",", XXI",", XXII","","",", XXV",", XXVI","",", XXVIII","","",", XXXI",", XXXII",", XXXIII","",", XXXV",", XXXVI",", XXXVII",", XXXVIII","",", XL","",", XLII",", XLIII",", XLIV","",", XLVI",", XLVII",""]
["Sindicato de Trabajadores de la Cámara de Senadores","","","",", IV",", V",", VI",", VII",", VIII","",", X",", XI",", XII","",", XIV",", XV",", XVI",", XVII",", XVIII","","",", XXI",", XXII","","",", XXV",", XXVI","",", XXVIII","","",", XXXI",", XXXII",", XXXIII","",", XXXV",", XXXVI",", XXXVII",", XXXVIII","",", XL","",", XLII",", XLIII",", XLIV","",", XLVI",", XLVII",""]
["Sindicato de Trabajadores de la H. Cámara de Senadores","","","",", IV",", V",", VI",", VII",", VIII","",", X",", XI",", XII","",", XIV",", XV",", XVI",", XVII",", XVIII","","",", XXI",", XXII","","",", XXV",", XXVI","",", XXVIII","","",", XXXI",", XXXII",", XXXIII","",", XXXV",", XXXVI",", XXXVII",", XXXVIII","",", XL","",", XLII",", XLIII",", XLIV","",", XLVI",", XLVII",""]
["Sindicato de Trabajadores de la Universidad Autónoma de Chapingo","","","",", IV",", V",", VI",", VII",", VIII","",", X",", XI",", XII","",", XIV",", XV",", XVI",", XVII",", XVIII","","",", XXI",", XXII","","",", XXV",", XXVI","",", XXVIII","","",", XXXI",", XXXII",", XXXIII","",", XXXV",", XXXVI",", XXXVII",", XXXVIII","",", XL","",", XLII",", XLIII",", XLIV","",", XLVI",", XLVII",""]
["Sindicato de Trabajadores de la Universidad Nacional Autónoma de México","","","",", IV",", V",", VI",", VII",", VIII","",", X",", XI",", XII","",", XIV",", XV",", XVI",", XVII",", XVIII","","",", XXI",", XXII","","",", XXV",", XXVI","",", XXVIII","","",", XXXI",", XXXII",", XXXIII","",", XXXV",", XXXVI",", XXXVII",", XXXVIII","",", XL","",", XLII",", XLIII",", XLIV","",", XLVI",", XLVII",""]
["Sindicato de Trabajadores de Talleres Gráficos de México","","","",", IV",", V",", VI",", VII",", VIII","",", X",", XI",", XII","",", XIV",", XV",", XVI",", XVII",", XVIII","","",", XXI",", XXII","","",", XXV",", XXVI","",", XXVIII","","",", XXXI",", XXXII",", XXXIII","",", XXXV",", XXXVI",", XXXVII",", XXXVIII","",", XL","",", XLII",", XLIII",", XLIV","",", XLVI",", XLVII",""]
["Sindicato de Trabajadores del Centro de Investigación y Docencia Económica, A.C.","","","",", IV",", V",", VI",", VII",", VIII","",", X",", XI",", XII","",", XIV",", XV",", XVI",", XVII",", XVIII","","",", XXI",", XXII","","",", XXV",", XXVI","",", XXVIII","","",", XXXI",", XXXII",", XXXIII","",", XXXV",", XXXVI",", XXXVII",", XXXVIII","",", XL","",", XLII",", XLIII",", XLIV","",", XLVI",", XLVII",""]
["Sindicato de Trabajadores del Consejo Nacional de Ciencia y Tecnología","","","",", IV",", V",", VI",", VII",", VIII","",", X",", XI",", XII","",", XIV",", XV",", XVI",", XVII",", XVIII","","",", XXI",", XXII","","",", XXV",", XXVI","",", XXVIII","","",", XXXI",", XXXII",", XXXIII","",", XXXV",", XXXVI",", XXXVII",", XXXVIII","",", XL","",", XLII",", XLIII",", XLIV","",", XLVI",", XLVII",""]
["Sindicato de Trabajadores del Instituto Mexicano de la Juventud","","","",", IV",", V",", VI",", VII",", VIII","",", X",", XI",", XII","",", XIV",", XV",", XVI",", XVII",", XVIII","","",", XXI",", XXII","","",", XXV",", XXVI","",", XXVIII","","",", XXXI",", XXXII",", XXXIII","",", XXXV",", XXXVI",", XXXVII",", XXXVIII","",", XL","",", XLII",", XLIII",", XLIV","",", XLVI",", XLVII",""]
["Sindicato de Trabajadores del Instituto Nacional para el Desarrollo de Capacidades del Sector Rural","","","",", IV",", V",", VI",", VII",", VIII","",", X",", XI",", XII","",", XIV",", XV",", XVI",", XVII",", XVIII","","",", XXI",", XXII","","",", XXV",", XXVI","",", XXVIII","","",", XXXI",", XXXII",", XXXIII","",", XXXV",", XXXVI",", XXXVII",", XXXVIII","",", XL","",", XLII",", XLIII",", XLIV","",", XLVI",", XLVII",""]
["Sindicato de Trabajadores del Instituto Politécnico Nacional","","","",", IV",", V",", VI",", VII",", VIII","",", X",", XI",", XII","",", XIV",", XV",", XVI",", XVII",", XVIII","","",", XXI",", XXII","","",", XXV",", XXVI","",", XXVIII","","",", XXXI",", XXXII",", XXXIII","",", XXXV",", XXXVI",", XXXVII",", XXXVIII","",", XL","",", XLII",", XLIII",", XLIV","",", XLVI",", XLVII",""]
["Sindicato de Trabajadores del Patronato de Obras e Instalaciones del Instituto Politécnico Nacional","","","",", IV",", V",", VI",", VII",", VIII","",", X",", XI",", XII","",", XIV",", XV",", XVI",", XVII",", XVIII","","",", XXI",", XXII","","",", XXV",", XXVI","",", XXVIII","","",", XXXI",", XXXII",", XXXIII","",", XXXV",", XXXVI",", XXXVII",", XXXVIII","",", XL","",", XLII",", XLIII",", XLIV","",", XLVI",", XLVII",""]
["Sindicato de Trabajadores del Poder Judicial de la Federación","","","",", IV",", V",", VI",", VII",", VIII","",", X",", XI",", XII","",", XIV",", XV",", XVI",", XVII",", XVIII","","",", XXI",", XXII","","",", XXV",", XXVI","",", XXVIII","","",", XXXI",", XXXII",", XXXIII","",", XXXV",", XXXVI",", XXXVII",", XXXVIII","",", XL","",", XLII",", XLIII",", XLIV","",", XLVI",", XLVII",""]
["Sindicato de Trabajadores del Servicio de Administración Tributaria y de Hacienda","","","",", IV",", V",", VI",", VII",", VIII","",", X",", XI",", XII","",", XIV",", XV",", XVI",", XVII",", XVIII","","",", XXI",", XXII","","",", XXV",", XXVI","",", XXVIII","","",", XXXI",", XXXII",", XXXIII","",", XXXV",", XXXVI",", XXXVII",", XXXVIII","",", XL","",", XLII",", XLIII",", XLIV","",", XLVI",", XLVII",""]
["Sindicato de Trabajadores del Tribunal Federal de Conciliación y Arbitraje","","","",", IV",", V",", VI",", VII",", VIII","",", X",", XI",", XII","",", XIV",", XV",", XVI",", XVII",", XVIII","","",", XXI",", XXII","","",", XXV",", XXVI","",", XXVIII","","",", XXXI",", XXXII",", XXXIII","",", XXXV",", XXXVI",", XXXVII",", XXXVIII","",", XL","",", XLII",", XLIII",", XLIV","",", XLVI",", XLVII",""]
["Sindicato de Trabajadores Democráticos de la Secretaría de Comunicaciones y Transportes","","","",", IV",", V",", VI",", VII",", VIII","",", X",", XI",", XII","",", XIV",", XV",", XVI",", XVII",", XVIII","","",", XXI",", XXII","","",", XXV",", XXVI","",", XXVIII","","",", XXXI",", XXXII",", XXXIII","",", XXXV",", XXXVI",", XXXVII",", XXXVIII","",", XL","",", XLII",", XLIII",", XLIV","",", XLVI",", XLVII",""]
["Sindicato de Trabajadores Ferrocarrileros de la República Mexicana","","","",", IV",", V",", VI",", VII",", VIII","",", X",", XI",", XII","",", XIV",", XV",", XVI",", XVII",", XVIII","","",", XXI",", XXII","","",", XXV",", XXVI","",", XXVIII","","",", XXXI",", XXXII",", XXXIII","",", XXXV",", XXXVI",", XXXVII",", XXXVIII","",", XL","",", XLII",", XLIII",", XLIV","",", XLVI",", XLVII",""]
["Sindicato de Trabajadores Petroleros de la República Mexicana","","","",", IV",", V",", VI",", VII",", VIII","",", X",", XI",", XII","",", XIV",", XV",", XVI",", XVII",", XVIII","","",", XXI",", XXII","","",", XXV",", XXVI","",", XXVIII","","",", XXXI",", XXXII",", XXXIII","",", XXXV",", XXXVI",", XXXVII",", XXXVIII","",", XL","",", XLII",", XLIII",", XLIV","",", XLVI",", XLVII",""]
["Sindicato de Unidad Nacional de los Trabajadores de Acuacultura y Pesca de la Secretaría de Agricultura, Ganadería, Desarrollo Rural, Pesca y Alimentación","","","",", IV",", V",", VI",", VII",", VIII","",", X",", XI",", XII","",", XIV",", XV",", XVI",", XVII",", XVIII","","",", XXI",", XXII","","",", XXV",", XXVI","",", XXVIII","","",", XXXI",", XXXII",", XXXIII","",", XXXV",", XXXVI",", XXXVII",", XXXVIII","",", XL","",", XLII",", XLIII",", XLIV","",", XLVI",", XLVII",""]
["Sindicato de Vanguardia Nacional de los Trabajadores de la Secretaría de Comunicaciones y Transportes","","","",", IV",", V",", VI",", VII",", VIII","",", X",", XI",", XII","",", XIV",", XV",", XVI",", XVII",", XVIII","","",", XXI",", XXII","","",", XXV",", XXVI","",", XXVIII","","",", XXXI",", XXXII",", XXXIII","",", XXXV",", XXXVI",", XXXVII",", XXXVIII","",", XL","",", XLII",", XLIII",", XLIV","",", XLVI",", XLVII",""]
["Sindicato Democrático de Trabajadores de Pesca y Acuacultura de la Secretaría de Agricultura, Ganadería, Desarrollo Rural, Pesca y Alimentación","","","",", IV",", V",", VI",", VII",", VIII","",", X",", XI",", XII","",", XIV",", XV",", XVI",", XVII",", XVIII","","",", XXI",", XXII","","",", XXV",", XXVI","",", XXVIII","","",", XXXI",", XXXII",", XXXIII","",", XXXV",", XXXVI",", XXXVII",", XXXVIII","",", XL","",", XLII",", XLIII",", XLIV","",", XLVI",", XLVII",""]
["Sindicato Gremial de Profesores Investigadores del Colegio de México","","","",", IV",", V",", VI",", VII",", VIII","",", X",", XI",", XII","",", XIV",", XV",", XVI",", XVII",", XVIII","","",", XXI",", XXII","","",", XXV",", XXVI","",", XXVIII","","",", XXXI",", XXXII",", XXXIII","",", XXXV",", XXXVI",", XXXVII",", XXXVIII","",", XL","",", XLII",", XLIII",", XLIV","",", XLVI",", XLVII",""]
["Sindicato Independiente de Académicos del Colegio de Postgraduados","","","",", IV",", V",", VI",", VII",", VIII","",", X",", XI",", XII","",", XIV",", XV",", XVI",", XVII",", XVIII","","",", XXI",", XXII","","",", XXV",", XXVI","",", XXVIII","","",", XXXI",", XXXII",", XXXIII","",", XXXV",", XXXVI",", XXXVII",", XXXVIII","",", XL","",", XLII",", XLIII",", XLIV","",", XLVI",", XLVII",""]
["Sindicato Independiente de Investigadores del Instituto Nacional de Investigaciones Forestales, Agrícolas y Pecuarias","","","",", IV",", V",", VI",", VII",", VIII","",", X",", XI",", XII","",", XIV",", XV",", XVI",", XVII",", XVIII","","",", XXI",", XXII","","",", XXV",", XXVI","",", XXVIII","","",", XXXI",", XXXII",", XXXIII","",", XXXV",", XXXVI",", XXXVII",", XXXVIII","",", XL","",", XLII",", XLIII",", XLIV","",", XLVI",", XLVII",""]
["Sindicato Independiente de Trabajadores de Caminos y Puentes Federales de Ingresos y Servicios Conexos","","","",", IV",", V",", VI",", VII",", VIII","",", X",", XI",", XII","",", XIV",", XV",", XVI",", XVII",", XVIII","","",", XXI",", XXII","","",", XXV",", XXVI","",", XXVIII","","",", XXXI",", XXXII",", XXXIII","",", XXXV",", XXXVI",", XXXVII",", XXXVIII","",", XL","",", XLII",", XLIII",", XLIV","",", XLVI",", XLVII",""]
["Sindicato Independiente de Trabajadores de la Cámara de Senadores","","","",", IV",", V",", VI",", VII",", VIII","",", X",", XI",", XII","",", XIV",", XV",", XVI",", XVII",", XVIII","","",", XXI",", XXII","","",", XXV",", XXVI","",", XXVIII","","",", XXXI",", XXXII",", XXXIII","",", XXXV",", XXXVI",", XXXVII",", XXXVIII","",", XL","",", XLII",", XLIII",", XLIV","",", XLVI",", XLVII",""]
["Sindicato Independiente de Trabajadores de la Procuraduría Federal del Consumidor","","","",", IV",", V",", VI",", VII",", VIII","",", X",", XI",", XII","",", XIV",", XV",", XVI",", XVII",", XVIII","","",", XXI",", XXII","","",", XXV",", XXVI","",", XXVIII","","",", XXXI",", XXXII",", XXXIII","",", XXXV",", XXXVI",", XXXVII",", XXXVIII","",", XL","",", XLII",", XLIII",", XLIV","",", XLVI",", XLVII",""]
["Sindicato Independiente de Trabajadores de la Secretaría de Comunicaciones y Transportes","","","",", IV",", V",", VI",", VII",", VIII","",", X",", XI",", XII","",", XIV",", XV",", XVI",", XVII",", XVIII","","",", XXI",", XXII","","",", XXV",", XXVI","",", XXVIII","","",", XXXI",", XXXII",", XXXIII","",", XXXV",", XXXVI",", XXXVII",", XXXVIII","",", XL","",", XLII",", XLIII",", XLIV","",", XLVI",", XLVII",""]
["Sindicato Independiente de Trabajadores del Colegio de Postgraduados","","","",", IV",", V",", VI",", VII",", VIII","",", X",", XI",", XII","",", XIV",", XV",", XVI",", XVII",", XVIII","","",", XXI",", XXII","","",", XXV",", XXVI","",", XXVIII","","",", XXXI",", XXXII",", XXXIII","",", XXXV",", XXXVI",", XXXVII",", XXXVIII","",", XL","",", XLII",", XLIII",", XLIV","",", XLVI",", XLVII",""]
["Sindicato Independiente Nacional de Trabajadores del Colegio de Bachilleres","","","",", IV",", V",", VI",", VII",", VIII","",", X",", XI",", XII","",", XIV",", XV",", XVI",", XVII",", XVIII","","",", XXI",", XXII","","",", XXV",", XXVI","",", XXVIII","","",", XXXI",", XXXII",", XXXIII","",", XXXV",", XXXVI",", XXXVII",", XXXVIII","",", XL","",", XLII",", XLIII",", XLIV","",", XLVI",", XLVII",""]
["Sindicato Nacional de Controladores de Tránsito Aéreo","","","",", IV",", V",", VI",", VII",", VIII","",", X",", XI",", XII","",", XIV",", XV",", XVI",", XVII",", XVIII","","",", XXI",", XXII","","",", XXV",", XXVI","",", XXVIII","","",", XXXI",", XXXII",", XXXIII","",", XXXV",", XXXVI",", XXXVII",", XXXVIII","",", XL","",", XLII",", XLIII",", XLIV","",", XLVI",", XLVII",""]
["Sindicato Nacional de Empleados del Instituto del Fondo Nacional para el Consumo de los Trabajadores","","","",", IV",", V",", VI",", VII",", VIII","",", X",", XI",", XII","",", XIV",", XV",", XVI",", XVII",", XVIII","","",", XXI",", XXII","","",", XXV",", XXVI","",", XXVIII","","",", XXXI",", XXXII",", XXXIII","",", XXXV",", XXXVI",", XXXVII",", XXXVIII","",", XL","",", XLII",", XLIII",", XLIV","",", XLVI",", XLVII",""]
["Sindicato Nacional de los Trabajadores de la Secretaría de Cultura","","","",", IV",", V",", VI",", VII",", VIII","",", X",", XI",", XII","",", XIV",", XV",", XVI",", XVII",", XVIII","","",", XXI",", XXII","","",", XXV",", XXVI","",", XXVIII","","",", XXXI",", XXXII",", XXXIII","",", XXXV",", XXXVI",", XXXVII",", XXXVIII","",", XL","",", XLII",", XLIII",", XLIV","",", XLVI",", XLVII",""]
["Sindicato Nacional de los Trabajadores de los Tribunales Agrarios","","","",", IV",", V",", VI",", VII",", VIII","",", X",", XI",", XII","",", XIV",", XV",", XVI",", XVII",", XVIII","","",", XXI",", XXII","","",", XXV",", XXVI","",", XXVIII","","",", XXXI",", XXXII",", XXXIII","",", XXXV",", XXXVI",", XXXVII",", XXXVIII","",", XL","",", XLII",", XLIII",", XLIV","",", XLVI",", XLVII",""]
["Sindicato Nacional de los Trabajadores del Consejo Nacional de Fomento Educativo","","","",", IV",", V",", VI",", VII",", VIII","",", X",", XI",", XII","",", XIV",", XV",", XVI",", XVII",", XVIII","","",", XXI",", XXII","","",", XXV",", XXVI","",", XXVIII","","",", XXXI",", XXXII",", XXXIII","",", XXXV",", XXXVI",", XXXVII",", XXXVIII","",", XL","",", XLII",", XLIII",", XLIV","",", XLVI",", XLVII",""]
["Sindicato Nacional de Trabajadores de Pronósticos para la Asistencia Pública","","","",", IV",", V",", VI",", VII",", VIII","",", X",", XI",", XII","",", XIV",", XV",", XVI",", XVII",", XVIII","","",", XXI",", XXII","","",", XXV",", XXVI","",", XXVIII","","",", XXXI",", XXXII",", XXXIII","",", XXXV",", XXXVI",", XXXVII",", XXXVIII","",", XL","",", XLII",", XLIII",", XLIV","",", XLVI",", XLVII",""]
["Sindicato Nacional de Trabajadores de Caminos y Puentes Federales de Ingresos y Servicios Conexos","","","",", IV",", V",", VI",", VII",", VIII","",", X",", XI",", XII","",", XIV",", XV",", XVI",", XVII",", XVIII","","",", XXI",", XXII","","",", XXV",", XXVI","",", XXVIII","","",", XXXI",", XXXII",", XXXIII","",", XXXV",", XXXVI",", XXXVII",", XXXVIII","",", XL","",", XLII",", XLIII",", XLIV","",", XLVI",", XLVII",""]
["Sindicato Nacional de Trabajadores de DICONSA","","","",", IV",", V",", VI",", VII",", VIII","",", X",", XI",", XII","",", XIV",", XV",", XVI",", XVII",", XVIII","","",", XXI",", XXII","","",", XXV",", XXVI","",", XXVIII","","",", XXXI",", XXXII",", XXXIII","",", XXXV",", XXXVI",", XXXVII",", XXXVIII","",", XL","",", XLII",", XLIII",", XLIV","",", XLVI",", XLVII",""]
["Sindicato Nacional de Trabajadores de Hacienda y del Servicio de Administración Tributaria","","","",", IV",", V",", VI",", VII",", VIII","",", X",", XI",", XII","",", XIV",", XV",", XVI",", XVII",", XVIII","","",", XXI",", XXII","","",", XXV",", XXVI","",", XXVIII","","",", XXXI",", XXXII",", XXXIII","",", XXXV",", XXXVI",", XXXVII",", XXXVIII","",", XL","",", XLII",", XLIII",", XLIV","",", XLVI",", XLVII",""]
["Sindicato Nacional de Trabajadores de la Casa de Moneda de México","","","",", IV",", V",", VI",", VII",", VIII","",", X",", XI",", XII","",", XIV",", XV",", XVI",", XVII",", XVIII","","",", XXI",", XXII","","",", XXV",", XXVI","",", XXVIII","","",", XXXI",", XXXII",", XXXIII","",", XXXV",", XXXVI",", XXXVII",", XXXVIII","",", XL","",", XLII",", XLIII",", XLIV","",", XLVI",", XLVII",""]
["Sindicato Nacional de Trabajadores de la Comisión de Operación y Fomento de Actividades Académicas del Instituto Politécnico Nacional","","","",", IV",", V",", VI",", VII",", VIII","",", X",", XI",", XII","",", XIV",", XV",", XVI",", XVII",", XVIII","","",", XXI",", XXII","","",", XXV",", XXVI","",", XXVIII","","",", XXXI",", XXXII",", XXXIII","",", XXXV",", XXXVI",", XXXVII",", XXXVIII","",", XL","",", XLII",", XLIII",", XLIV","",", XLVI",", XLVII",""]
["Sindicato Nacional de Trabajadores de la Comisión Nacional Bancaria y de Valores","","","",", IV",", V",", VI",", VII",", VIII","",", X",", XI",", XII","",", XIV",", XV",", XVI",", XVII",", XVIII","","",", XXI",", XXII","","",", XXV",", XXVI","",", XXVIII","","",", XXXI",", XXXII",", XXXIII","",", XXXV",", XXXVI",", XXXVII",", XXXVIII","",", XL","",", XLII",", XLIII",", XLIV","",", XLVI",", XLVII",""]
["Sindicato Nacional de Trabajadores de la Comisión Nacional de Cultura Física y Deporte","","","",", IV",", V",", VI",", VII",", VIII","",", X",", XI",", XII","",", XIV",", XV",", XVI",", XVII",", XVIII","","",", XXI",", XXII","","",", XXV",", XXVI","",", XXVIII","","",", XXXI",", XXXII",", XXXIII","",", XXXV",", XXXVI",", XXXVII",", XXXVIII","",", XL","",", XLII",", XLIII",", XLIV","",", XLVI",", XLVII",""]
["Sindicato Nacional de Trabajadores de la Comisión Nacional de los Salarios Mínimos","","","",", IV",", V",", VI",", VII",", VIII","",", X",", XI",", XII","",", XIV",", XV",", XVI",", XVII",", XVIII","","",", XXI",", XXII","","",", XXV",", XXVI","",", XXVIII","","",", XXXI",", XXXII",", XXXIII","",", XXXV",", XXXVI",", XXXVII",", XXXVIII","",", XL","",", XLII",", XLIII",", XLIV","",", XLVI",", XLVII",""]
["Sindicato Nacional de Trabajadores de la Comisión Nacional de Seguros y Fianzas","","","",", IV",", V",", VI",", VII",", VIII","",", X",", XI",", XII","",", XIV",", XV",", XVI",", XVII",", XVIII","","",", XXI",", XXII","","",", XXV",", XXVI","",", XXVIII","","",", XXXI",", XXXII",", XXXIII","",", XXXV",", XXXVI",", XXXVII",", XXXVIII","",", XL","",", XLII",", XLIII",", XLIV","",", XLVI",", XLVII",""]
["Sindicato Nacional de Trabajadores de la Comisión Nacional para la Protección y Defensa de los Usuarios de Servicios Financieros (SINACONDUSEF)","","","",", IV",", V",", VI",", VII",", VIII","",", X",", XI",", XII","",", XIV",", XV",", XVI",", XVII",", XVIII","","",", XXI",", XXII","","",", XXV",", XXVI","",", XXVIII","","",", XXXI",", XXXII",", XXXIII","",", XXXV",", XXXVI",", XXXVII",", XXXVIII","",", XL","",", XLII",", XLIII",", XLIV","",", XLVI",", XLVII",""]
["Sindicato Nacional de Trabajadores de la Comisión para la Regularización de la Tenencia de la Tierra","","","",", IV",", V",", VI",", VII",", VIII","",", X",", XI",", XII","",", XIV",", XV",", XVI",", XVII",", XVIII","","",", XXI",", XXII","","",", XXV",", XXVI","",", XXVIII","","",", XXXI",", XXXII",", XXXIII","",", XXXV",", XXXVI",", XXXVII",", XXXVIII","",", XL","",", XLII",", XLIII",", XLIV","",", XLVI",", XLVII",""]
["Sindicato Nacional de Trabajadores de la Educación para Adultos","","","",", IV",", V",", VI",", VII",", VIII","",", X",", XI",", XII","",", XIV",", XV",", XVI",", XVII",", XVIII","","",", XXI",", XXII","","",", XXV",", XXVI","",", XXVIII","","",", XXXI",", XXXII",", XXXIII","",", XXXV",", XXXVI",", XXXVII",", XXXVIII","",", XL","",", XLII",", XLIII",", XLIV","",", XLVI",", XLVII",""]
["Sindicato Nacional de Trabajadores de la Educación","","","",", IV",", V",", VI",", VII",", VIII","",", X",", XI",", XII","",", XIV",", XV",", XVI",", XVII",", XVIII","","",", XXI",", XXII","","",", XXV",", XXVI","",", XXVIII","","",", XXXI",", XXXII",", XXXIII","",", XXXV",", XXXVI",", XXXVII",", XXXVIII","",", XL","",", XLII",", XLIII",", XLIV","",", XLVI",", XLVII",""]
["Sindicato Nacional de Trabajadores de la Industria Aeroportuaria y de Servicios, Similares y Conexos de la República Mexicana","","","",", IV",", V",", VI",", VII",", VIII","",", X",", XI",", XII","",", XIV",", XV",", XVI",", XVII",", XVIII","","",", XXI",", XXII","","",", XXV",", XXVI","",", XXVIII","","",", XXXI",", XXXII",", XXXIII","",", XXXV",", XXXVI",", XXXVII",", XXXVIII","",", XL","",", XLII",", XLIII",", XLIV","",", XLVI",", XLVII",""]
["Sindicato Nacional de Trabajadores de la Lotería Nacional","","","",", IV",", V",", VI",", VII",", VIII","",", X",", XI",", XII","",", XIV",", XV",", XVI",", XVII",", XVIII","","",", XXI",", XXII","","",", XXV",", XXVI","",", XXVIII","","",", XXXI",", XXXII",", XXXIII","",", XXXV",", XXXVI",", XXXVII",", XXXVIII","",", XL","",", XLII",", XLIII",", XLIV","",", XLVI",", XLVII",""]
["Sindicato Nacional de Trabajadores de la Procuraduría Agraria “Felipe Carrillo Puerto”","","","",", IV",", V",", VI",", VII",", VIII","",", X",", XI",", XII","",", XIV",", XV",", XVI",", XVII",", XVIII","","",", XXI",", XXII","","",", XXV",", XXVI","",", XXVIII","","",", XXXI",", XXXII",", XXXIII","",", XXXV",", XXXVI",", XXXVII",", XXXVIII","",", XL","",", XLII",", XLIII",", XLIV","",", XLVI",", XLVII",""]
["Sindicato Nacional de Trabajadores de la Procuraduría General de la República","","","",", IV",", V",", VI",", VII",", VIII","",", X",", XI",", XII","",", XIV",", XV",", XVI",", XVII",", XVIII","","",", XXI",", XXII","","",", XXV",", XXVI","",", XXVIII","","",", XXXI",", XXXII",", XXXIII","",", XXXV",", XXXVI",", XXXVII",", XXXVIII","",", XL","",", XLII",", XLIII",", XLIV","",", XLVI",", XLVII",""]
["Sindicato Nacional de Trabajadores de la Secretaría de Agricultura, Ganadería, Desarrollo Rural, Pesca y Alimentación","","","",", IV",", V",", VI",", VII",", VIII","",", X",", XI",", XII","",", XIV",", XV",", XVI",", XVII",", XVIII","","",", XXI",", XXII","","",", XXV",", XXVI","",", XXVIII","","",", XXXI",", XXXII",", XXXIII","",", XXXV",", XXXVI",", XXXVII",", XXXVIII","",", XL","",", XLII",", XLIII",", XLIV","",", XLVI",", XLVII",""]
["Sindicato Nacional de Trabajadores de la Secretaría de Comunicaciones y Transportes","","","",", IV",", V",", VI",", VII",", VIII","",", X",", XI",", XII","",", XIV",", XV",", XVI",", XVII",", XVIII","","",", XXI",", XXII","","",", XXV",", XXVI","",", XXVIII","","",", XXXI",", XXXII",", XXXIII","",", XXXV",", XXXVI",", XXXVII",", XXXVIII","",", XL","",", XLII",", XLIII",", XLIV","",", XLVI",", XLVII",""]
["Sindicato Nacional de Trabajadores de la Secretaría de Desarrollo Social","","","",", IV",", V",", VI",", VII",", VIII","",", X",", XI",", XII","",", XIV",", XV",", XVI",", XVII",", XVIII","","",", XXI",", XXII","","",", XXV",", XXVI","",", XXVIII","","",", XXXI",", XXXII",", XXXIII","",", XXXV",", XXXVI",", XXXVII",", XXXVIII","",", XL","",", XLII",", XLIII",", XLIV","",", XLVI",", XLVII",""]
["Sindicato Nacional de Trabajadores de la Secretaría de Desarrollo Agrario, Territorial y Urbano","","","",", IV",", V",", VI",", VII",", VIII","",", X",", XI",", XII","",", XIV",", XV",", XVI",", XVII",", XVIII","","",", XXI",", XXII","","",", XXV",", XXVI","",", XXVIII","","",", XXXI",", XXXII",", XXXIII","",", XXXV",", XXXVI",", XXXVII",", XXXVIII","",", XL","",", XLII",", XLIII",", XLIV","",", XLVI",", XLVII",""]
["Sindicato Nacional de Trabajadores de la Secretaría de Economía","","","",", IV",", V",", VI",", VII",", VIII","",", X",", XI",", XII","",", XIV",", XV",", XVI",", XVII",", XVIII","","",", XXI",", XXII","","",", XXV",", XXVI","",", XXVIII","","",", XXXI",", XXXII",", XXXIII","",", XXXV",", XXXVI",", XXXVII",", XXXVIII","",", XL","",", XLII",", XLIII",", XLIV","",", XLVI",", XLVII",""]
["Sindicato Nacional de Trabajadores de la Secretaría de Energía","","","",", IV",", V",", VI",", VII",", VIII","",", X",", XI",", XII","",", XIV",", XV",", XVI",", XVII",", XVIII","","",", XXI",", XXII","","",", XXV",", XXVI","",", XXVIII","","",", XXXI",", XXXII",", XXXIII","",", XXXV",", XXXVI",", XXXVII",", XXXVIII","",", XL","",", XLII",", XLIII",", XLIV","",", XLVI",", XLVII",""]
["Sindicato Nacional de Trabajadores de la Secretaría de Gobernación","","","",", IV",", V",", VI",", VII",", VIII","",", X",", XI",", XII","",", XIV",", XV",", XVI",", XVII",", XVIII","","",", XXI",", XXII","","",", XXV",", XXVI","",", XXVIII","","",", XXXI",", XXXII",", XXXIII","",", XXXV",", XXXVI",", XXXVII",", XXXVIII","",", XL","",", XLII",", XLIII",", XLIV","",", XLVI",", XLVII",""]
["Sindicato Nacional de Trabajadores de la Secretaría de Marina","","","",", IV",", V",", VI",", VII",", VIII","",", X",", XI",", XII","",", XIV",", XV",", XVI",", XVII",", XVIII","","",", XXI",", XXII","","",", XXV",", XXVI","",", XXVIII","","",", XXXI",", XXXII",", XXXIII","",", XXXV",", XXXVI",", XXXVII",", XXXVIII","",", XL","",", XLII",", XLIII",", XLIV","",", XLVI",", XLVII",""]
["Sindicato Nacional de Trabajadores de la Secretaría de Relaciones Exteriores","","","",", IV",", V",", VI",", VII",", VIII","",", X",", XI",", XII","",", XIV",", XV",", XVI",", XVII",", XVIII","","",", XXI",", XXII","","",", XXV",", XXVI","",", XXVIII","","",", XXXI",", XXXII",", XXXIII","",", XXXV",", XXXVI",", XXXVII",", XXXVIII","",", XL","",", XLII",", XLIII",", XLIV","",", XLVI",", XLVII",""]
["Sindicato Nacional de Trabajadores de la Secretaría de Salud","","","",", IV",", V",", VI",", VII",", VIII","",", X",", XI",", XII","",", XIV",", XV",", XVI",", XVII",", XVIII","","",", XXI",", XXII","","",", XXV",", XXVI","",", XXVIII","","",", XXXI",", XXXII",", XXXIII","",", XXXV",", XXXVI",", XXXVII",", XXXVIII","",", XL","",", XLII",", XLIII",", XLIV","",", XLVI",", XLVII",""]
["Sindicato Nacional de Trabajadores de la Secretaría de Turismo","","","",", IV",", V",", VI",", VII",", VIII","",", X",", XI",", XII","",", XIV",", XV",", XVI",", XVII",", XVIII","","",", XXI",", XXII","","",", XXV",", XXVI","",", XXVIII","","",", XXXI",", XXXII",", XXXIII","",", XXXV",", XXXVI",", XXXVII",", XXXVIII","",", XL","",", XLII",", XLIII",", XLIV","",", XLVI",", XLVII",""]
["Sindicato Nacional de Trabajadores de la Secretaría del Medio Ambiente y Recursos Naturales","","","",", IV",", V",", VI",", VII",", VIII","",", X",", XI",", XII","",", XIV",", XV",", XVI",", XVII",", XVIII","","",", XXI",", XXII","","",", XXV",", XXVI","",", XXVIII","","",", XXXI",", XXXII",", XXXIII","",", XXXV",", XXXVI",", XXXVII",", XXXVIII","",", XL","",", XLII",", XLIII",", XLIV","",", XLVI",", XLVII",""]
["Sindicato Nacional de Trabajadores de la Secretaría del Trabajo y Previsión Social","","","",", IV",", V",", VI",", VII",", VIII","",", X",", XI",", XII","",", XIV",", XV",", XVI",", XVII",", XVIII","","",", XXI",", XXII","","",", XXV",", XXVI","",", XXVIII","","",", XXXI",", XXXII",", XXXIII","",", XXXV",", XXXVI",", XXXVII",", XXXVIII","",", XL","",", XLII",", XLIII",", XLIV","",", XLVI",", XLVII",""]
["Sindicato Nacional de Trabajadores del Banco del Ahorro Nacional y Servicios Financieros","","","",", IV",", V",", VI",", VII",", VIII","",", X",", XI",", XII","",", XIV",", XV",", XVI",", XVII",", XVIII","","",", XXI",", XXII","","",", XXV",", XXVI","",", XXVIII","","",", XXXI",", XXXII",", XXXIII","",", XXXV",", XXXVI",", XXXVII",", XXXVIII","",", XL","",", XLII",", XLIII",", XLIV","",", XLVI",", XLVII",""]
["Sindicato Nacional de Trabajadores del Fondo Nacional de Fomento al Turismo","","","",", IV",", V",", VI",", VII",", VIII","",", X",", XI",", XII","",", XIV",", XV",", XVI",", XVII",", XVIII","","",", XXI",", XXII","","",", XXV",", XXVI","",", XXVIII","","",", XXXI",", XXXII",", XXXIII","",", XXXV",", XXXVI",", XXXVII",", XXXVIII","",", XL","",", XLII",", XLIII",", XLIV","",", XLVI",", XLVII",""]
["Sindicato Nacional de Trabajadores del Instituto de Seguridad y Servicios Sociales de los Trabajadores del Estado","","","",", IV",", V",", VI",", VII",", VIII","",", X",", XI",", XII","",", XIV",", XV",", XVI",", XVII",", XVIII","","",", XXI",", XXII","","",", XXV",", XXVI","",", XXVIII","","",", XXXI",", XXXII",", XXXIII","",", XXXV",", XXXVI",", XXXVII",", XXXVIII","",", XL","",", XLII",", XLIII",", XLIV","",", XLVI",", XLVII",""]
["Sindicato Nacional de Trabajadores del Instituto del Fondo Nacional de la Vivienda para los Trabajadores","","","",", IV",", V",", VI",", VII",", VIII","",", X",", XI",", XII","",", XIV",", XV",", XVI",", XVII",", XVIII","","",", XXI",", XXII","","",", XXV",", XXVI","",", XXVIII","","",", XXXI",", XXXII",", XXXIII","",", XXXV",", XXXVI",", XXXVII",", XXXVIII","",", XL","",", XLII",", XLIII",", XLIV","",", XLVI",", XLVII",""]
["Sindicato Nacional de Trabajadores del Instituto Mexicano de la Radio","","","",", IV",", V",", VI",", VII",", VIII","",", X",", XI",", XII","",", XIV",", XV",", XVI",", XVII",", XVIII","","",", XXI",", XXII","","",", XXV",", XXVI","",", XXVIII","","",", XXXI",", XXXII",", XXXIII","",", XXXV",", XXXVI",", XXXVII",", XXXVIII","",", XL","",", XLII",", XLIII",", XLIV","",", XLVI",", XLVII",""]
["Sindicato Nacional de Trabajadores del Instituto Nacional de Estadística y Geografía","","","",", IV",", V",", VI",", VII",", VIII","",", X",", XI",", XII","",", XIV",", XV",", XVI",", XVII",", XVIII","","",", XXI",", XXII","","",", XXV",", XXVI","",", XXVIII","","",", XXXI",", XXXII",", XXXIII","",", XXXV",", XXXVI",", XXXVII",", XXXVIII","",", XL","",", XLII",", XLIII",", XLIV","",", XLVI",", XLVII",""]
["Sindicato Nacional de Trabajadores del Instituto Nacional de la Infraestructura Física Educativa","","","",", IV",", V",", VI",", VII",", VIII","",", X",", XI",", XII","",", XIV",", XV",", XVI",", XVII",", XVIII","","",", XXI",", XXII","","",", XXV",", XXVI","",", XXVIII","","",", XXXI",", XXXII",", XXXIII","",", XXXV",", XXXVI",", XXXVII",", XXXVIII","",", XL","",", XLII",", XLIII",", XLIV","",", XLVI",", XLVII",""]
["Sindicato Nacional de Trabajadores del Instituto Nacional de las Personas Adultas Mayores","","","",", IV",", V",", VI",", VII",", VIII","",", X",", XI",", XII","",", XIV",", XV",", XVI",", XVII",", XVIII","","",", XXI",", XXII","","",", XXV",", XXVI","",", XXVIII","","",", XXXI",", XXXII",", XXXIII","",", XXXV",", XXXVI",", XXXVII",", XXXVIII","",", XL","",", XLII",", XLIII",", XLIV","",", XLVI",", XLVII",""]
["Sindicato Nacional de Trabajadores del Seguro Social","","","",", IV",", V",", VI",", VII",", VIII","",", X",", XI",", XII","",", XIV",", XV",", XVI",", XVII",", XVIII","","",", XXI",", XXII","","",", XXV",", XXVI","",", XXVIII","","",", XXXI",", XXXII",", XXXIII","",", XXXV",", XXXVI",", XXXVII",", XXXVIII","",", XL","",", XLII",", XLIII",", XLIV","",", XLVI",", XLVII",""]
["Sindicato Nacional de Trabajadores del Servicio Postal Mexicano “Correos de México”","","","",", IV",", V",", VI",", VII",", VIII","",", X",", XI",", XII","",", XIV",", XV",", XVI",", XVII",", XVIII","","",", XXI",", XXII","","",", XXV",", XXVI","",", XXVIII","","",", XXXI",", XXXII",", XXXIII","",", XXXV",", XXXVI",", XXXVII",", XXXVIII","",", XL","",", XLII",", XLIII",", XLIV","",", XLVI",", XLVII",""]
["Sindicato Nacional de Trabajadores del Sistema Nacional para el Desarrollo Integral de la Familia","","","",", IV",", V",", VI",", VII",", VIII","",", X",", XI",", XII","",", XIV",", XV",", XVI",", XVII",", XVIII","","",", XXI",", XXII","","",", XXV",", XXVI","",", XXVIII","","",", XXXI",", XXXII",", XXXIII","",", XXXV",", XXXVI",", XXXVII",", XXXVIII","",", XL","",", XLII",", XLIII",", XLIV","",", XLVI",", XLVII",""]
["Sindicato Nacional de Trabajadores del Tribunal Federal de Justicia Fiscal y Administrativa","","","",", IV",", V",", VI",", VII",", VIII","",", X",", XI",", XII","",", XIV",", XV",", XVI",", XVII",", XVIII","","",", XXI",", XXII","","",", XXV",", XXVI","",", XXVIII","","",", XXXI",", XXXII",", XXXIII","",", XXXV",", XXXVI",", XXXVII",", XXXVIII","",", XL","",", XLII",", XLIII",", XLIV","",", XLVI",", XLVII",""]
["Sindicato Nacional de Trabajadores Indigenistas","","","",", IV",", V",", VI",", VII",", VIII","",", X",", XI",", XII","",", XIV",", XV",", XVI",", XVII",", XVIII","","",", XXI",", XXII","","",", XXV",", XXVI","",", XXVIII","","",", XXXI",", XXXII",", XXXIII","",", XXXV",", XXXVI",", XXXVII",", XXXVIII","",", XL","",", XLII",", XLIII",", XLIV","",", XLVI",", XLVII",""]
["Sindicato Nacional de Unidad de los Trabajadores de la Secretaría de Comunicaciones y Transportes","","","",", IV",", V",", VI",", VII",", VIII","",", X",", XI",", XII","",", XIV",", XV",", XVI",", XVII",", XVIII","","",", XXI",", XXII","","",", XXV",", XXVI","",", XXVIII","","",", XXXI",", XXXII",", XXXIII","",", XXXV",", XXXVI",", XXXVII",", XXXVIII","",", XL","",", XLII",", XLIII",", XLIV","",", XLVI",", XLVII",""]
["Sindicato Nacional Democrático de Trabajadores de la Secretaría de Desarrollo Agrario, Territorial y Urbano","","","",", IV",", V",", VI",", VII",", VIII","",", X",", XI",", XII","",", XIV",", XV",", XVI",", XVII",", XVIII","","",", XXI",", XXII","","",", XXV",", XXVI","",", XXVIII","","",", XXXI",", XXXII",", XXXIII","",", XXXV",", XXXVI",", XXXVII",", XXXVIII","",", XL","",", XLII",", XLIII",", XLIV","",", XLVI",", XLVII",""]
["Sindicato Nacional Democrático de Trabajadores de los Tribunales Agrarios","","","",", IV",", V",", VI",", VII",", VIII","",", X",", XI",", XII","",", XIV",", XV",", XVI",", XVII",", XVIII","","",", XXI",", XXII","","",", XXV",", XXVI","",", XXVIII","","",", XXXI",", XXXII",", XXXIII","",", XXXV",", XXXVI",", XXXVII",", XXXVIII","",", XL","",", XLII",", XLIII",", XLIV","",", XLVI",", XLVII",""]
["Sindicato Nacional Independiente de los Trabajadores de la Secretaría de Economía","","","",", IV",", V",", VI",", VII",", VIII","",", X",", XI",", XII","",", XIV",", XV",", XVI",", XVII",", XVIII","","",", XXI",", XXII","","",", XXV",", XXVI","",", XXVIII","","",", XXXI",", XXXII",", XXXIII","",", XXXV",", XXXVI",", XXXVII",", XXXVIII","",", XL","",", XLII",", XLIII",", XLIV","",", XLVI",", XLVII",""]
["Sindicato Nacional Independiente de Trabajadores de la Procuraduría General de la Republica","","","",", IV",", V",", VI",", VII",", VIII","",", X",", XI",", XII","",", XIV",", XV",", XVI",", XVII",", XVIII","","",", XXI",", XXII","","",", XXV",", XXVI","",", XXVIII","","",", XXXI",", XXXII",", XXXIII","",", XXXV",", XXXVI",", XXXVII",", XXXVIII","",", XL","",", XLII",", XLIII",", XLIV","",", XLVI",", XLVII",""]
["Sindicato Nacional Independiente de Trabajadores de la Secretaría de Desarrollo Agrario, Territorial y Urbano","","","",", IV",", V",", VI",", VII",", VIII","",", X",", XI",", XII","",", XIV",", XV",", XVI",", XVII",", XVIII","","",", XXI",", XXII","","",", XXV",", XXVI","",", XXVIII","","",", XXXI",", XXXII",", XXXIII","",", XXXV",", XXXVI",", XXXVII",", XXXVIII","",", XL","",", XLII",", XLIII",", XLIV","",", XLVI",", XLVII",""]
["Sindicato Nacional Independiente de Trabajadores de la Secretaría de Desarrollo Social","","","",", IV",", V",", VI",", VII",", VIII","",", X",", XI",", XII","",", XIV",", XV",", XVI",", XVII",", XVIII","","",", XXI",", XXII","","",", XXV",", XXVI","",", XXVIII","","",", XXXI",", XXXII",", XXXIII","",", XXXV",", XXXVI",", XXXVII",", XXXVIII","",", XL","",", XLII",", XLIII",", XLIV","",", XLVI",", XLVII",""]
["Sindicato Nacional Independiente de Trabajadores de la Secretaría del Medio Ambiente y Recursos Naturales","","","",", IV",", V",", VI",", VII",", VIII","",", X",", XI",", XII","",", XIV",", XV",", XVI",", XVII",", XVIII","","",", XXI",", XXII","","",", XXV",", XXVI","",", XXVIII","","",", XXXI",", XXXII",", XXXIII","",", XXXV",", XXXVI",", XXXVII",", XXXVIII","",", XL","",", XLII",", XLIII",", XLIV","",", XLVI",", XLVII",""]
["Sindicato Nacional Único y Democrático de los Trabajadores del Banco Nacional de Comercio Exterior","","","",", IV",", V",", VI",", VII",", VIII","",", X",", XI",", XII","",", XIV",", XV",", XVI",", XVII",", XVIII","","",", XXI",", XXII","","",", XXV",", XXVI","",", XXVIII","","",", XXXI",", XXXII",", XXXIII","",", XXXV",", XXXVI",", XXXVII",", XXXVIII","",", XL","",", XLII",", XLIII",", XLIV","",", XLVI",", XLVII",""]
["Sindicato Revolucionario de los Trabajadores de la Auditoría Superior de la Federación de la Honorable Cámara de Diputados","","","",", IV",", V",", VI",", VII",", VIII","",", X",", XI",", XII","",", XIV",", XV",", XVI",", XVII",", XVIII","","",", XXI",", XXII","","",", XXV",", XXVI","",", XXVIII","","",", XXXI",", XXXII",", XXXIII","",", XXXV",", XXXVI",", XXXVII",", XXXVIII","",", XL","",", XLII",", XLIII",", XLIV","",", XLVI",", XLVII",""]
["Sindicato Único de Personal Técnico y Administrativo del Centro de Investigaciones Biológicas del Noroeste","","","",", IV",", V",", VI",", VII",", VIII","",", X",", XI",", XII","",", XIV",", XV",", XVI",", XVII",", XVIII","","",", XXI",", XXII","","",", XXV",", XXVI","",", XXVIII","","",", XXXI",", XXXII",", XXXIII","",", XXXV",", XXXVI",", XXXVII",", XXXVIII","",", XL","",", XLII",", XLIII",", XLIV","",", XLVI",", XLVII",""]
["Sindicato Único de Trabajadores Académicos de la Universidad Autónoma Agraria Antonio Narro","","","",", IV",", V",", VI",", VII",", VIII","",", X",", XI",", XII","",", XIV",", XV",", XVI",", XVII",", XVIII","","",", XXI",", XXII","","",", XXV",", XXVI","",", XXVIII","","",", XXXI",", XXXII",", XXXIII","",", XXXV",", XXXVI",", XXXVII",", XXXVIII","",", XL","",", XLII",", XLIII",", XLIV","",", XLVI",", XLVII",""]
["Sindicato Único de Trabajadores de Biológicos y Reactivos","","","",", IV",", V",", VI",", VII",", VIII","",", X",", XI",", XII","",", XIV",", XV",", XVI",", XVII",", XVIII","","",", XXI",", XXII","","",", XXV",", XXVI","",", XXVIII","","",", XXXI",", XXXII",", XXXIII","",", XXXV",", XXXVI",", XXXVII",", XXXVIII","",", XL","",", XLII",", XLIII",", XLIV","",", XLVI",", XLVII",""]
["Sindicato Único de Trabajadores de la Industria Nuclear","","","",", IV",", V",", VI",", VII",", VIII","",", X",", XI",", XII","",", XIV",", XV",", XVI",", XVII",", XVIII","","",", XXI",", XXII","","",", XXV",", XXVI","",", XXVIII","","",", XXXI",", XXXII",", XXXIII","",", XXXV",", XXXVI",", XXXVII",", XXXVIII","",", XL","",", XLII",", XLIII",", XLIV","",", XLVI",", XLVII",""]
["Sindicato Único de Trabajadores de la Productora Nacional de Biológicos Veterinarios","","","",", IV",", V",", VI",", VII",", VIII","",", X",", XI",", XII","",", XIV",", XV",", XVI",", XVII",", XVIII","","",", XXI",", XXII","","",", XXV",", XXVI","",", XXVIII","","",", XXXI",", XXXII",", XXXIII","",", XXXV",", XXXVI",", XXXVII",", XXXVIII","",", XL","",", XLII",", XLIII",", XLIV","",", XLVI",", XLVII",""]
["Sindicato Único de Trabajadores de la Sociedad Hipotecaria Federal","","","",", IV",", V",", VI",", VII",", VIII","",", X",", XI",", XII","",", XIV",", XV",", XVI",", XVII",", XVIII","","",", XXI",", XXII","","",", XXV",", XXVI","",", XXVIII","","",", XXXI",", XXXII",", XXXIII","",", XXXV",", XXXVI",", XXXVII",", XXXVIII","",", XL","",", XLII",", XLIII",", XLIV","",", XLVI",", XLVII",""]
["Sindicato Único de Trabajadores de la Universidad Autónoma Agraria Antonio Narro","","","",", IV",", V",", VI",", VII",", VIII","",", X",", XI",", XII","",", XIV",", XV",", XVI",", XVII",", XVIII","","",", XXI",", XXII","","",", XXV",", XXVI","",", XXVIII","","",", XXXI",", XXXII",", XXXIII","",", XXXV",", XXXVI",", XXXVII",", XXXVIII","",", XL","",", XLII",", XLIII",", XLIV","",", XLVI",", XLVII",""]
["Sindicato Único de Trabajadores de Notimex","","","",", IV",", V",", VI",", VII",", VIII","",", X",", XI",", XII","",", XIV",", XV",", XVI",", XVII",", XVIII","","",", XXI",", XXII","","",", XXV",", XXVI","",", XXVIII","","",", XXXI",", XXXII",", XXXIII","",", XXXV",", XXXVI",", XXXVII",", XXXVIII","",", XL","",", XLII",", XLIII",", XLIV","",", XLVI",", XLVII",""]
["Sindicato Único de Trabajadores del Banco de México","","","",", IV",", V",", VI",", VII",", VIII","",", X",", XI",", XII","",", XIV",", XV",", XVI",", XVII",", XVIII","","",", XXI",", XXII","","",", XXV",", XXVI","",", XXVIII","","",", XXXI",", XXXII",", XXXIII","",", XXXV",", XXXVI",", XXXVII",", XXXVIII","",", XL","",", XLII",", XLIII",", XLIV","",", XLVI",", XLVII",""]
["Sindicato Único de Trabajadores del Centro de Investigación y de Estudios Avanzados del Instituto Politécnico Nacional","","","",", IV",", V",", VI",", VII",", VIII","",", X",", XI",", XII","",", XIV",", XV",", XVI",", XVII",", XVIII","","",", XXI",", XXII","","",", XXV",", XXVI","",", XXVIII","","",", XXXI",", XXXII",", XXXIII","",", XXXV",", XXXVI",", XXXVII",", XXXVIII","",", XL","",", XLII",", XLIII",", XLIV","",", XLVI",", XLVII",""]
["Sindicato Único de Trabajadores del Centro de Investigación y Estudios Superiores en Antropología Social","","","",", IV",", V",", VI",", VII",", VIII","",", X",", XI",", XII","",", XIV",", XV",", XVI",", XVII",", XVIII","","",", XXI",", XXII","","",", XXV",", XXVI","",", XXVIII","","",", XXXI",", XXXII",", XXXIII","",", XXXV",", XXXVI",", XXXVII",", XXXVIII","",", XL","",", XLII",", XLIII",", XLIV","",", XLVI",", XLVII",""]
["Sindicato Único de Trabajadores del Colegio de México","","","",", IV",", V",", VI",", VII",", VIII","",", X",", XI",", XII","",", XIV",", XV",", XVI",", XVII",", XVIII","","",", XXI",", XXII","","",", XXV",", XXVI","",", XXVIII","","",", XXXI",", XXXII",", XXXIII","",", XXXV",", XXXVI",", XXXVII",", XXXVIII","",", XL","",", XLII",", XLIII",", XLIV","",", XLVI",", XLVII",""]
["Sindicato Único de Trabajadores del Colegio Nacional de Educación Profesional Técnica","","","",", IV",", V",", VI",", VII",", VIII","",", X",", XI",", XII","",", XIV",", XV",", XVI",", XVII",", XVIII","","",", XXI",", XXII","","",", XXV",", XXVI","",", XXVIII","","",", XXXI",", XXXII",", XXXIII","",", XXXV",", XXXVI",", XXXVII",", XXXVIII","",", XL","",", XLII",", XLIII",", XLIV","",", XLVI",", XLVII",""]
["Sindicato Único de Trabajadores del Fondo de Cultura Económica","","","",", IV",", V",", VI",", VII",", VIII","",", X",", XI",", XII","",", XIV",", XV",", XVI",", XVII",", XVIII","","",", XXI",", XXII","","",", XXV",", XXVI","",", XXVIII","","",", XXXI",", XXXII",", XXXIII","",", XXXV",", XXXVI",", XXXVII",", XXXVIII","",", XL","",", XLII",", XLIII",", XLIV","",", XLVI",", XLVII",""]
["Sindicato Único de Trabajadores del Instituto Mexicano de la Propiedad Industrial","","","",", IV",", V",", VI",", VII",", VIII","",", X",", XI",", XII","",", XIV",", XV",", XVI",", XVII",", XVIII","","",", XXI",", XXII","","",", XXV",", XXVI","",", XXVIII","","",", XXXI",", XXXII",", XXXIII","",", XXXV",", XXXVI",", XXXVII",", XXXVIII","",", XL","",", XLII",", XLIII",", XLIV","",", XLVI",", XLVII",""]
["Sindicato Único de Trabajadores del Instituto Nacional de Ciencias Médicas y Nutrición “Salvador Zubirán”","","","",", IV",", V",", VI",", VII",", VIII","",", X",", XI",", XII","",", XIV",", XV",", XVI",", XVII",", XVIII","","",", XXI",", XXII","","",", XXV",", XXVI","",", XXVIII","","",", XXXI",", XXXII",", XXXIII","",", XXXV",", XXXVI",", XXXVII",", XXXVIII","",", XL","",", XLII",", XLIII",", XLIV","",", XLVI",", XLVII",""]
["Sindicato Único de Trabajadores del Instituto Nacional de Pediatría","","","",", IV",", V",", VI",", VII",", VIII","",", X",", XI",", XII","",", XIV",", XV",", XVI",", XVII",", XVIII","","",", XXI",", XXII","","",", XXV",", XXVI","",", XXVIII","","",", XXXI",", XXXII",", XXXIII","",", XXXV",", XXXVI",", XXXVII",", XXXVIII","",", XL","",", XLII",", XLIII",", XLIV","",", XLVI",", XLVII",""]
["Sindicato Único de Trabajadores del Instituto Nacional de Perinatología","","","",", IV",", V",", VI",", VII",", VIII","",", X",", XI",", XII","",", XIV",", XV",", XVI",", XVII",", XVIII","","",", XXI",", XXII","","",", XXV",", XXVI","",", XXVIII","","",", XXXI",", XXXII",", XXXIII","",", XXXV",", XXXVI",", XXXVII",", XXXVIII","",", XL","",", XLII",", XLIII",", XLIV","",", XLVI",", XLVII",""]
["Sindicato Único de Trabajadores Democráticos de la Secretaría de Medio Ambiente y Recursos Naturales","","","",", IV",", V",", VI",", VII",", VIII","",", X",", XI",", XII","",", XIV",", XV",", XVI",", XVII",", XVIII","","",", XXI",", XXII","","",", XXV",", XXVI","",", XXVIII","","",", XXXI",", XXXII",", XXXIII","",", XXXV",", XXXVI",", XXXVII",", XXXVIII","",", XL","",", XLII",", XLIII",", XLIV","",", XLVI",", XLVII",""]
["Sindicato Único de Trabajadores Docentes CONALEP","","","",", IV",", V",", VI",", VII",", VIII","",", X",", XI",", XII","",", XIV",", XV",", XVI",", XVII",", XVIII","","",", XXI",", XXII","","",", XXV",", XXVI","",", XXVIII","","",", XXXI",", XXXII",", XXXIII","",", XXXV",", XXXVI",", XXXVII",", XXXVIII","",", XL","",", XLII",", XLIII",", XLIV","",", XLVI",", XLVII",""]
["Sindicato Único de Trabajadores Electricistas de la República Mexicana (SUTERM)","","","",", IV",", V",", VI",", VII",", VIII","",", X",", XI",", XII","",", XIV",", XV",", XVI",", XVII",", XVIII","","",", XXI",", XXII","","",", XXV",", XXVI","",", XXVIII","","",", XXXI",", XXXII",", XXXIII","",", XXXV",", XXXVI",", XXXVII",", XXXVIII","",", XL","",", XLII",", XLIII",", XLIV","",", XLVI",", XLVII",""]
["Sindicato Único Nacional de Trabajadores de Nacional Financiera","","","",", IV",", V",", VI",", VII",", VIII","",", X",", XI",", XII","",", XIV",", XV",", XVI",", XVII",", XVIII","","",", XXI",", XXII","","",", XXV",", XXVI","",", XXVIII","","",", XXXI",", XXXII",", XXXIII","",", XXXV",", XXXVI",", XXXVII",", XXXVIII","",", XL","",", XLII",", XLIII",", XLIV","",", XLVI",", XLVII",""]
["Sindicato Único Nacional de Trabajadores del Banco Nacional de Obras y Servicios Públicos","","","",", IV",", V",", VI",", VII",", VIII","",", X",", XI",", XII","",", XIV",", XV",", XVI",", XVII",", XVIII","","",", XXI",", XXII","","",", XXV",", XXVI","",", XXVIII","","",", XXXI",", XXXII",", XXXIII","",", XXXV",", XXXVI",", XXXVII",", XXXVIII","",", XL","",", XLII",", XLIII",", XLIV","",", XLVI",", XLVII",""]
["Sindicato Único Nacional de Trabajadores del Instituto Nacional de Estadística y Geografía","","","",", IV",", V",", VI",", VII",", VIII","",", X",", XI",", XII","",", XIV",", XV",", XVI",", XVII",", XVIII","","",", XXI",", XXII","","",", XXV",", XXVI","",", XXVIII","","",", XXXI",", XXXII",", XXXIII","",", XXXV",", XXXVI",", XXXVII",", XXXVIII","",", XL","",", XLII",", XLIII",", XLIV","",", XLVI",", XLVII",""]
["Sindicato Unitario de Trabajadores del Instituto Nacional de Astrofísica, Óptica y Electrónica","","","",", IV",", V",", VI",", VII",", VIII","",", X",", XI",", XII","",", XIV",", XV",", XVI",", XVII",", XVIII","","",", XXI",", XXII","","",", XXV",", XXVI","",", XXVIII","","",", XXXI",", XXXII",", XXXIII","",", XXXV",", XXXVI",", XXXVII",", XXXVIII","",", XL","",", XLII",", XLIII",", XLIV","",", XLVI",", XLVII",""]

{"sheet":"Cat. SO","index":2,"n_rows":102,"n_cols":3,"rows_kept":102,"cut":false,"hidden":true,"merged":[]}
["Volver al índice","Clave de SO","Nombre de SO"]
["Asociaciones Políticas",null,"Camino Democrático"]
["Asociaciones Políticas",null,"Corazón Hidrocálido"]
["Asociaciones Políticas",null,"Vida Digna Ciudadana"]
["Asociaciones Políticas",null,"Voces Hidrocálidas"]
["Ejecutivo",null,"Centro de Competitividad e Innovación del Estado de Aguascalientes"]
["Ejecutivo",null,"Colegio de Educación Profesional Técnica del Estado de Aguascalientes (CEPTEA)"]
["Ejecutivo",null,"Colegio de Estudios Científicos y Tecnológicos del Estado de Aguascalientes (CECYTEA)"]
["Ejecutivo",null,"Comisión Estatal de Arbitraje Médico  (COESAMED)"]
["Ejecutivo",null,"Coordinación de Comunicación Social"]
["Ejecutivo",null,"Coordinación Estatal de Planeación y Proyectos"]
["Ejecutivo",null,"Escuela Normal de Aguascalientes"]
["Ejecutivo",null,"Instituto de Seguridad y Servicios Sociales para los Servidores Públicos del Estado de Aguascalientes (ISSSSPEA)"]
["Ejecutivo",null,"Instituto Cultural de Aguascalientes"]
["Ejecutivo",null,"Instituto de Asesoría y Defensoría Pública del Estado de Aguascalientes"]
["Ejecutivo",null,"Instituto de Capacitación para el Trabajo del Estado de Aguascalientes"]
["Ejecutivo",null,"Instituto de Educación de Aguascalientes"]
["Ejecutivo",null,"Instituto de Infraestructura Física  Educativa del Estado de Aguascalientes"]
["Ejecutivo",null,"Instituto de Servicios de Salud del Estado de  Aguascalientes"]
["Ejecutivo",null,"Instituto de Vivienda Social y Ordenamiento de la Propiedad del Estado de Aguascalientes"]
["Ejecutivo",null,"Instituto del Agua "]
["Ejecutivo",null,"Instituto del Deporte del Estado de Aguascalientes"]
["Ejecutivo",null,"Instituto Estatal de Gestión Empresarial y Mejora Regulatoria"]
["Ejecutivo",null,"Instituto Estatal de Seguridad Pública de Aguascalientes"]
["Ejecutivo",null,"Instituto para el Desarrollo de la Sociedad del Conocimiento del Estado de Aguascalientes"]
["Ejecutivo",null,"Instituto para la Educación de las Personas Jóvenes y Adultas"]
["Ejecutivo",null,"Oficialía Mayor"]
["Ejecutivo",null,"Secretaría Particular"]
["Ejecutivo",null,"Operadora de Fideicomisos del Estado de Aguascalientes, S.A de C.V. (OFISA)"]
["Ejecutivo",null,"Órgano Implementador del Sistema de Justicia Penal Acusatorio en el Estado "]
["Ejecutivo",null,"Patronato de la Feria Nacional de San Marcos"]
["Ejecutivo",null,"Procuraduría Estatal de Protección al Ambiente (PROESPA)"]
["Ejecutivo",null,"Radio y Televisión de Aguascalientes "]
["Ejecutivo",null,"Regimén Estatal de Protección Social en Salud del Estado de Aguascalientes (SEGURO POPULAR)"]
["Ejecutivo",null,"Secretaría de Bienestar y Desarrollo Social   "]
["Ejecutivo",null,"Secretaría de Desarrollo Económico        "]
["Ejecutivo",null,"Secretaría de Desarrollo Rural y Agroempresarial"]
["Ejecutivo",null,"Secretaría de Finanzas  "]
["Ejecutivo",null,"Secretaría de Fiscalización y Rendición de Cuentas       "]
["Ejecutivo",null,"Secretaría de Gestión Urbanística y Ordenamiento Territorial"]
["Ejecutivo",null,"Secretaría General de Gobierno     "]
["Ejecutivo",null,"Secretaría de Infraestructura y Comunicaciones       "]
["Ejecutivo",null,"Secretaría de la Juventud del Estado de Aguascalientes"]
["Ejecutivo",null,"Secretaría del Medio Ambiente     "]
["Ejecutivo",null,"Secretaría de Seguridad Pública de Aguascalientes"]
["Ejecutivo",null,"Secretaría de Turismo      "]
["Ejecutivo",null,"Secretariado Ejecutivo del Sistema Estatal de Seguridad Pública"]
["Ejecutivo",null,"Sistema para el Desarrollo Integral de la Familia (DIF)  "]
["Ejecutivo",null,"Universidad Politécnica de Aguascalientes    "]
["Ejecutivo",null,"Universidad Tecnológica de Aguascalientes    "]
["Ejecutivo",null,"Hospital de Psiquiatría Dr. Gustavo León Mojica García"]
["Ejecutivo",null,"Universidad Tecnológica de Calvillo"]
["Ejecutivo",null,"Centenario Hospital Miguel Hidalgo "]
["Ejecutivo",null,"Universidad Tecnológica del Norte de Aguascalientes Campues Rincón de Romos"]
["Ejecutivo",null,"Universidad Tecnológica Campus El Retoño"]
["Fondos y Fideicomisos",null,"Fideicomiso Ayuda a un Niño"]
["Fondos y Fideicomisos",null,"Fideicomiso Ayuda a una Persona con Discapacidad"]
["Fondos y Fideicomisos",null,"Fideicomiso Ayuda a una Persona Senecta"]
["Fondos y Fideicomisos",null,"Fideicomiso de Administración e Inversión para la Operación de la Isla San Marcos"]
["Fondos y Fideicomisos",null,"Fideicomiso de Desarrollos Industriales de Aguascalientes"]
["Fondos y Fideicomisos",null,"Fideicomiso de Inversión y Administración para el Desarrollo Económico del Estado de Aguascalientes "]
["Fondos y Fideicomisos",null,"Fideicomiso de Inversión y Administración para la Promoción Turística del Estado de Aguascalientes "]
["Fondos y Fideicomisos",null,"Fideicomiso Fondo de Fomento Agropecuario del Estado de Aguascalientes  secretaria de desarrollo rural"]
["Fondos y Fideicomisos",null,"Fideicomiso Tres Centurias"]
["Fondos y Fideicomisos",null,"Fondo Aguascalientes"]
["Fondos y Fideicomisos",null,"Fondo Asunción "]
["Fondos y Fideicomisos",null,"Fondo de Desastres Naturales del Estado de Aguascalientes"]
["Fondos y Fideicomisos",null,"Fondo de Vivienda para el Magisterio"]
["Fondos y Fideicomisos",null,"Fondo Progreso"]
["Legislativo",null,"Órgano Superior de Fiscalización del Estado de Aguascalientes"]
["Legislativo",null,"H.Congreso del Estado de Aguascalientes"]
["Organismos Autónomos",null,"Comisión Estatal de Derechos Humanos del Estado de Aguascalientes"]
["Organismos Autónomos",null,"Fiscalía General del Estado de Aguascalientes "]
["Organismos Autónomos",null,"Instituto Estatal Electoral del Estado de Aguascalientes "]
["Organismos Autónomos",null,"Instituto de Transparencia del Estado de Aguascalientes "]
["Organismos Autónomos",null,"Universidad Autónoma de Aguascalientes"]
["Judicial",null,"Supremo Tribunal de Justicia del Estado de Aguascalientes "]
["Municipios",null,"Aguascalientes "]
["Municipios",null,"Asientos"]
["Municipios",null,"Calvillo"]
["Municipios",null,"Cosío"]
["Municipios",null,"El Llano"]
["Municipios",null,"Jesús María"]
["Municipios",null,"Pabellón de Arteaga"]
["Municipios",null,"Rincón de Romos"]
["Municipios",null,"San Francisco de los Romo"]
["Municipios",null,"San José de Gracia"]
["Municipios",null,"Tepezalá"]
["Municipios",null,"Comisión Ciudadana de Agua Potable y Alcantarillado del Municipio de Aguascalientes (CCAPAMA)"]
["Partidos Políticos",null,"Partido Acción Nacional"]
["Partidos Políticos",null,"Partido Encuentro Social"]
["Partidos Políticos",null,"Partido de la Revolución Democrática"]
["Partidos Políticos",null,"Partido del Trabajo"]
["Partidos Políticos",null,"Partido Verde Ecologista de México"]
["Partidos Políticos",null,"Partido Movimiento Ciudadano"]
["Partidos Políticos",null,"Partido Movimiento de Regeneración Nacional (MORENA)"]
["Partidos Políticos",null,"Partido Nueva Alianza"]
["Partidos Políticos",null,"Partido Revolucionario Institucional"]
["Sindicatos",null,"Sindicato Único de Trabajadores Estatales y Municipales del Estado de Aguascalientes (SUTEMA)"]
["Sindicatos",null,"Sindicato Único de Trabajadores del Hospital Miguel Hidalgo"]
["Sindicatos",null,"Sindicato de Trabajadores del Hospital de Psiquiatría Dr. \"Gustavo León Mojica García\""]
["Sindicatos",null,"Sindicato Único de Trabajadores del Instituto Cultural de Aguascalientes STICA"]

{"sheet":"Cat. Res","index":3,"n_rows":5,"n_cols":7,"rows_kept":5,"cut":false,"hidden":true,"merged":[]}
["Volver al índice",null,"Aplica?",null,null,null,"Tipo"]
[1,null,"SI",null,null,null,"Observación"]
[0.5,null,"NO",null,null,null,"Recomendación"]
[0,null,null,null,null,null,"Requerimiento"]
["Justificado"]

{"sheet":"Art 55","index":4,"n_rows":520,"n_cols":13,"rows_kept":520,"cut":false,"hidden":false,"merged":[[0,2,0,6],[2,2,2,6],[25,4,25,6],[56,1,56,7],[63,4,63,6],[496,4,496,6],[193,4,193,6],[18,1,18,7],[186,1,186,7],[6,6,6,7],[102,1,102,7],[109,4,109,6],[148,1,148,7],[155,4,155,6],[6,2,6,3],[242,1,242,7],[249,4,249,6],[300,1,300,7],[307,4,307,6],[358,1,358,7],[365,4,365,6],[407,1,407,7],[414,4,414,6],[447,1,447,7],[454,4,454,6],[489,1,489,7]]}
["Volver al índice",null,{"$f":"#REF!","v":{"$error":"#REF!"}}]
[null,null,null,null,null,null,null,null,null,null,null,null,{"$f":"COUNTIFS(#REF!,\"<>Ninguna\",#REF!,\"<>Observaciones, Recomendaciones y/o Requerimientos\",#REF!,\"<>\")","v":{"$error":"#REF!"}}]
[null,null,"El artículo 55 dice a la letra:\n         Artículo 55. Los Sujetos Obligados deberán poner a disposición del público y actualizarán en los respectivos medios electrónicos, de acuerdo con sus facultades, atribuciones, funciones u objeto social, según corresponda, la Información, por lo menos, de los temas, Documentos y políticas que a continuación se señalan:",null,null,null,null,null,null,null,null,null,{"$f":"COUNTIFS(#REF!,\"<>Ninguna\",#REF!,\"<>Observaciones, Recomendaciones y/o Requerimientos\",#REF!,\"<>\")","v":{"$error":"#REF!"}}]
[null,null,null,null,null,null,null,null,null,null,null,null,{"$f":"COUNTIFS(#REF!,\"<>Ninguna\",#REF!,\"<>Observaciones, Recomendaciones y/o Requerimientos\",#REF!,\"<>\")","v":{"$error":"#REF!"}}]
[null,null,"Fecha de Inicio de la Verificación:",null,null,null,"Fecha de Término de la verificación"]
[]
[null,null,"2019-06-17",null,null,null,"2019-06-17"]
[]
[null,null,"Índice de Criterios Sustantivos:  ",null,{"$f":"AVERAGE(#REF!,#REF!,#REF!,E21,E59,E105,E151,#REF!,E189,#REF!,#REF!,#REF!,#REF!,#REF!,#REF!,#REF!,#REF!,#REF!,E245,E303,#REF!,#REF!,#REF!,#REF!,#REF!,E361,#REF!,#REF!,#REF!,#REF!,#REF!,#REF!,#REF!,#REF!,#REF!,#REF!,#REF!,#REF!,#REF!,#REF!,#REF!,#REF!,#REF!,#REF!,E434,#REF!,#REF!,#REF!,#REF!)","v":{"$error":"#REF!"}}]
[null,null,"Índice de Criterios Adjetivos:  ",null,{"$f":"AVERAGE(#REF!,#REF!,#REF!,E22,E60,E106,E152,#REF!,E190,#REF!,#REF!,#REF!,#REF!,#REF!,#REF!,#REF!,#REF!,#REF!,E246,E304,#REF!,#REF!,#REF!,#REF!,#REF!,E362,#REF!,#REF!,#REF!,#REF!,#REF!,#REF!,#REF!,#REF!,#REF!,#REF!,#REF!,#REF!,#REF!,#REF!,#REF!,#REF!,#REF!,#REF!,E435,#REF!,#REF!,#REF!,#REF!)","v":{"$error":"#REF!"}}]
[null,null,"Índice del Artículo:  ",null,{"$f":"AVERAGE(#REF!,#REF!,#REF!,E23,E61,E107,E153,#REF!,E191,#REF!,#REF!,#REF!,#REF!,#REF!,#REF!,#REF!,#REF!,#REF!,E247,E305,#REF!,#REF!,#REF!,#REF!,#REF!,E363,#REF!,#REF!,#REF!,#REF!,#REF!,#REF!,#REF!,#REF!,#REF!,#REF!,#REF!,#REF!,#REF!,#REF!,#REF!,#REF!,#REF!,#REF!,E436,#REF!,#REF!,#REF!,#REF!,#REF!)","v":{"$error":"#REF!"}}]
[]
[]
[null,"Códigos de valoración : Cumplió totalmente = 1; Cumplió parcialmente = 0.5; No cumplió = 0; Justificado = Justificado"]
[]
[]
[]
[]
[null,"Art. 55 - Fracción IV. Metas y objetivos"]
[]
[null,null,"Criterios Sustantivos",null,{"$f":"IF(#REF!=\"NO\",\"NA\",SUM(E30:E37)/SUM(D30:D37))","v":{"$error":"#REF!"}},null,{"$f":"CONCATENATE(\"Según la configuración de aplicabilidad, esta fracción \",#REF!,\" aplica.\")","v":{"$error":"#REF!"}}]
[null,null,"Criterios Adjetivos",null,{"$f":"IF(#REF!=\"NO\",\"NA\",SUM(E42:E50)/SUM(D42:D50))","v":{"$error":"#REF!"}},null,"Aplica a todos los sujetos obligados"]
[null,null,"Fracción:",null,{"$f":"IF(#REF!=\"NO\",\"NA\",E21*0.6+E22*0.4)","v":{"$error":"#REF!"}},null,"Periodo de actualización: Anual"]
[]
[]
[null,null,null,null,null,null,null,null,null,null,null,null,{"$f":"COUNTIFS(G30:G50,\"<>Ninguna\",G30:G50,\"<>Observaciones, Recomendaciones y/o Requerimientos\",G30:G50,\"<>\")","v":0}]
[null,null,"Criterios Sustantivos de contenido"]
[]
[null,null,"Criterio",null,"Valoración","Tipo","Observaciones, Recomendaciones y/o Requerimientos",null,null,null,null,{"$f":"IF(M26>0,#REF!,\"\")","v":""}]
[null,null,"Criterio 1. Ejercicio ",1,1,"Observación","Ninguna",null,null,null,null,{"$f":"IF(G30<>\"Ninguna\",G30,\"\")","v":""}]
[null,null,"Criterio 2. Periodo que se informa (fecha de inicio y fecha de término con el formato día/mes/año) ",1,1,"Observación","Ninguna",null,null,null,null,""]
[null,null,"Criterio 3. Denominación del Área o Unidad responsable. Se pondrá entre paréntesis el nombre del documento que en su caso regule la actividad del sujeto obligado: reglamento interior / manual de organización / otro",1,1,"Observación","Ninguna",null,null,null,null,""]
[null,null,"Criterio 4. Descripción breve y clara de cada objetivo",1,1,"Observación","Ninguna",null,null,null,null,""]
[null,null,"Criterio 5. Cada objetivo deberá desplegar sus indicadores asociados",1,1,"Observación","Ninguna",null,null,null,null,""]
[null,null,"Criterio 6. Cada indicador deberá desplegar la(s) meta(s)",1,1,"Observación","Ninguna",null,null,null,null,""]
[null,null,"Criterio 7. Cada meta deberá especificar su unidad de medida",1,1,"Observación","Ninguna",null,null,null,null,""]
[null,null,"Criterio 8. Hipervínculo al documento del o los programas operativos / presupuestario / sectorial / regionales / institucionales / especiales / de trabajo y/o anuales, según corresponda en un formato que permita la reutilización de la información",1,1,"Observación","Ninguna",null,null,null,null,""]
[]
[null,null,"Criterios Adjetivos"]
[]
[null,null,"Criterio",null,"Valoración","Tipo","Observaciones, Recomendaciones y/o Requerimientos"]
[null,null,"Criterio 9.Periodo de actualización de la información: anual, durante el primer trimestre del ejercicio en curso ",1,1,"Observación","Ninguna",null,null,null,null,{"$f":"IF(G42<>\"Ninguna\",G42,\"\")","v":""}]
[null,null,"Criterio 10.La información publicada deberá estar actualizada al periodo que corresponde, de acuerdo con la Tabla de actualización y conservación de la información",1,1,"Observación","Ninguna",null,null,null,null,""]
[null,null,"Criterio 11.Conservar en el sitio de Internet y a través de la Plataforma Nacional la información vigente de acuerdo con la Tabla de actualización y conservación de la información",1,1,"Observación","Ninguna",null,null,null,null,""]
[null,null,"Criterio 12.Área(s) o unidad(es) administrativa(s) que genera(n) o posee(n) la información respectiva y son responsables de publicarla y actualizarla",1,1,"Observación","Ninguna",null,null,null,null,""]
[null,null,"Criterio 13.Fecha de actualización de la información publicada con el formato día/mes/año ",1,1,"Observación","Ninguna",null,null,null,null,""]
[null,null,"Criterio 14.Fecha de validación  de la información publicada con el formato día/mes/año ",1,1,"Observación","Ninguna",null,null,null,null,""]
[null,null,"Criterio 15.Nota. Este criterio se cumple en caso de que sea necesario que el sujeto obligado incluya alguna aclaración relativa a la información publicada y/o explicación por la falta de información ",1,1,"Observación","Ninguna",null,null,null,null,""]
[null,null,"Criterio 16.La información publicada se organiza mediante el formato 4, en el que se incluyen todos los campos especificados en los criterios sustantivos de contenido ",1,1,"Observación","Ninguna",null,null,null,null,""]
[null,null,"Criterio 17.El soporte de la información permite su reutilización",1,1,"Observación","Ninguna",null,null,null,null,""]
[]
[]
[]
[]
[]
[]
[null,"Art. 55 - Fracción V. Indicadores interés público"]
[]
[null,null,"Criterios Sustantivos",null,{"$f":"IF(#REF!=\"NO\",\"NA\",SUM(E69:E83)/SUM(D69:D83))","v":{"$error":"#REF!"}},null,{"$f":"CONCATENATE(\"Según la configuración de aplicabilidad, esta fracción \",#REF!,\" aplica.\")","v":{"$error":"#REF!"}}]
[null,null,"Criterios Adjetivos",null,{"$f":"IF(#REF!=\"NO\",\"NA\",SUM(E88:E96)/SUM(D88:D96))","v":{"$error":"#REF!"}},null,"Aplica a todos los sujetos obligados"]
[null,null,"Fracción:",null,{"$f":"IF(#REF!=\"NO\",\"NA\",E59*0.6+E60*0.4)","v":{"$error":"#REF!"}},null,"Periodo de actualización: Trimestral "]
[]
[null,null,null,null,null,null,null,null,null,null,null,null,{"$f":"COUNTIFS(G69:G96,\"<>Ninguna\",G69:G96,\"<>Observaciones, Recomendaciones y/o Requerimientos\",G69:G96,\"<>\")","v":0}]
[]
[null,null,"Criterios Sustantivos de contenido"]
[]
[null,null,"Criterio",null,"Valoración","Tipo","Observaciones, Recomendaciones y/o Requerimientos"]
[null,null,null,null,null,null,null,null,null,null,null,{"$f":"IF(M63>0,B57,\"\")","v":""}]
[null,null,"Criterio 1. Ejercicio",1,1,"Observación","Ninguna",null,null,null,null,""]
[null,null,"Criterio 2. Periodo que se informa (fecha de inicio y fecha de término con el formato día/mes/año) ",1,1,"Observación","Ninguna",null,null,null,null,""]
[null,null,"Criterio 3. Descripción breve y clara de cada objetivo",1,1,"Observación","Ninguna",null,null,null,null,""]
[null,null,"Criterio 4. Nombre del(os) indicador(es)",1,1,"Observación","Ninguna",null,null,null,null,""]
[null,null,"Criterio 5. La(s) dimensión(es) a medir",1,1,"Observación","Ninguna",null,null,null,null,""]
[null,null,"Criterio 6. Definición del indicador, es decir, explicación breve y clara respecto de lo que debe medir el indicador",1,1,"Observación","Ninguna",null,null,null,null,""]
[null,null,"Criterio 7. Método de cálculo, es decir, las variables que intervienen en la fórmula. Se deberá especificar el significado de las siglas y/o abreviaturas",1,1,"Observación","Ninguna",null,null,null,null,""]
[null,null,"Criterio 8. Unidad de medida",1,1,"Observación","Ninguna",null,null,null,null,""]
[null,null,"Criterio 9. Frecuencia de medición",1,1,"Observación","Ninguna",null,null,null,null,""]
[null,null,"Criterio 10. Línea base",1,1,"Observación","Ninguna",null,null,null,null,""]
[null,null,"Criterio 11. Metas programadas",1,1,"Observación","Ninguna",null,null,null,null,""]
[null,null,"Criterio 12. Metas ajustadas, en su caso",1,1,"Observación","Ninguna",null,null,null,null,""]
[null,null,"Criterio 13. Avance de las metas al periodo que se informa",1,1,"Observación","Ninguna",null,null,null,null,""]
[null,null,"Criterio 14. Sentido del indicador (Ascendente/Descendente)",1,1,"Observación","Ninguna",null,null,null,null,""]
[null,null,"Criterio 15. Fuente de información (especificar la fuente de información que alimenta al indicador, por lo menos integrando: nombre de ésta e institución responsable de su medición)",1,1,"Observación","Ninguna",null,null,null,null,""]
[]
[null,null,"Criterios Adjetivos"]
[]
[null,null,"Criterio",null,"Valoración","Tipo","Observaciones, Recomendaciones y/o Requerimientos"]
[null,null,"Criterio 16.Periodo de actualización de la información: trimestral ",1,1,"Observación","Ninguna",null,null,null,null,""]
[null,null,"Criterio 17.La información publicada deberá estar actualizada al periodo que corresponde, de acuerdo con la Tabla de actualización y conservación de la información",1,1,"Observación","Ninguna",null,null,null,null,""]
[null,null,"Criterio 18.Conservar en el sitio de Internet y a través de la Plataforma Nacional la información vigente de acuerdo con la Tabla de actualización y conservación de la información",1,1,"Observación","Ninguna",null,null,null,null,""]
[null,null,"Criterio 19.Área(s) o unidad(es) administrativa(s) que genera(n) o posee(n) la información respectiva y son responsables de publicarla y actualizarla",1,1,"Observación","Ninguna",null,null,null,null,""]
[null,null,"Criterio 20.Fecha de actualización de la información publicada con el formato día/mes/año ",1,1,"Observación","Ninguna",null,null,null,null,""]
[null,null,"Criterio 21.Fecha de validación  de la información publicada con el formato día/mes/año ",1,1,"Observación","Ninguna",null,null,null,null,""]
[null,null,"Criterio 22.Nota. Este criterio se cumple en caso de que sea necesario que el sujeto obligado incluya alguna aclaración relativa a la información publicada y/o explicación por la falta de información ",1,1,"Observación","Ninguna",null,null,null,null,""]
[null,null,"Criterio 23.La información publicada se organiza mediante el formato 5, en el que se incluyen todos los campos especificados en los criterios sustantivos de contenido ",1,1,"Observación","Ninguna",null,null,null,null,""]
[null,null,"Criterio 24.El soporte de la información permite su reutilización",1,1,"Observación","Ninguna",null,null,null,null,""]
[]
[]
[]
[]
[]
[]
[null,"Art. 55 - Fracción VI. Indicadores de resultados"]
[]
[null,null,"Criterios Sustantivos",null,{"$f":"IF(#REF!=\"NO\",\"NA\",SUM(E114:E129)/SUM(D114:D129))","v":{"$error":"#REF!"}},null,{"$f":"CONCATENATE(\"Según la configuración de aplicabilidad, esta fracción \",#REF!,\" aplica.\")","v":{"$error":"#REF!"}}]
[null,null,"Criterios Adjetivos",null,{"$f":"IF(#REF!=\"NO\",\"NA\",SUM(E134:E142)/SUM(D134:D142))","v":{"$error":"#REF!"}},null,"Aplica a todos los sujetos obligados"]
[null,null,"Fracción:",null,{"$f":"IF(#REF!=\"NO\",\"NA\",E105*0.6+E106*0.4)","v":{"$error":"#REF!"}},null,"Periodo de actualización: Trimestral"]
[]
[]
[null,null,null,null,null,null,null,null,null,null,null,null,{"$f":"COUNTIFS(G114:G142,\"<>Ninguna\",G114:G142,\"<>Observaciones, Recomendaciones y/o Requerimientos\",G114:G142,\"<>\")","v":0}]
[null,null,"Criterios Sustantivos de contenido"]
[]
[null,null,"Criterio",null,"Valoración","Tipo","Observaciones, Recomendaciones y/o Requerimientos",null,null,null,null,{"$f":"IF(M110>0,B103,\"\")","v":""}]
[null,null,"Criterio 1. Ejercicio ",1,1,"Observación","Ninguna",null,null,null,null,{"$f":"IF(G114<>\"Ninguna\",G114,\"\")","v":""}]
[null,null,"Criterio 2. Periodo que se informa (fecha de inicio y fecha de término con el formato día/mes/año) ",1,1,"Observación","Ninguna",null,null,null,null,""]
[null,null,"Criterio 3. Nombre del programa o concepto al que corresponde el indicador",1,1,"Observación","Ninguna",null,null,null,null,""]
[null,null,"Criterio 4. Descripción breve y clara de cada objetivo institucional",1,1,"Observación","Ninguna",null,null,null,null,""]
[null,null,"Criterio 5. Nombre del(os) indicador(es)",1,1,"Observación","Ninguna",null,null,null,null,""]
[null,null,"Criterio 6.Dimensión(es) a medir. Por ejemplo: eficacia, eficiencia, calidad y economía ",1,1,"Observación","Ninguna",null,null,null,null,{"$f":"IF(G119<>\"Ninguna\",G119,\"\")","v":""}]
[null,null,"Criterio 7. Definición del indicador, es decir, explicación breve y clara respecto de lo que éste debe medir",1,1,"Observación","Ninguna",null,null,null,null,{"$f":"IF(G120<>\"Ninguna\",G120,\"\")","v":""}]
[null,null,"Criterio 8. Método de cálculo con las variables que intervienen en la fórmula, se deberá incluir el significado de las siglas y/o abreviaturas",1,1,"Observación","Ninguna",null,null,null,null,""]
[null,null,"Criterio 9. Unidad de medida",1,1,"Observación","Ninguna",null,null,null,null,""]
[null,null,"Criterio 10. Frecuencia de medición",1,1,"Observación","Ninguna",null,null,null,null,""]
[null,null,"Criterio 11. Línea base",1,1,"Observación","Ninguna",null,null,null,null,""]
[null,null,"Criterio 12. Metas programadas",1,1,"Observación","Ninguna",null,null,null,null,""]
[null,null,"Criterio 13. Metas ajustadas que existan, en su caso",1,1,"Observación","Ninguna",null,null,null,null,""]
[null,null,"Criterio 14. Avance de metas",1,1,"Observación","Ninguna",null,null,null,null,""]
[null,null,"Criterio 15. Sentido del indicador (Ascendente/Descendente)",1,1,"Observación","Ninguna",null,null,null,null,""]
[null,null,"Criterio 16. Fuentes de información (especificar la fuente de información que alimenta al indicador, por lo menos integrando: nombre de ésta e institución responsable de la fuente)",1,1,"Observación","Ninguna",null,null,null,null,""]
[]
[null,null,"Criterios Adjetivos"]
[]
[null,null,"Criterio",null,null,null,"Observaciones, Recomendaciones y/o Requerimientos"]
[null,null,"Criterio 17.Periodo de actualización de la información: trimestral ",1,1,"Observación","Ninguna",null,null,null,null,""]
[null,null,"Criterio 18.La información publicada deberá estar actualizada al periodo que corresponde, de acuerdo con la Tabla de actualización y conservación de la información",1,1,"Observación","Ninguna",null,null,null,null,""]
[null,null,"Criterio 19.Conservar en el sitio de Internet y a través de la Plataforma Nacional la información vigente de acuerdo con la Tabla de actualización y conservación de la información",1,1,"Observación","Ninguna",null,null,null,null,""]
[null,null,"Criterio 20.Área(s) o unidad(es) administrativa(s) que genera(n) o posee(n) la información respectiva y son responsables de publicarla y actualizarla",1,1,"Observación","Ninguna",null,null,null,null,""]
[null,null,"Criterio 21.Fecha de actualización de la información publicada con el formato día/mes/año ",1,1,"Observación","Ninguna",null,null,null,null,""]
[null,null,"Criterio 22.Fecha de validación  de la información publicada con el formato día/mes/año ",1,1,"Observación","Ninguna",null,null,null,null,""]
[null,null,"Criterio 23.Nota. Este criterio se cumple en caso de que sea necesario que el sujeto obligado incluya alguna aclaración relativa a la información publicada y/o explicación por la falta de información ",1,1,"Observación","Ninguna",null,null,null,null,""]
[null,null,"Criterio 24.La información publicada se organiza mediante el formato 6 en el que se incluyen todos los campos especificados en los criterios sustantivos de contenido ",1,1,"Observación","Ninguna",null,null,null,null,""]
[null,null,"Criterio 25.El soporte de la información permite su reutilización",1,1,"Observación","Ninguna",null,null,null,null,""]
[]
[]
[]
[]
[]
[]
[null,"Art. 55 - Fracción VII. Directorio"]
[]
[null,null,"Criterios Sustantivos",null,{"$f":"IF(#REF!=\"NO\",\"NA\",SUM(E160:E169)/SUM(D160:D169))","v":{"$error":"#REF!"}},null,{"$f":"CONCATENATE(\"Según la configuración de aplicabilidad, esta fracción \",#REF!,\" aplica.\")","v":{"$error":"#REF!"}}]
[null,null,"Criterios Adjetivos",null,{"$f":"IF(#REF!=\"NO\",\"NA\",SUM(E174:E182)/SUM(D174:D182))","v":{"$error":"#REF!"}},null,"Aplica a todos los sujetos obligados"]
[null,null,"Fracción:",null,{"$f":"IF(#REF!=\"NO\",\"NA\",E151*0.6+E152*0.4)","v":{"$error":"#REF!"}},null,"Periodo de actualización: Trimestral"]
[]
[]
[]
[null,null,"Criterios Sustantivos de contenido"]
[]
[null,null,"Criterio",null,"Valoración","Tipo","Observaciones, Recomendaciones y/o Requerimientos",null,null,null,null,{"$f":"IF(M159>0,B149,\"\")","v":""},{"$f":"COUNTIFS(G160:G182,\"<>Ninguna\",G160:G182,\"<>Observaciones, Recomendaciones y/o Requerimientos\",G160:G182,\"<>\")","v":0}]
[null,null,"Criterio 1. Ejercicio ",1,1,"Observación","Ninguna",null,null,null,null,""]
[null,null,"Criterio 2. Periodo que se informa (fecha de inicio y fecha de término con el formato día/mes/año) ",1,1,"Observación","Ninguna",null,null,null,null,""]
[null,null,"Criterio 3. Clave o nivel del puesto (de acuerdo con el catálogo que regule la actividad del sujeto obligado)",1,1,"Observación","Ninguna",null,null,null,null,""]
[null,null,"Criterio 4Denominación del cargo (de conformidad con nombramiento otorgado)",1,1,"Observación","Ninguna",null,null,null,null,""]
[null,null,"Criterio 5. Nombre del servidor(a) público(a)(nombre[s], primer apellido, segundo apellido), integrante y/o miembro del sujeto obligado, y/o persona que desempeñe un empleo, cargo o comisión y/o ejerza actos de autoridad[1]. En su caso, incluir una leyenda que especifique el motivo por el cual no existe servidor público ocupando el cargo, por ejemplo: Vacante",1,1,"Observación","Ninguna",null,null,null,null,""]
[null,null,"Criterio 6. Área o unidad administrativa de adscripción (de acuerdo con el catálogo de unidades administrativas o puestos)",1,1,"Observación","Ninguna",null,null,null,null,""]
[null,null,"Criterio 7.Fecha de alta en el cargo con el formato día/mes/año  ",1,1,"Observación","Ninguna",null,null,null,null,""]
[null,null,"Criterio 8. Domicilio para recibir correspondencia oficial (tipo de vialidad [catálogo], nombre de vialidad [calle], número exterior, número interior [en su caso], tipo de asentamiento humano [catálogo], nombre de asentamiento humano [colonia], clave de la localidad [catálogo], nombre de la localidad [catálogo], clave del municipio [catálogo], nombre del municipio o delegación [catálogo], clave de la entidad federativa [catálogo], nombre de la entidad federativa [catálogo], código postal)[2]",1,1,"Observación","Ninguna",null,null,null,null,""]
[null,null,"Criterio 9. Número(s) de teléfono(s) oficial(es) y extensión (es)",1,1,"Observación","Ninguna",null,null,null,null,{"$f":"IF(G168<>\"Ninguna\",G168,\"\")","v":""}]
[null,null,"Criterio 10. Correo electrónico oficial, en su caso",1,1,"Observación","Ninguna",null,null,null,null,""]
[]
[null,null,"Criterios Adjetivos"]
[]
[null,null,"Criterio",null,"Valoración","Tipo","Observaciones, Recomendaciones y/o Requerimientos"]
[null,null,"Criterio 11.Periodo de actualización de la información: trimestral. En su caso, dentro de los 20 días naturales después de la aprobación de alguna modificación",1,1,"Observación","Ninguna",null,null,null,null,""]
[null,null,"Criterio 12.La información publicada deberá estar actualizada al periodo que corresponde, de acuerdo con la Tabla de actualización y conservación de la información",1,1,"Observación","Ninguna",null,null,null,null,""]
[null,null,"Criterio 13.Conservar en el sitio de Internet y a través de la Plataforma Nacional la información vigente de acuerdo con la Tabla de actualización y conservación de la información",1,1,"Observación","Ninguna",null,null,null,null,""]
[null,null,"Criterio 14.Área(s) o unidad(es) administrativa(s) que genera(n) o posee(n) la información respectiva y son responsables de publicarla y actualizarla",1,1,"Observación","Ninguna",null,null,null,null,""]
[null,null,"Criterio 15.Fecha de actualización de la información publicada con el formato día/mes/año ",1,1,"Observación","Ninguna",null,null,null,null,""]
[null,null,"Criterio 16.Fecha de validación  de la información publicada con el formato día/mes/año ",1,1,"Observación","Ninguna",null,null,null,null,""]
[null,null,"Criterio 17.Nota. Este criterio se cumple en caso de que sea necesario que el sujeto obligado incluya alguna aclaración relativa a la información publicada y/o explicación por la falta de información ",1,1,"Observación","Ninguna",null,null,null,null,""]
[null,null,"Criterio 18.La información publicada se organiza mediante el formato 7 en el que se incluyen todos los campos especificados en los criterios sustantivos de contenido ",1,1,"Observación","Ninguna",null,null,null,null,""]
[null,null,"Criterio 19.El soporte de la información permite su reutilización",1,1,"Observación","Ninguna",null,null,null,null,""]
[]
[]
[]
[]
[null,"Art. 55 - Fracción IX. Gastos de representación y viáticos"]
[]
[null,null,"Criterios Sustantivos",null,{"$f":"IF(#REF!=\"NO\",\"NA\",SUM(E198:E224)/SUM(D198:D224))","v":{"$error":"#REF!"}},null,{"$f":"CONCATENATE(\"Según la configuración de aplicabilidad, esta fracción \",#REF!,\" aplica.\")","v":{"$error":"#REF!"}}]
[null,null,"Criterios Adjetivos",null,{"$f":"IF(#REF!=\"NO\",\"NA\",SUM(E229:E237)/SUM(D229:D237))","v":{"$error":"#REF!"}},null,"Aplica a todos los sujetos obligados"]
[null,null,"Fracción:",null,{"$f":"IF(#REF!=\"NO\",\"NA\",E189*0.6+E190*0.4)","v":{"$error":"#REF!"}},null,"Periodo de actualización: Trimestral"]
[]
[]
[]
[null,null,"Criterios Sustantivos de contenido"]
[]
[null,null,"Criterio",null,"Valoración","Tipo","Observaciones, Recomendaciones y/o Requerimientos",null,null,null,null,{"$f":"IF(M197>0,B187,\"\")","v":""},{"$f":"COUNTIFS(G198:G237,\"<>Ninguna\",G198:G237,\"<>Observaciones, Recomendaciones y/o Requerimientos\",G198:G237,\"<>\")","v":0}]
[null,null,"Criterio 1. Ejercicio ",1,1,"Observación","Ninguna",null,null,null,null,{"$f":"IF(G198<>\"Ninguna\",G198,\"\")","v":""}]
[null,null,"Criterio 2. Periodo que se informa (fecha de inicio y fecha de término con el formato día/mes/año) ",1,1,"Observación","Ninguna",null,null,null,null,""]
[null,null,"Criterio 3. Tipo de integrante del sujeto obligado (funcionario, servidor[a] público[a], integrantes, miembros y/o toda persona que desempeñe un empleo, cargo o comisión en los sujetos obligados y/o ejerza actos de autoridad en ellos, empleado, representante popular, miembro del poder judicial, miembro de órgano autónomo [especificar denominación], personal de confianza, prestador de servicios profesionales, otro [especificar denominación])",1,1,"Observación","Ninguna",null,null,null,null,""]
[null,null,"Criterio 4. Clave o nivel del puesto (de acuerdo con el catálogo que en su caso regule la actividad del sujeto obligado)",1,1,"Observación","Ninguna",null,null,null,null,""]
[null,null,"Criterio 5. Denominación del puesto (de acuerdo con el catálogo que en su caso regule la actividad del sujeto obligado, por ej. Subdirector[a] A)",1,1,"Observación","Ninguna",null,null,null,null,""]
[null,null,"Criterio 6. Denominación del cargo (de conformidad con el nombramiento otorgado, por ej. Subdirector[a] de recursos humanos)",1,1,"Observación","Ninguna",null,null,null,null,""]
[null,null,"Criterio 7. Área de adscripción o unidad administrativa (de acuerdo con el catálogo de unidades administrativas o puestos si así corresponde)",1,1,"Observación","Ninguna",null,null,null,null,""]
[null,null,"Criterio 8. Nombre completo del (la) servidor(a) público(a), trabajador, prestador de servicios, miembro y/o toda persona que desempeñe un empleo, cargo o comisión y/o ejerza actos de autoridad en el sujeto obligado (nombre[s], primer apellido, segundo apellido)",1,1,"Observación","Ninguna",null,null,null,null,""]
[null,null,"Criterio 9.Tipo de gasto (catálogo): Viáticos/Representación  ",1,1,"Observación","Ninguna",null,null,null,null,""]
[null,null,"Criterio 10. Denominación del encargo o comisión",1,1,"Observación","Ninguna",null,null,null,null,""]
[null,null,"Criterio 11. Tipo de viaje (nacional / internacional)",1,1,"Observación","Ninguna",null,null,null,null,""]
[null,null,"Criterio 12. Número de personas acompañantes en el encargo o comisión del trabajador, prestador de servicios, servidor(a) público(a), miembro y/o toda persona que desempeñe un empleo, cargo o comisión y/o ejerza actos de autoridad en el sujeto obligado comisionado",1,1,"Observación","Ninguna",null,null,null,null,""]
[null,null,"Criterio 13. Importe ejercido por el total de acompañantes",1,1,"Observación","Ninguna",null,null,null,null,""]
[null,null,"Criterio 14. Origen del encargo o comisión (país, estado y ciudad)",1,1,"Observación","Ninguna",null,null,null,null,""]
[null,null,"Criterio 15. Destino del encargo o comisión (país, estado y ciudad)",1,1,"Observación","Ninguna",null,null,null,null,""]
[null,null,"Criterio 16. Motivo del encargo o comisión",1,1,"Observación","Ninguna",null,null,null,null,""]
[null,null,"Criterio 17.Fecha de salida del encargo o comisión con el formato día/mes/año  ",1,1,"Observación","Ninguna",null,null,null,null,""]
[null,null,"Criterio 18.Fecha de regreso del encargo o comisión: con el formato día/mes/año ",1,1,"Observación","Ninguna",null,null,null,null,""]
[null,null,"Criterio 19. Clave de la partida de cada uno de los conceptos correspondientes, con base en el Clasificador por Objeto del Gasto o Clasificador Contable que aplique",1,1,"Observación","Ninguna",null,null,null,null,""]
[null,null,"Criterio 20. Denominación de la partida de cada uno de los conceptos correspondientes, los cuales deberán ser armónicos con el Clasificador por Objeto del Gasto o Clasificador Contable que aplique. Por ejemplo: pasajes aéreos, terrestres, marítimos, lacustres y fluviales; autotransporte; viáticos en el país o en el extranjero; gastos de instalación y traslado de menaje; servicios integrales de traslado y viáticos; otros servicios de traslado y hospedaje; otra (especificar)",1,1,"Observación","Ninguna",null,null,null,null,""]
[null,null,"Criterio 21. Importe ejercido erogado por concepto de viáticos",1,1,"Observación","Ninguna",null,null,null,null,""]
[null,null,"Criterio 22. Importe total ejercido erogado con motivo del encargo o comisión",1,1,"Observación","Ninguna",null,null,null,null,""]
[null,null,"Criterio 23. Importe total de gastos no erogados derivados del encargo o comisión",1,1,"Observación","Ninguna",null,null,null,null,""]
[null,null,"Criterio 24.Fecha de entrega del informe de la comisión o encargo encomendado, con el formato día/mes/año  ",1,1,"Observación","Ninguna",null,null,null,null,""]
[null,null,"Criterio 25. Hipervínculo al informe de la comisión o encargo encomendado, donde se señalen las actividades realizadas, los resultados obtenidos, las contribuciones a la institución y las conclusiones; en su caso, se deberá incluir una leyenda explicando lo que corresponda",1,1,"Observación","Ninguna",null,null,null,null,""]
[null,null,"Criterio 26. Hipervínculo a las facturas o comprobantes que soporten las erogaciones realizadas",1,1,"Observación","Ninguna",null,null,null,null,""]
[null,null,"Criterio 27. Hipervínculo a la normatividad que regula los gastos por concepto de viáticos del sujeto obligado",1,1,"Observación","Ninguna",null,null,null,null,""]
[]
[null,null,"Criterios Adjetivos"]
[]
[null,null,"Criterio",null,"Valoración","Tipo"]
[null,null,"Criterio 28.Periodo de actualización de la información: trimestral. ",1,1,"Observación","Ninguna",null,null,null,null,""]
[null,null,"Criterio 29.La información publicada deberá estar actualizada al periodo que corresponde, de acuerdo con la Tabla de actualización y conservación de la información",1,1,"Observación","Ninguna",null,null,null,null,""]
[null,null,"Criterio 30.Conservar en el sitio de Internet y a través de la Plataforma Nacional la información vigente de acuerdo con la Tabla de actualización y conservación de la información",1,1,"Observación","Ninguna",null,null,null,null,""]
[null,null,"Criterio 31.Área(s) o unidad(es) administrativa(s) que genera(n) o posee(n) la información respectiva y son responsables de publicarla y actualizarla",1,1,"Observación","Ninguna",null,null,null,null,""]
[null,null,"Criterio 32.Fecha de actualización de la información publicada con el formato día/mes/año ",1,1,"Observación","Ninguna",null,null,null,null,""]
[null,null,"Criterio 33.Fecha de validación  de la información publicada con el formato día/mes/año ",1,1,"Observación","Ninguna",null,null,null,null,""]
[null,null,"Criterio 34.Nota. Este criterio se cumple en caso de que sea necesario que el sujeto obligado incluya alguna aclaración relativa a la información publicada y/o explicación por la falta de información ",1,1,"Observación","Ninguna",null,null,null,null,""]
[null,null,"Criterio 35.La información publicada se organiza mediante el formato 9a en el que se incluyen todos los campos especificados en los criterios sustantivos de contenido ",1,1,"Observación","Ninguna",null,null,null,null,""]
[null,null,"Criterio 36.El soporte de la información permite su reutilización",1,1,"Observación","Ninguna",null,null,null,null,""]
[]
[]
[]
[]
[]
[null,"Art. 55 - Fracción XIX. Servicios"]
[]
[null,null,"Criterios Sustantivos",null,{"$f":"IF(#REF!=\"NO\",\"NA\",SUM(E254:E281)/SUM(D254:D281))","v":{"$error":"#REF!"}},null,{"$f":"CONCATENATE(\"Según la configuración de aplicabilidad, esta fracción \",#REF!,\" aplica.\")","v":{"$error":"#REF!"}}]
[null,null,"Criterios Adjetivos",null,{"$f":"IF(#REF!=\"NO\",\"NA\",SUM(E286:E294)/SUM(D286:D294))","v":{"$error":"#REF!"}},null,"Aplica a todos los sujetos obligados"]
[null,null,"Fracción:",null,{"$f":"IF(#REF!=\"NO\",\"NA\",E245*0.6+E246*0.4)","v":{"$error":"#REF!"}},null,"Periodo de actualización: Trimestral"]
[]
[]
[]
[null,null,"Criterios Sustantivos de contenido"]
[]
[null,null,"Criterio",null,"Valoración","Tipo","Observaciones, Recomendaciones y/o Requerimientos",null,null,null,null,{"$f":"IF(M253>0,B243,\"\")","v":"Art. 55 - Fracción XIX. Servicios"},{"$f":"COUNTIFS(G254:G294,\"<>Ninguna\",G254:G294,\"<>Observaciones, Recomendaciones y/o Requerimientos\",G254:G294,\"<>\")","v":4}]
[null,null,"Criterio 1. Ejercicio ",1,1,"Observación",null,null,null,null,null,{"$f":"IF(G254<>\"Ninguna\",G254,\"\")","v":0}]
[null,null,"Criterio 2. Periodo que se informa (fecha de inicio y fecha de término con el formato día/mes/año) ",1,1,"Observación","Ninguna",null,null,null,null,""]
[null,null,"Criterio 3.Denominación del servicio ",1,1,"Observación","Se sugiere verificar que no se estén duplicando servicios, toda vez que dos de los reportados resultan similares.",null,null,null,null,"Se sugiere verificar que no se estén duplicando servicios, toda vez que dos de los reportados resultan similares."]
[null,null,"Criterio 4.Tipo de servicio (catálogo): Directo/Indirecto",1,1,"Observación","Se sugiere verificar que no se estén duplicando servicios, toda vez que dos de los reportados resultan similares.",null,null,null,null,"Se sugiere verificar que no se estén duplicando servicios, toda vez que dos de los reportados resultan similares."]
[null,null,"Criterio 5. Tipo de usuario y/o población objetivo. Especificar los casos en que se puede obtener el servicio",1,1,"Observación","Ninguna",null,null,null,null,""]
[null,null,"Criterio 6.Descripción del objetivo del servicio. Por ejemplo, los beneficios que se pueden obtener al acceder al servicio ",1,1,"Observación","Ninguna",null,null,null,null,""]
[null,null,"Criterio 7.Modalidad del servicio. Por ejemplo: presencial, en línea, correo, mensajería, telefónica, módulo itinerante, etcétera ",1,1,"Observación","Ninguna",null,null,null,null,""]
[null,null,"Criterio 8. Requisitos para obtener el servicio",1,1,"Observación","Ninguna",null,null,null,null,""]
[null,null,"Criterio 9. Documentos requeridos, en su caso",1,1,"Observación","Ninguna",null,null,null,null,""]
[null,null,"Criterio 10. Hipervínculo al/los formato(s) respectivo(s) publicado(s) en medio oficial",1,1,"Observación","Ninguna",null,null,null,null,""]
[null,null,"Criterio 11.Tiempo de respuesta. Por ejemplo, el número de horas, días hábiles o naturales ",1,1,"Observación","Ninguna",null,null,null,null,""]
[null,null,"Criterio 12.Denominación del área del sujeto obligado en la que se proporciona el servicio, o en caso de ser un servicio indirecto, la denominación del permisionario, concesionario o empresa productiva del Estado ",1,1,"Observación","Ninguna",null,null,null,null,""]
[null,null,"Criterio 13. Domicilio de la oficina de atención (tipo de vialidad [catálogo], nombre de vialidad [calle], número exterior, número interior [en su caso], tipo de asentamiento humano [catálogo], nombre de asentamiento humano [colonia], clave de la localidad [catálogo], nombre de la localidad [catálogo], clave del municipio [catálogo], nombre del municipio o delegación [catálogo], clave de la entidad federativa [catálogo], nombre de la entidad federativa [catálogo], código postal)",1,1,"Observación","Ninguna",null,null,null,null,""]
[null,null,"Criterio 14.Domicilio en el extranjero. En caso de que el servicio se lleve a cabo en otro país, se deberá incluir el domicilio el cual deberá incluir por lo menos: país, ciudad, calle y número ",1,1,"Observación","Ninguna",null,null,null,null,""]
[null,null,"Criterio 15.Teléfono, extensión en su caso, de contacto de la oficina de atención  ",1,1,"Observación","Ninguna",null,null,null,null,""]
[null,null,"Criterio 16.Correo electrónico de contacto de la oficina de atención  ",1,1,"Observación","Ninguna",null,null,null,null,""]
[null,null,"Criterio 17. Horario de atención (días y horas)",1,1,"Observación","Ninguna",null,null,null,null,""]
[null,null,"Criterio 18.Costo; en su caso, especificar que es gratuito ",1,1,"Observación","Ninguna",null,null,null,null,""]
[null,null,"Criterio 19.Sustento legal para su cobro, en su caso ",1,1,"Observación","Ninguna",null,null,null,null,""]
[null,null,"Criterio 20. Lugares donde se efectúa el pago",1,1,"Observación","Ninguna",null,null,null,null,""]
[null,null,"Criterio 21. Fundamento jurídico-administrativo del servicio",1,1,"Observación","Ninguna",null,null,null,null,""]
[null,null,"Criterio 22. Derechos del usuario ante la negativa y/o falta en la prestación del servicio",1,1,"Observación","Ninguna",null,null,null,null,""]
[null,null,"Criterio 23. Teléfono y, en su caso, extensión",1,1,"Observación","Ninguna",null,null,null,null,""]
[null,null,"Criterio 24. Correo electrónico",1,1,"Observación","Ninguna",null,null,null,null,""]
[null,null,"Criterio 25. Domicilio (tipo de vialidad [catálogo], nombre de vialidad [calle], número exterior, número interior [en su caso], tipo de asentamiento humano [catálogo], nombre de asentamiento humano [colonia], clave de la localidad [catálogo], nombre de la localidad [catálogo], clave del municipio [catálogo], nombre del municipio o delegación [catálogo], clave de la entidad federativa [catálogo], nombre de la entidad federativa [catálogo], código postal)",1,1,"Observación","Ninguna",null,null,null,null,""]
[null,null,"Criterio 26.Domicilio en el extranjero. En caso de que el servicio se lleve a cabo en otro país, se deberá incluir el domicilio el cual deberá incluir por lo menos: país, ciudad, calle y número ",1,1,"Observación","Ninguna",null,null,null,null,""]
[null,null,"Criterio 27. Hipervínculo a información adicional del servicio, en su caso",1,1,"Observación","Ninguna",null,null,null,null,""]
[null,null,"Criterio 28. Hipervínculo al catálogo, manual o sistema correspondiente, en su caso",1,0.5,"Requerimiento","Se sugiere verificar la calidad de la información, toda vez que, en su caso, debe específicarse que no existe sistema electrónico habilitado para dicho servicio.",null,null,null,null,"Se sugiere verificar la calidad de la información, toda vez que, en su caso, debe específicarse que no existe sistema electrónico habilitado para dicho servicio."]
[]
[null,null,"Criterios Adjetivos"]
[]
[null,null,"Criterio",null,"Valoración","Tipo","Observaciones, Recomendaciones y/o Requerimientos"]
[null,null,"Criterio 29.Periodo de actualización de la información: trimestral. ",1,1,"Observación","Ninguna",null,null,null,null,""]
[null,null,"Criterio 30.La información publicada deberá estar actualizada al periodo que corresponde, de acuerdo con la Tabla de actualización y conservación de la información",1,1,"Observación","Ninguna",null,null,null,null,""]
[null,null,"Criterio 31.Conservar en el sitio de Internet y a través de la Plataforma Nacional la información vigente de acuerdo con la Tabla de actualización y conservación de la información",1,1,"Observación","Ninguna",null,null,null,null,""]
[null,null,"Criterio 32.Área(s) o unidad(es) administrativa(s) que genera(n) o posee(n) la información respectiva y son responsables de publicarla y actualizarla",1,1,"Observación","Ninguna",null,null,null,null,""]
[null,null,"Criterio 33.Fecha de actualización de la información publicada con el formato día/mes/año ",1,1,"Observación","Ninguna",null,null,null,null,""]
[null,null,"Criterio 34.Fecha de validación  de la información publicada con el formato día/mes/año ",1,1,"Observación","Ninguna",null,null,null,null,""]
[null,null,"Criterio 35.Nota. Este criterio se cumple en caso de que sea necesario que el sujeto obligado incluya alguna aclaración relativa a la información publicada y/o explicación por la falta de información ",1,1,"Observación","Ninguna",null,null,null,null,""]
[null,null,"Criterio 36.La información publicada se organiza mediante el formato 19, en el que se incluyen todos los campos especificados en los criterios sustantivos de contenido ",1,0.5,"Requerimiento","El formato se encuentra duplicado, es necesario unificar o eliminar, según sea el caso.",null,null,null,null,"El formato se encuentra duplicado, es necesario unificar o eliminar, según sea el caso."]
[null,null,"Criterio 37.El soporte de la información permite su reutilización",1,1,"Observación","Ninguna",null,null,null,null,""]
[]
[]
[]
[]
[]
[]
[null,"Art. 55 - Fracción XX. Trámites"]
[]
[null,null,"Criterios Sustantivos",null,{"$f":"IF(#REF!=\"NO\",\"NA\",SUM(E312:E340)/SUM(D312:D340))","v":{"$error":"#REF!"}},null,{"$f":"CONCATENATE(\"Según la configuración de aplicabilidad, esta fracción \",#REF!,\" aplica.\")","v":{"$error":"#REF!"}}]
[null,null,"Criterios Adjetivos",null,{"$f":"IF(#REF!=\"NO\",\"NA\",SUM(E345:E353)/SUM(D345:D353))","v":{"$error":"#REF!"}},null,"Aplica a todos los sujetos obligados"]
[null,null,"Fracción:",null,{"$f":"IF(#REF!=\"NO\",\"NA\",E303*0.6+E304*0.4)","v":{"$error":"#REF!"}},null,"Periodo de actualización: Trimestral"]
[]
[]
[]
[null,null,"Criterios Sustantivos de contenido"]
[]
[null,null,"Criterio",null,"Valoración","Tipo","Observaciones, Recomendaciones y/o Requerimientos",null,null,null,null,{"$f":"IF(M311>0,B301,\"\")","v":"Art. 55 - Fracción XX. Trámites"},{"$f":"COUNTIFS(G312:G353,\"<>Ninguna\",G312:G353,\"<>Observaciones, Recomendaciones y/o Requerimientos\",G312:G353,\"<>\")","v":2}]
[null,null,"Criterio 1. Ejercicio ",1,1,"Observación","Ninguna",null,null,null,null,{"$f":"IF(G312<>\"Ninguna\",G312,\"\")","v":""}]
[null,null,"Criterio 2. Periodo que se informa (fecha de inicio y fecha de término con el formato día/mes/año) ",1,1,"Observación","Ninguna",null,null,null,null,""]
[null,null,"Criterio 3.Denominación del trámite",1,1,"Observación","Ninguna",null,null,null,null,""]
[null,null,"Criterio 4. Tipo de usuario y/o población objetivo; especificar los casos en los que se debe o puede realizarse el trámite",1,1,"Observación","Ninguna",null,null,null,null,""]
[null,null,"Criterio 5.Descripción del objetivo del trámite. Por ejemplo, los beneficios que se pueden obtener al realizar el trámite ",1,1,"Observación","Ninguna",null,null,null,null,""]
[null,null,"Criterio 6.Modalidad del trámite. Por ejemplo, presencial, en línea, correo, mensajería, Telefónica, módulo itinerante, etcétera ",1,1,"Observación","Ninguna",null,null,null,null,""]
[null,null,"Criterio 7. Hipervínculo a los requisitos para llevar a cabo el trámite ",1,1,"Observación","Ninguna",null,null,null,null,""]
[null,null,"Criterio 8. Documentos requeridos",1,1,"Observación","Ninguna",null,null,null,null,""]
[null,null,"Criterio 9. Hipervínculo al/los formato(s) respectivo(s) publicado(s) en medio oficial",1,1,"Observación","Ninguna",null,null,null,null,""]
[null,null,"Criterio 10.Tiempo de respuesta por parte del sujeto obligado55 ",1,1,"Observación","Ninguna",null,null,null,null,""]
[null,null,"Criterio 11. Vigencia de los resultados del trámite",1,1,"Observación","Ninguna",null,null,null,null,""]
[null,null,"Criterio 12. Denominación del área en donde se realiza el trámite",1,1,"Observación","Ninguna",null,null,null,null,""]
[null,null,"Criterio 13. Domicilio de la oficina de atención (tipo de vialidad [catálogo], nombre de vialidad [calle], número exterior, número interior [en su caso], tipo de asentamiento humano [catálogo], nombre de asentamiento humano [colonia], clave de la localidad [catálogo], nombre de la localidad [catálogo], clave del municipio [catálogo], nombre del municipio o delegación [catálogo], clave de la entidad federativa [catálogo], nombre de la entidad federativa [catálogo], código postal)",1,1,"Observación","Ninguna",null,null,null,null,""]
[null,null,"Criterio 14.Domiciliode la oficina de atención (tipo de vialidad [catálogo], nombre de vialidad [calle], número exterior, número interior [en su caso], tipo de asentamiento humano [catálogo], nombre de asentamiento humano [colonia], clave de la localidad, nombre de la localidad, clave del municipio, nombre del municipio o delegación, clave de la entidad federativa, nombre de la entidad federativa [catálogo], código postal) ",1,1,"Observación","Ninguna",null,null,null,null,""]
[null,null,"Criterio 15.Teléfono y extensión en su caso, de la oficina de atención ",1,1,"Observación","Ninguna",null,null,null,null,""]
[null,null,"Criterio 16.Correo electrónico de la oficina de atención ",1,1,"Observación","Ninguna",null,null,null,null,""]
[null,null,"Criterio 17. Horario de atención (días y horas)",1,1,"Observación","Ninguna",null,null,null,null,""]
[null,null,"Criterio 18.Costo, en su caso, especificar que es gratuito ",1,1,"Observación","Ninguna",null,null,null,null,""]
[null,null,"Criterio 19.Sustento legal para su cobro, en su caso ",1,1,"Observación","Ninguna",null,null,null,null,""]
[null,null,"Criterio 20. Lugares donde se efectúa el pago",1,1,"Observación","Ninguna",null,null,null,null,""]
[null,null,"Criterio 21 Fundamento jurídico-administrativo del trámite",1,1,"Observación","Ninguna",null,null,null,null,""]
[null,null,"Criterio 22. Derechos del usuario ante la negativa o falta de respuesta (especificar si aplica la afirmativa o negativa ficta)",1,1,"Observación","Ninguna",null,null,null,null,""]
[null,null,"Criterio 23.Teléfono y extensión en su caso",1,1,"Observación","Ninguna",null,null,null,null,""]
[null,null,"Criterio 24.Correo electrónico ",1,1,"Observación","Ninguna",null,null,null,null,""]
[null,null,"Criterio 25.Domicilio del lugar donde se reporten anomalías (tipo de vialidad [catálogo], nombre de vialidad [calle], número exterior, número interior [en su caso], tipo de asentamiento humano [catálogo], nombre de asentamiento humano [colonia], clave de la localidad, nombre de la localidad, clave del municipio, nombre del municipio o delegación, clave de la entidad federativa, nombre de la entidad federativa [catálogo], código postal)",1,1,"Observación","Ninguna",null,null,null,null,""]
[null,null,"Criterio 26.Domicilio en el extranjero. En caso de que el trámite se lleve a cabo en otro país, se deberá incluir el domicilio el cual deberá incluir por lo menos: país, ciudad, calle y número ",1,1,"Observación","Ninguna",null,null,null,null,""]
[null,null,"Criterio 27.Otros datos, en su caso, para el envío de consultas, documentos y quejas ",1,1,"Observación","Ninguna",null,null,null,null,""]
[null,null,"Criterio 28. Hipervínculo a información adicional del trámite, en su caso",1,1,"Observación","Ninguna",null,null,null,null,""]
[null,null,"Criterio 29. Hipervínculo al catálogo, manual o sistema correspondiente, en su caso",1,0.5,"Requerimiento","Se sugiere verificar la calidad de la información, toda vez que, en su caso, debe específicarse que no existe sistema electrónico habilitado para dicho servicio.",null,null,null,null,"Se sugiere verificar la calidad de la información, toda vez que, en su caso, debe específicarse que no existe sistema electrónico habilitado para dicho servicio."]
[]
[null,null,"Criterios Adjetivos"]
[]
[null,null,"Criterio",null,"Valoración","Tipo","Observaciones, Recomendaciones y/o Requerimientos"]
[null,null,"Criterio 30.Periodo de actualización de la información: trimestral. ",1,1,"Observación","Ninguna",null,null,null,null,""]
[null,null,"Criterio 31.La información publicada deberá estar actualizada al periodo que corresponde, de acuerdo con la Tabla de actualización y conservación de la información",1,1,"Observación","Ninguna",null,null,null,null,""]
[null,null,"Criterio 32.Conservar en el sitio de Internet y a través de la Plataforma Nacional la información vigente de acuerdo con la Tabla de actualización y conservación de la información",1,1,"Observación","Ninguna",null,null,null,null,""]
[null,null,"Criterio 33.Área(s) o unidad(es) administrativa(s) que genera(n) o posee(n) la información respectiva y son responsables de publicarla y actualizarla",1,1,"Observación","Ninguna",null,null,null,null,""]
[null,null,"Criterio 35.Fecha de actualización de la información publicada con el formato día/mes/año ",1,1,"Observación","Ninguna",null,null,null,null,""]
[null,null,"Criterio 36.Fecha de validación  de la información publicada con el formato día/mes/año ",1,1,"Observación","Ninguna",null,null,null,null,""]
[null,null,"Criterio 37.Nota. Este criterio se cumple en caso de que sea necesario que el sujeto obligado incluya alguna aclaración relativa a la información publicada y/o explicación por la falta de información ",1,1,"Observación","Ninguna",null,null,null,null,""]
[null,null,"Criterio 38.La información publicada se organiza mediante el formato 20, en el que se incluyen todos los campos especificados en los criterios sustantivos de contenido ",1,0.5,"Requerimiento","El formato se encuentra duplicado, es necesario unificar o eliminar, según sea el caso.",null,null,null,null,"El formato se encuentra duplicado, es necesario unificar o eliminar, según sea el caso."]
[null,null,"Criterio 39.El soporte de la información permite su reutilización",1,1,"Observación","Ninguna",null,null,null,null,""]
[]
[]
[]
[]
[]
[null,"Art. 55 - Fracción XXVI. Personas físicas o morales a quienes se asigne recursos públicos"]
[]
[null,null,"Criterios Sustantivos",null,{"$f":"IF(#REF!=\"NO\",\"NA\",SUM(E370:E390)/SUM(D370:D390))","v":{"$error":"#REF!"}},null,{"$f":"CONCATENATE(\"Según la configuración de aplicabilidad, esta fracción \",#REF!,\" aplica.\")","v":{"$error":"#REF!"}}]
[null,null,"Criterios Adjetivos",null,{"$f":"IF(#REF!=\"NO\",\"NA\",SUM(E395:E403)/SUM(D395:D403))","v":{"$error":"#REF!"}},null,"Aplica a todos los sujetos obligados"]
[null,null,"Fracción:",null,{"$f":"IF(#REF!=\"NO\",\"NA\",E361*0.6+E362*0.4)","v":{"$error":"#REF!"}},null,"Periodo de actualización: Trimestral"]
[]
[]
[]
[null,null,"Criterios Sustantivos de contenido"]
[]
[null,null,"Criterio",null,"Valoración","Tipo","Observaciones, Recomendaciones y/o Requerimientos",null,null,null,null,{"$f":"IF(M369>0,B359,\"\")","v":"Art. 55 - Fracción XXVI. Personas físicas o morales a quienes se asigne recursos públicos"},{"$f":"COUNTIFS(G370:G403,\"<>Ninguna\",G370:G403,\"<>Observaciones, Recomendaciones y/o Requerimientos\",G370:G403,\"<>\")","v":30}]
[null,null,"Criterio 1. Ejercicio ",1,0,"Requerimiento","EL FORMATO NO SE ENCUENTRA PUBLICADO.- El formato no se encuentra actualizado y publicado al periodo que se evalúa, lo cual contraviene lo dispuesto en el artículo 47 de la Ley de Transparencia y Acceso a la Información Pública del Estado de Aguascalientes y sus Municipios, por lo anterior se califican con valor “0” todos y cada uno de los criterios respectivos.",null,null,null,null,{"$f":"IF(G370<>\"Ninguna\",G370,\"\")","v":"EL FORMATO NO SE ENCUENTRA PUBLICADO.- El formato no se encuentra actualizado y publicado al periodo que se evalúa, lo cual contraviene lo dispuesto en el artículo 47 de la Ley de Transparencia y Acceso a la Información Pública del Estado de Aguascalientes y sus Municipios, por lo anterior se califican con valor “0” todos y cada uno de los criterios respectivos."}]
[null,null,"Criterio 2. Periodo que se informa (fecha de inicio y fecha de término con el formato día/mes/año) ",1,0,"Requerimiento","EL FORMATO NO SE ENCUENTRA PUBLICADO.- El formato no se encuentra actualizado y publicado al periodo que se evalúa, lo cual contraviene lo dispuesto en el artículo 47 de la Ley de Transparencia y Acceso a la Información Pública del Estado de Aguascalientes y sus Municipios, por lo anterior se califican con valor “0” todos y cada uno de los criterios respectivos.",null,null,null,null,"EL FORMATO NO SE ENCUENTRA PUBLICADO.- El formato no se encuentra actualizado y publicado al periodo que se evalúa, lo cual contraviene lo dispuesto en el artículo 47 de la Ley de Transparencia y Acceso a la Información Pública del Estado de Aguascalientes y sus Municipios, por lo anterior se califican con valor “0” todos y cada uno de los criterios respectivos."]
[null,null,"Criterio 3.Nombre completo (nombre[s], primer apellido y segundo apellido) o  razón social de la persona que recibió los recursos del beneficiario (persona física) ",1,0,"Requerimiento","EL FORMATO NO SE ENCUENTRA PUBLICADO.- El formato no se encuentra actualizado y publicado al periodo que se evalúa, lo cual contraviene lo dispuesto en el artículo 47 de la Ley de Transparencia y Acceso a la Información Pública del Estado de Aguascalientes y sus Municipios, por lo anterior se califican con valor “0” todos y cada uno de los criterios respectivos.",null,null,null,null,"EL FORMATO NO SE ENCUENTRA PUBLICADO.- El formato no se encuentra actualizado y publicado al periodo que se evalúa, lo cual contraviene lo dispuesto en el artículo 47 de la Ley de Transparencia y Acceso a la Información Pública del Estado de Aguascalientes y sus Municipios, por lo anterior se califican con valor “0” todos y cada uno de los criterios respectivos."]
[null,null,"Criterio 4.Personería jurídica (catálogo): Persona física / Persona moral ",1,0,"Requerimiento","EL FORMATO NO SE ENCUENTRA PUBLICADO.- El formato no se encuentra actualizado y publicado al periodo que se evalúa, lo cual contraviene lo dispuesto en el artículo 47 de la Ley de Transparencia y Acceso a la Información Pública del Estado de Aguascalientes y sus Municipios, por lo anterior se califican con valor “0” todos y cada uno de los criterios respectivos.",null,null,null,null,"EL FORMATO NO SE ENCUENTRA PUBLICADO.- El formato no se encuentra actualizado y publicado al periodo que se evalúa, lo cual contraviene lo dispuesto en el artículo 47 de la Ley de Transparencia y Acceso a la Información Pública del Estado de Aguascalientes y sus Municipios, por lo anterior se califican con valor “0” todos y cada uno de los criterios respectivos."]
[null,null,"Criterio 5.Clasificación de la persona moral. Por ejemplo: Sociedad civil/ sociedad mercantil/ Asociación civil/ asociación deportiva ",1,0,"Requerimiento","EL FORMATO NO SE ENCUENTRA PUBLICADO.- El formato no se encuentra actualizado y publicado al periodo que se evalúa, lo cual contraviene lo dispuesto en el artículo 47 de la Ley de Transparencia y Acceso a la Información Pública del Estado de Aguascalientes y sus Municipios, por lo anterior se califican con valor “0” todos y cada uno de los criterios respectivos.",null,null,null,null,"EL FORMATO NO SE ENCUENTRA PUBLICADO.- El formato no se encuentra actualizado y publicado al periodo que se evalúa, lo cual contraviene lo dispuesto en el artículo 47 de la Ley de Transparencia y Acceso a la Información Pública del Estado de Aguascalientes y sus Municipios, por lo anterior se califican con valor “0” todos y cada uno de los criterios respectivos."]
[null,null,"Criterio 6.Tipo de acción que realiza la persona física o moral (catálogo): Recibe recursos públicos/Realiza actos de autoridad ",1,0,"Requerimiento","EL FORMATO NO SE ENCUENTRA PUBLICADO.- El formato no se encuentra actualizado y publicado al periodo que se evalúa, lo cual contraviene lo dispuesto en el artículo 47 de la Ley de Transparencia y Acceso a la Información Pública del Estado de Aguascalientes y sus Municipios, por lo anterior se califican con valor “0” todos y cada uno de los criterios respectivos.",null,null,null,null,"EL FORMATO NO SE ENCUENTRA PUBLICADO.- El formato no se encuentra actualizado y publicado al periodo que se evalúa, lo cual contraviene lo dispuesto en el artículo 47 de la Ley de Transparencia y Acceso a la Información Pública del Estado de Aguascalientes y sus Municipios, por lo anterior se califican con valor “0” todos y cada uno de los criterios respectivos."]
[null,null,"Criterio 7. Ámbito de aplicación, función o destino del recurso público: Educación / Salud / Cultura / Desarrollo social / Economía /Protección del medio ambiente / Otro (especificar)",1,0,"Requerimiento","EL FORMATO NO SE ENCUENTRA PUBLICADO.- El formato no se encuentra actualizado y publicado al periodo que se evalúa, lo cual contraviene lo dispuesto en el artículo 47 de la Ley de Transparencia y Acceso a la Información Pública del Estado de Aguascalientes y sus Municipios, por lo anterior se califican con valor “0” todos y cada uno de los criterios respectivos.",null,null,null,null,"EL FORMATO NO SE ENCUENTRA PUBLICADO.- El formato no se encuentra actualizado y publicado al periodo que se evalúa, lo cual contraviene lo dispuesto en el artículo 47 de la Ley de Transparencia y Acceso a la Información Pública del Estado de Aguascalientes y sus Municipios, por lo anterior se califican con valor “0” todos y cada uno de los criterios respectivos."]
[null,null,"Criterio 8.Fundamento jurídico (artículo, fracción, lineamiento, o lo que corresponda) que sustenta la asignación o permiso para usar recursos públicos ",1,0,"Requerimiento","EL FORMATO NO SE ENCUENTRA PUBLICADO.- El formato no se encuentra actualizado y publicado al periodo que se evalúa, lo cual contraviene lo dispuesto en el artículo 47 de la Ley de Transparencia y Acceso a la Información Pública del Estado de Aguascalientes y sus Municipios, por lo anterior se califican con valor “0” todos y cada uno de los criterios respectivos.",null,null,null,null,"EL FORMATO NO SE ENCUENTRA PUBLICADO.- El formato no se encuentra actualizado y publicado al periodo que se evalúa, lo cual contraviene lo dispuesto en el artículo 47 de la Ley de Transparencia y Acceso a la Información Pública del Estado de Aguascalientes y sus Municipios, por lo anterior se califican con valor “0” todos y cada uno de los criterios respectivos."]
[null,null,"Criterio 9.Tipo de recurso público. Por ejemplo: en dinero, especie u otro(especificar) ",1,0,"Requerimiento","EL FORMATO NO SE ENCUENTRA PUBLICADO.- El formato no se encuentra actualizado y publicado al periodo que se evalúa, lo cual contraviene lo dispuesto en el artículo 47 de la Ley de Transparencia y Acceso a la Información Pública del Estado de Aguascalientes y sus Municipios, por lo anterior se califican con valor “0” todos y cada uno de los criterios respectivos.",null,null,null,null,"EL FORMATO NO SE ENCUENTRA PUBLICADO.- El formato no se encuentra actualizado y publicado al periodo que se evalúa, lo cual contraviene lo dispuesto en el artículo 47 de la Ley de Transparencia y Acceso a la Información Pública del Estado de Aguascalientes y sus Municipios, por lo anterior se califican con valor “0” todos y cada uno de los criterios respectivos."]
[null,null,"Criterio 10.Monto total y/o recurso público entregado en el ejercicio fiscal ",1,0,"Requerimiento","EL FORMATO NO SE ENCUENTRA PUBLICADO.- El formato no se encuentra actualizado y publicado al periodo que se evalúa, lo cual contraviene lo dispuesto en el artículo 47 de la Ley de Transparencia y Acceso a la Información Pública del Estado de Aguascalientes y sus Municipios, por lo anterior se califican con valor “0” todos y cada uno de los criterios respectivos.",null,null,null,null,"EL FORMATO NO SE ENCUENTRA PUBLICADO.- El formato no se encuentra actualizado y publicado al periodo que se evalúa, lo cual contraviene lo dispuesto en el artículo 47 de la Ley de Transparencia y Acceso a la Información Pública del Estado de Aguascalientes y sus Municipios, por lo anterior se califican con valor “0” todos y cada uno de los criterios respectivos."]
[null,null,"Criterio 11.Monto por entregarse y/o recurso público que se permitió usar, en su caso ",1,0,"Requerimiento","EL FORMATO NO SE ENCUENTRA PUBLICADO.- El formato no se encuentra actualizado y publicado al periodo que se evalúa, lo cual contraviene lo dispuesto en el artículo 47 de la Ley de Transparencia y Acceso a la Información Pública del Estado de Aguascalientes y sus Municipios, por lo anterior se califican con valor “0” todos y cada uno de los criterios respectivos.",null,null,null,null,"EL FORMATO NO SE ENCUENTRA PUBLICADO.- El formato no se encuentra actualizado y publicado al periodo que se evalúa, lo cual contraviene lo dispuesto en el artículo 47 de la Ley de Transparencia y Acceso a la Información Pública del Estado de Aguascalientes y sus Municipios, por lo anterior se califican con valor “0” todos y cada uno de los criterios respectivos."]
[null,null,"Criterio 12.Periodicidad de entrega de recursos. Por ejemplo: mensual, trimestral, anual, etcétera, o especificar si fue única ",1,0,"Requerimiento","EL FORMATO NO SE ENCUENTRA PUBLICADO.- El formato no se encuentra actualizado y publicado al periodo que se evalúa, lo cual contraviene lo dispuesto en el artículo 47 de la Ley de Transparencia y Acceso a la Información Pública del Estado de Aguascalientes y sus Municipios, por lo anterior se califican con valor “0” todos y cada uno de los criterios respectivos.",null,null,null,null,"EL FORMATO NO SE ENCUENTRA PUBLICADO.- El formato no se encuentra actualizado y publicado al periodo que se evalúa, lo cual contraviene lo dispuesto en el artículo 47 de la Ley de Transparencia y Acceso a la Información Pública del Estado de Aguascalientes y sus Municipios, por lo anterior se califican con valor “0” todos y cada uno de los criterios respectivos."]
[null,null,"Criterio 13.Modalidad de entrega del recurso o, en su caso, del otorgamiento de facultades para realizar. Por ejemplo: Recursos públicos: asignación, aportación, aprovechamiento, financiamiento, mejora etcétera. Respecto de Actos de autoridad: permiso, concesión, nombramiento, entre otros",1,0,"Requerimiento","EL FORMATO NO SE ENCUENTRA PUBLICADO.- El formato no se encuentra actualizado y publicado al periodo que se evalúa, lo cual contraviene lo dispuesto en el artículo 47 de la Ley de Transparencia y Acceso a la Información Pública del Estado de Aguascalientes y sus Municipios, por lo anterior se califican con valor “0” todos y cada uno de los criterios respectivos.",null,null,null,null,"EL FORMATO NO SE ENCUENTRA PUBLICADO.- El formato no se encuentra actualizado y publicado al periodo que se evalúa, lo cual contraviene lo dispuesto en el artículo 47 de la Ley de Transparencia y Acceso a la Información Pública del Estado de Aguascalientes y sus Municipios, por lo anterior se califican con valor “0” todos y cada uno de los criterios respectivos."]
[null,null,"Criterio 14.Fecha en la que se entregaron o se entregarán los recursos, con el formato día/mes/año ",1,0,"Requerimiento","EL FORMATO NO SE ENCUENTRA PUBLICADO.- El formato no se encuentra actualizado y publicado al periodo que se evalúa, lo cual contraviene lo dispuesto en el artículo 47 de la Ley de Transparencia y Acceso a la Información Pública del Estado de Aguascalientes y sus Municipios, por lo anterior se califican con valor “0” todos y cada uno de los criterios respectivos.",null,null,null,null,"EL FORMATO NO SE ENCUENTRA PUBLICADO.- El formato no se encuentra actualizado y publicado al periodo que se evalúa, lo cual contraviene lo dispuesto en el artículo 47 de la Ley de Transparencia y Acceso a la Información Pública del Estado de Aguascalientes y sus Municipios, por lo anterior se califican con valor “0” todos y cada uno de los criterios respectivos."]
[null,null,"Criterio 15. Hipervínculo a los informes sobre el uso y destino de los recursos que se asignaron o cuyo uso se permitió",1,0,"Requerimiento","EL FORMATO NO SE ENCUENTRA PUBLICADO.- El formato no se encuentra actualizado y publicado al periodo que se evalúa, lo cual contraviene lo dispuesto en el artículo 47 de la Ley de Transparencia y Acceso a la Información Pública del Estado de Aguascalientes y sus Municipios, por lo anterior se califican con valor “0” todos y cada uno de los criterios respectivos.",null,null,null,null,"EL FORMATO NO SE ENCUENTRA PUBLICADO.- El formato no se encuentra actualizado y publicado al periodo que se evalúa, lo cual contraviene lo dispuesto en el artículo 47 de la Ley de Transparencia y Acceso a la Información Pública del Estado de Aguascalientes y sus Municipios, por lo anterior se califican con valor “0” todos y cada uno de los criterios respectivos."]
[null,null,"Criterio 16.Fecha en la que el sujeto obligado firmó el documento que autoriza la asignación o permite la entrega de recursos al/los particulares, publicada con el formato día/mes/año ",1,0,"Requerimiento","EL FORMATO NO SE ENCUENTRA PUBLICADO.- El formato no se encuentra actualizado y publicado al periodo que se evalúa, lo cual contraviene lo dispuesto en el artículo 47 de la Ley de Transparencia y Acceso a la Información Pública del Estado de Aguascalientes y sus Municipios, por lo anterior se califican con valor “0” todos y cada uno de los criterios respectivos.",null,null,null,null,"EL FORMATO NO SE ENCUENTRA PUBLICADO.- El formato no se encuentra actualizado y publicado al periodo que se evalúa, lo cual contraviene lo dispuesto en el artículo 47 de la Ley de Transparencia y Acceso a la Información Pública del Estado de Aguascalientes y sus Municipios, por lo anterior se califican con valor “0” todos y cada uno de los criterios respectivos."]
[null,null,"Criterio 17.Hipervínculo al convenio, acuerdo, decreto o convocatoria oficial. En su caso, señalar que no se emitió convocatoria algun",1,0,"Requerimiento","EL FORMATO NO SE ENCUENTRA PUBLICADO.- El formato no se encuentra actualizado y publicado al periodo que se evalúa, lo cual contraviene lo dispuesto en el artículo 47 de la Ley de Transparencia y Acceso a la Información Pública del Estado de Aguascalientes y sus Municipios, por lo anterior se califican con valor “0” todos y cada uno de los criterios respectivos.",null,null,null,null,"EL FORMATO NO SE ENCUENTRA PUBLICADO.- El formato no se encuentra actualizado y publicado al periodo que se evalúa, lo cual contraviene lo dispuesto en el artículo 47 de la Ley de Transparencia y Acceso a la Información Pública del Estado de Aguascalientes y sus Municipios, por lo anterior se califican con valor “0” todos y cada uno de los criterios respectivos."]
[null,null,"Criterio 18.Acto(s) de autoridad para los que se facultó a la persona física o moral ",1,0,"Requerimiento","EL FORMATO NO SE ENCUENTRA PUBLICADO.- El formato no se encuentra actualizado y publicado al periodo que se evalúa, lo cual contraviene lo dispuesto en el artículo 47 de la Ley de Transparencia y Acceso a la Información Pública del Estado de Aguascalientes y sus Municipios, por lo anterior se califican con valor “0” todos y cada uno de los criterios respectivos.",null,null,null,null,"EL FORMATO NO SE ENCUENTRA PUBLICADO.- El formato no se encuentra actualizado y publicado al periodo que se evalúa, lo cual contraviene lo dispuesto en el artículo 47 de la Ley de Transparencia y Acceso a la Información Pública del Estado de Aguascalientes y sus Municipios, por lo anterior se califican con valor “0” todos y cada uno de los criterios respectivos."]
[null,null,"Criterio 19.Periodo para el que fue facultado para realizar el/los acto(s) de autoridad (fecha de inicio y fecha de término día/mes/año) ",1,0,"Requerimiento","EL FORMATO NO SE ENCUENTRA PUBLICADO.- El formato no se encuentra actualizado y publicado al periodo que se evalúa, lo cual contraviene lo dispuesto en el artículo 47 de la Ley de Transparencia y Acceso a la Información Pública del Estado de Aguascalientes y sus Municipios, por lo anterior se califican con valor “0” todos y cada uno de los criterios respectivos.",null,null,null,null,"EL FORMATO NO SE ENCUENTRA PUBLICADO.- El formato no se encuentra actualizado y publicado al periodo que se evalúa, lo cual contraviene lo dispuesto en el artículo 47 de la Ley de Transparencia y Acceso a la Información Pública del Estado de Aguascalientes y sus Municipios, por lo anterior se califican con valor “0” todos y cada uno de los criterios respectivos."]
[null,null,"Criterio 20.El gobierno participó en la creación de la persona física o moral (catálogo): si/no ",1,0,"Requerimiento","EL FORMATO NO SE ENCUENTRA PUBLICADO.- El formato no se encuentra actualizado y publicado al periodo que se evalúa, lo cual contraviene lo dispuesto en el artículo 47 de la Ley de Transparencia y Acceso a la Información Pública del Estado de Aguascalientes y sus Municipios, por lo anterior se califican con valor “0” todos y cada uno de los criterios respectivos.",null,null,null,null,"EL FORMATO NO SE ENCUENTRA PUBLICADO.- El formato no se encuentra actualizado y publicado al periodo que se evalúa, lo cual contraviene lo dispuesto en el artículo 47 de la Ley de Transparencia y Acceso a la Información Pública del Estado de Aguascalientes y sus Municipios, por lo anterior se califican con valor “0” todos y cada uno de los criterios respectivos."]
[null,null,"Criterio 21.La persona física o moral realiza una función gubernamental (catálogo): si/no ",1,0,"Requerimiento","EL FORMATO NO SE ENCUENTRA PUBLICADO.- El formato no se encuentra actualizado y publicado al periodo que se evalúa, lo cual contraviene lo dispuesto en el artículo 47 de la Ley de Transparencia y Acceso a la Información Pública del Estado de Aguascalientes y sus Municipios, por lo anterior se califican con valor “0” todos y cada uno de los criterios respectivos.",null,null,null,null,"EL FORMATO NO SE ENCUENTRA PUBLICADO.- El formato no se encuentra actualizado y publicado al periodo que se evalúa, lo cual contraviene lo dispuesto en el artículo 47 de la Ley de Transparencia y Acceso a la Información Pública del Estado de Aguascalientes y sus Municipios, por lo anterior se califican con valor “0” todos y cada uno de los criterios respectivos."]
[]
[null,null,"Criterios Adjetivos"]
[]
[null,null,"Criterio",null,"Valoración","Tipo","Observaciones, Recomendaciones y/o Requerimientos"]
[null,null,"Criterio 22.Periodo de actualización de la información: trimestral.",1,0,"Requerimiento","EL FORMATO NO SE ENCUENTRA PUBLICADO.- El formato no se encuentra actualizado y publicado al periodo que se evalúa, lo cual contraviene lo dispuesto en el artículo 47 de la Ley de Transparencia y Acceso a la Información Pública del Estado de Aguascalientes y sus Municipios, por lo anterior se califican con valor “0” todos y cada uno de los criterios respectivos.",null,null,null,null,"EL FORMATO NO SE ENCUENTRA PUBLICADO.- El formato no se encuentra actualizado y publicado al periodo que se evalúa, lo cual contraviene lo dispuesto en el artículo 47 de la Ley de Transparencia y Acceso a la Información Pública del Estado de Aguascalientes y sus Municipios, por lo anterior se califican con valor “0” todos y cada uno de los criterios respectivos."]
[null,null,"Criterio 23.La información publicada deberá estar actualizada al periodo que corresponde, de acuerdo con la Tabla de actualización y conservación de la información",1,0,"Requerimiento","EL FORMATO NO SE ENCUENTRA PUBLICADO.- El formato no se encuentra actualizado y publicado al periodo que se evalúa, lo cual contraviene lo dispuesto en el artículo 47 de la Ley de Transparencia y Acceso a la Información Pública del Estado de Aguascalientes y sus Municipios, por lo anterior se califican con valor “0” todos y cada uno de los criterios respectivos.",null,null,null,null,"EL FORMATO NO SE ENCUENTRA PUBLICADO.- El formato no se encuentra actualizado y publicado al periodo que se evalúa, lo cual contraviene lo dispuesto en el artículo 47 de la Ley de Transparencia y Acceso a la Información Pública del Estado de Aguascalientes y sus Municipios, por lo anterior se califican con valor “0” todos y cada uno de los criterios respectivos."]
[null,null,"Criterio 24.Conservar en el sitio de Internet y a través de la Plataforma Nacional la información vigente de acuerdo con la Tabla de actualización y conservación de la información",1,0,"Requerimiento","EL FORMATO NO SE ENCUENTRA PUBLICADO.- El formato no se encuentra actualizado y publicado al periodo que se evalúa, lo cual contraviene lo dispuesto en el artículo 47 de la Ley de Transparencia y Acceso a la Información Pública del Estado de Aguascalientes y sus Municipios, por lo anterior se califican con valor “0” todos y cada uno de los criterios respectivos.",null,null,null,null,"EL FORMATO NO SE ENCUENTRA PUBLICADO.- El formato no se encuentra actualizado y publicado al periodo que se evalúa, lo cual contraviene lo dispuesto en el artículo 47 de la Ley de Transparencia y Acceso a la Información Pública del Estado de Aguascalientes y sus Municipios, por lo anterior se califican con valor “0” todos y cada uno de los criterios respectivos."]
[null,null,"Criterio 25.Área(s) o unidad(es) administrativa(s) que genera(n) o posee(n) la información respectiva y son responsables de publicarla y actualizarla",1,0,"Requerimiento","EL FORMATO NO SE ENCUENTRA PUBLICADO.- El formato no se encuentra actualizado y publicado al periodo que se evalúa, lo cual contraviene lo dispuesto en el artículo 47 de la Ley de Transparencia y Acceso a la Información Pública del Estado de Aguascalientes y sus Municipios, por lo anterior se califican con valor “0” todos y cada uno de los criterios respectivos.",null,null,null,null,"EL FORMATO NO SE ENCUENTRA PUBLICADO.- El formato no se encuentra actualizado y publicado al periodo que se evalúa, lo cual contraviene lo dispuesto en el artículo 47 de la Ley de Transparencia y Acceso a la Información Pública del Estado de Aguascalientes y sus Municipios, por lo anterior se califican con valor “0” todos y cada uno de los criterios respectivos."]
[null,null,"Criterio 26.Fecha de actualización de la información publicada con el formato día/mes/año ",1,0,"Requerimiento","EL FORMATO NO SE ENCUENTRA PUBLICADO.- El formato no se encuentra actualizado y publicado al periodo que se evalúa, lo cual contraviene lo dispuesto en el artículo 47 de la Ley de Transparencia y Acceso a la Información Pública del Estado de Aguascalientes y sus Municipios, por lo anterior se califican con valor “0” todos y cada uno de los criterios respectivos.",null,null,null,null,"EL FORMATO NO SE ENCUENTRA PUBLICADO.- El formato no se encuentra actualizado y publicado al periodo que se evalúa, lo cual contraviene lo dispuesto en el artículo 47 de la Ley de Transparencia y Acceso a la Información Pública del Estado de Aguascalientes y sus Municipios, por lo anterior se califican con valor “0” todos y cada uno de los criterios respectivos."]
[null,null,"Criterio 27.Fecha de validación  de la información publicada con el formato día/mes/año ",1,0,"Requerimiento","EL FORMATO NO SE ENCUENTRA PUBLICADO.- El formato no se encuentra actualizado y publicado al periodo que se evalúa, lo cual contraviene lo dispuesto en el artículo 47 de la Ley de Transparencia y Acceso a la Información Pública del Estado de Aguascalientes y sus Municipios, por lo anterior se califican con valor “0” todos y cada uno de los criterios respectivos.",null,null,null,null,"EL FORMATO NO SE ENCUENTRA PUBLICADO.- El formato no se encuentra actualizado y publicado al periodo que se evalúa, lo cual contraviene lo dispuesto en el artículo 47 de la Ley de Transparencia y Acceso a la Información Pública del Estado de Aguascalientes y sus Municipios, por lo anterior se califican con valor “0” todos y cada uno de los criterios respectivos."]
[null,null,"Criterio 28.Nota. Este criterio se cumple en caso de que sea necesario que el sujeto obligado incluya alguna aclaración relativa a la información publicada y/o explicación por la falta de información ",1,0,"Requerimiento","EL FORMATO NO SE ENCUENTRA PUBLICADO.- El formato no se encuentra actualizado y publicado al periodo que se evalúa, lo cual contraviene lo dispuesto en el artículo 47 de la Ley de Transparencia y Acceso a la Información Pública del Estado de Aguascalientes y sus Municipios, por lo anterior se califican con valor “0” todos y cada uno de los criterios respectivos.",null,null,null,null,"EL FORMATO NO SE ENCUENTRA PUBLICADO.- El formato no se encuentra actualizado y publicado al periodo que se evalúa, lo cual contraviene lo dispuesto en el artículo 47 de la Ley de Transparencia y Acceso a la Información Pública del Estado de Aguascalientes y sus Municipios, por lo anterior se califican con valor “0” todos y cada uno de los criterios respectivos."]
[null,null,"Criterio 29.La información publicada se organiza mediante el formato 26, en el que se incluyen todos los campos especificados en los criterios sustantivos de contenido ",1,0,"Requerimiento","EL FORMATO NO SE ENCUENTRA PUBLICADO.- El formato no se encuentra actualizado y publicado al periodo que se evalúa, lo cual contraviene lo dispuesto en el artículo 47 de la Ley de Transparencia y Acceso a la Información Pública del Estado de Aguascalientes y sus Municipios, por lo anterior se califican con valor “0” todos y cada uno de los criterios respectivos.",null,null,null,null,"EL FORMATO NO SE ENCUENTRA PUBLICADO.- El formato no se encuentra actualizado y publicado al periodo que se evalúa, lo cual contraviene lo dispuesto en el artículo 47 de la Ley de Transparencia y Acceso a la Información Pública del Estado de Aguascalientes y sus Municipios, por lo anterior se califican con valor “0” todos y cada uno de los criterios respectivos."]
[null,null,"Criterio 30.El soporte de la información permite su reutilización",1,0,"Requerimiento","EL FORMATO NO SE ENCUENTRA PUBLICADO.- El formato no se encuentra actualizado y publicado al periodo que se evalúa, lo cual contraviene lo dispuesto en el artículo 47 de la Ley de Transparencia y Acceso a la Información Pública del Estado de Aguascalientes y sus Municipios, por lo anterior se califican con valor “0” todos y cada uno de los criterios respectivos.",null,null,null,null,"EL FORMATO NO SE ENCUENTRA PUBLICADO.- El formato no se encuentra actualizado y publicado al periodo que se evalúa, lo cual contraviene lo dispuesto en el artículo 47 de la Ley de Transparencia y Acceso a la Información Pública del Estado de Aguascalientes y sus Municipios, por lo anterior se califican con valor “0” todos y cada uno de los criterios respectivos."]
[]
[]
[]
[]
[null,"Art. 55 - Fracción XL. Evaluaciones y encuestas a programas financiados con recursos públicos"]
[]
[null,null,"Criterios Sustantivos",null,{"$f":"IF('[1]Aplicabilidad Art.55'!$Q$16=\"NO\",\"NA\",SUM(E419:E429)/SUM(D419:D429))","v":1},null,{"$f":"CONCATENATE(\"Según la configuración de aplicabilidad, esta fracción \",'[1]Aplicabilidad Art.55'!#REF!,\" aplica.\")","v":{"$error":"#REF!"}}]
[null,null,"Criterios Adjetivos",null,{"$f":"IF('[1]Aplicabilidad Art.55'!$Q$16=\"NO\",\"NA\",SUM(E434:E442)/SUM(D434:D442))","v":1},null,"Aplica a todos los sujetos obligados"]
[null,null,"Fracción:",null,{"$f":"IF('[1]Aplicabilidad Art.55'!$Q$16=\"NO\",\"NA\",E410*0.6+E411*0.4)","v":1},null,"Periodo de actualización: Anual"]
[]
[]
[]
[null,null,"Criterios Sustantivos de contenido"]
[]
[null,null,"Criterio",null,"Valoración","Tipo","Observaciones, Recomendaciones y/o Requerimientos"]
[null,null,"Criterio 1. Ejercicio ",1,1,"Observación","Ninguna"]
[null,null,"Criterio 2. Periodo que se informa (fecha de inicio y fecha de término con el formato día/mes/año) ",1,1,"Observación","Ninguna"]
[null,null,"Criterio 2. Denominación del programa evaluado",1,1,"Observación","Ninguna"]
[null,null,"Criterio 3. Denominación de la evaluación",1,1,"Observación","Ninguna"]
[null,null,"Criterio 4. Hipervínculo a los resultados de la evaluación (registrados en el Formato para la difusión de los resultados de la evaluaciones)",1,1,"Observación","Ninguna"]
[null,null,"Criterio 5. Ejercicio",1,1,"Observación","Ninguna"]
[null,null,"Criterio 2. Periodo que se informa (fecha de inicio y fecha de término con el formato día/mes/año) ",1,1,"Observación","Ninguna"]
[null,null,"Criterio 6. Tipo de encuesta",1,1,"Observación","Ninguna"]
[null,null,"Criterio 7. Denominación de la encuesta",1,1,"Observación","Ninguna"]
[null,null,"Criterio 8. Objetivo de la encuesta",1,1,"Observación","Ninguna"]
[null,null,"Criterio 9. Hipervínculo a los resultados de las encuestas. En su caso, se incluirá la versión pública",1,1,"Observación","Ninguna"]
[]
[null,null,"Criterios Adjetivos"]
[]
[null,null,"Criterio",null,"Valoración","Tipo","Observaciones, Recomendaciones y/o Requerimientos"]
[null,null,"Criterio 10.Periodo de actualización de la información: anual",1,1,"Observación","Ninguna"]
[null,null,"Criterio 11.La información publicada deberá estar actualizada al periodo que corresponde, de acuerdo con la Tabla de actualización y conservación de la información",1,1,"Observación","Ninguna"]
[null,null,"Criterio 12.Conservar en el sitio de Internet y a través de la Plataforma Nacional la información vigente de acuerdo con la Tabla de actualización y conservación de la información",1,1,"Observación","Ninguna"]
[null,null,"Criterio 13.Área(s) o unidad(es) administrativa(s) que genera(n) o posee(n) la información respectiva y son responsables de publicarla y actualizarla",1,1,"Observación","Ninguna"]
[null,null,"Criterio 14.Fecha de actualización de la información publicada con el formato día/mes/año ",1,1,"Observación","Ninguna"]
[null,null,"Criterio 15.Fecha de validación  de la información publicada con el formato día/mes/año ",1,1,"Observación","Ninguna"]
[null,null,"Criterio 16.Nota. Este criterio se cumple en caso de que sea necesario que el sujeto obligado incluya alguna aclaración relativa a la información publicada y/o explicación por la falta de información ",1,1,"Observación","Ninguna"]
[null,null,"Criterio 17.La información publicada se organiza mediante los formatos 40a y 40b, en los que se incluyen todos los campos especificados en los criterios sustantivos de contenido",1,1,"Observación","Ninguna"]
[null,null,"Criterio 18.El soporte de la información permite su reutilización",1,1,"Observación","Ninguna",null,null,null,null,{"$f":"IF(M442>0,B432,\"\")","v":0},{"$f":"COUNTIFS(G443:G461,\"<>Ninguna\", G443:G461,\"<>Observaciones, Recomendaciones y/o Requerimientos\",G443:G461,\"<>\")","v":4}]
[null,null,null,null,null,null,null,null,null,null,null,{"$f":"IF(G443<>\"Ninguna\",G443,\"\")","v":0}]
[null,null,null,null,null,null,null,null,null,null,null,0]
[]
[]
[null,null,null,null,null,null,null,null,null,null,null,0]
[null,"Art. 55 - Fracción XLI. Estudios pagados con recursos públicos",null,null,null,null,null,null,null,null,null,0]
[]
[null,null,"Criterios Sustantivos",null,{"$f":"IF('[1]Aplicabilidad Art.55'!$Q$18=\"NO\",\"NA\",SUM(E459:E473)/SUM(D459:D473))","v":0.13333333333333333},null,{"$f":"CONCATENATE(\"Según la configuración de aplicabilidad, esta fracción \",'[1]Aplicabilidad Art.55'!#REF!,\" aplica.\")","v":{"$error":"#REF!"}}]
[null,null,"Criterios Adjetivos",null,{"$f":"IF('[1]Aplicabilidad Art.55'!$Q$18=\"NO\",\"NA\",SUM(E478:E486)/SUM(D478:D486))","v":1},null,"Aplica a todos los sujetos obligados"]
[null,null,"Fracción:",null,{"$f":"IF('[1]Aplicabilidad Art.55'!$Q$18=\"NO\",\"NA\",E450*0.6+E451*0.4)","v":0.48000000000000004},null,"Periodo de actualización: Trimestral"]
[null,null,null,null,null,null,null,null,null,null,null,0]
[null,null,null,null,null,null,null,null,null,null,null,0]
[null,null,null,null,null,null,null,null,null,null,null,0]
[null,null,"Criterios Sustantivos de contenido",null,null,null,null,null,null,null,null,0]
[null,null,null,null,null,null,null,null,null,null,null,0]
[null,null,"Criterio",null,"Valoración","Tipo","Observaciones, Recomendaciones y/o Requerimientos",null,null,null,null,"Observaciones, Recomendaciones y/o Requerimientos"]
[null,null,"Criterio 1. Ejercicio ",1,1,"Observación","Ninguna",null,null,null,null,""]
[null,null,"Criterio 2. Periodo que se informa (fecha de inicio y fecha de término con el formato día/mes/año) ",1,1,"Observación","Ninguna",null,null,null,null,""]
[null,null,"Criterio 3.Forma y actores participantes en la elaboración del estudio (catálogo): Realizado por el sujeto obligado/Realizado en colaboración con instituciones u organismos públicos/Realizado en colaboración con organizaciones del sector social y privado y/o personas físicas/Realizado a solicitud del sujeto obligado a organizaciones del sector público, social, privado o personas físicas ",1,0,"Requerimiento","CELDAS VACIAS.- Se detectaron celdas sin información y no se justifica dicha omisión en la nota respectiva, toda vez que la misma no es congruente.",null,null,null,null,"CELDAS VACIAS.- Se detectaron celdas sin información y no se justifica dicha omisión en la nota respectiva, toda vez que la misma no es congruente."]
[null,null,"Criterio 4.Título del estudio ",1,0,"Requerimiento","CELDAS VACIAS.- Se detectaron celdas sin información y no se justifica dicha omisión en la nota respectiva, toda vez que la misma no es congruente."]
[null,null,"Criterio 5.Área(s) al interior del sujeto obligado que fue responsable de la elaboración o coordinación del estudio ",1,0,"Requerimiento","CELDAS VACIAS.- Se detectaron celdas sin información y no se justifica dicha omisión en la nota respectiva, toda vez que la misma no es congruente."]
[null,null,"Criterio 6.Denominación de la institución u organismo público o privado, que en su caso, colaboró en la elaboración del estudio ",1,0,"Requerimiento","CELDAS VACIAS.- Se detectaron celdas sin información y no se justifica dicha omisión en la nota respectiva, toda vez que la misma no es congruente."]
[null,null,"Criterio 7.SBN123 o ISSN124, en su caso. ",1,0,"Requerimiento","CELDAS VACIAS.- Se detectaron celdas sin información y no se justifica dicha omisión en la nota respectiva, toda vez que la misma no es congruente."]
[null,null,"Criterio 8.Objeto del estudio ",1,0,"Requerimiento","CELDAS VACIAS.- Se detectaron celdas sin información y no se justifica dicha omisión en la nota respectiva, toda vez que la misma no es congruente."]
[null,null,"Criterio 9. Autor(es) intelectual(es) del estudio, investigación o análisis (nombre[s], primer apellido, segundo apellido)",1,0,"Requerimiento","CELDAS VACIAS.- Se detectaron celdas sin información y no se justifica dicha omisión en la nota respectiva, toda vez que la misma no es congruente."]
[null,null,"Criterio 10.Fecha de publicación del estudio con el formato día/mes/año ",1,0,"Requerimiento","CELDAS VACIAS.- Se detectaron celdas sin información y no se justifica dicha omisión en la nota respectiva, toda vez que la misma no es congruente."]
[null,null,"Criterio 11.Número de edición para aquellos estudios, publicados en libro",1,0,"Requerimiento","CELDAS VACIAS.- Se detectaron celdas sin información y no se justifica dicha omisión en la nota respectiva, toda vez que la misma no es congruente."]
[null,null,"Criterio 12.Lugar de publicación (indicar el nombre de la ciudad) ",1,0,"Requerimiento","CELDAS VACIAS.- Se detectaron celdas sin información y no se justifica dicha omisión en la nota respectiva, toda vez que la misma no es congruente."]
[null,null,"Criterio 13.Hipervínculo a los contratos, convenios de colaboración, coordinación o figuras análogas celebrados por el sujeto obligado con el fin de elaborar los estudios. En caso de que no se haya celebrado alguno, deberá especificarlo",1,0,"Requerimiento","CELDAS VACIAS.- Se detectaron celdas sin información y no se justifica dicha omisión en la nota respectiva, toda vez que la misma no es congruente."]
[null,null,"Criterio 154Monto total de los recursos públicos destinados a la elaboración del estudio (en Pesos mexicanos) ",1,0,"Requerimiento","CELDAS VACIAS.- Se detectaron celdas sin información y no se justifica dicha omisión en la nota respectiva, toda vez que la misma no es congruente."]
[null,null,"Criterio 15.Monto total de los recursos privados destinados a la elaboración del estudio (en Pesos mexicanos) ",1,0,"Requerimiento","CELDAS VACIAS.- Se detectaron celdas sin información y no se justifica dicha omisión en la nota respectiva, toda vez que la misma no es congruente."]
[]
[null,null,"Criterios Adjetivos"]
[]
[null,null,"Criterio",null,"Valoración","Tipo","Observaciones, Recomendaciones y/o Requerimientos"]
[null,null,"Criterio 16.Periodo de actualización de la información: trimestral.  En su caso, dentro de los 20 días naturales siguientes a la publicación de los resultados del estudio",1,1,"Observación","Ninguna"]
[null,null,"Criterio 17.La información publicada deberá estar actualizada al periodo que corresponde, de acuerdo con la Tabla de actualización y conservación de la información",1,1,"Observación","Ninguna"]
[null,null,"Criterio 18.Conservar en el sitio de Internet y a través de la Plataforma Nacional la información vigente de acuerdo con la Tabla de actualización y conservación de la información",1,1,"Observación","Ninguna"]
[null,null,"Criterio 19.Área(s) o unidad(es) administrativa(s) que genera(n) o posee(n) la información respectiva y son responsables de publicarla y actualizarla",1,1,"Observación","Ninguna"]
[null,null,"Criterio 20.Fecha de actualización de la información publicada con el formato día/mes/año ",1,1,"Observación","Ninguna"]
[null,null,"Criterio 21.Fecha de validación  de la información publicada con el formato día/mes/año ",1,1,"Observación","Ninguna"]
[null,null,"Criterio 22. Nota. Este criterio se cumple en caso de que sea necesario que el sujeto obligado incluya alguna aclaración relativa a la información publicada y/o explicación por la falta de información ",1,1,"Observación","Ninguna"]
[null,null,"Criterio 23.La información publicada se organiza mediante el formato 41, en el que se incluyen todos los campos especificados en los criterios sustantivos de contenido ",1,1,"Observación","Ninguna"]
[null,null,"Criterio 24.El soporte de la información permite su reutilización",1,1,"Observación","Ninguna"]
[]
[]
[]
[null,"Art. 55 - Fracción XLV. Instrumentos de archivos"]
[]
[null,null,"Criterios Sustantivos",null,{"$f":"IF('[1]Aplicabilidad Art.55'!$Q$26=\"NO\",\"NA\",SUM(E501:E507)/SUM(D501:D507))","v":1},null,{"$f":"CONCATENATE(\"Según la configuración de aplicabilidad, esta fracción \",'[1]Aplicabilidad Art.55'!#REF!,\" aplica.\")","v":{"$error":"#REF!"}}]
[null,null,"Criterios Adjetivos",null,{"$f":"IF('[1]Aplicabilidad Art.55'!$Q$26=\"NO\",\"NA\",SUM(E512:E520)/SUM(D512:D520))","v":1},null,"Aplica a todos los sujetos obligados"]
[null,null,"Fracción:",null,{"$f":"IF('[1]Aplicabilidad Art.55'!$Q$26=\"NO\",\"NA\",E492*0.6+E493*0.4)","v":1},null,"Periodo de actualización: Anual"]
[]
[]
[]
[null,null,"Criterios Sustantivos de contenido"]
[]
[null,null,"Criterio",null,"Valoración","Tipo","Observaciones, Recomendaciones y/o Requerimientos"]
[null,null,"Criterio 1. Ejercicio ",1,1,"Observación","Ninguna"]
[null,null,"Criterio 2. Periodo que se informa (fecha de inicio y fecha de término con el formato día/mes/año) ",1,1,"Observación","Ninguna"]
[null,null,"Criterio 3.Instrumento archivístico (catálogo): Catálogo de disposición documental/Guía Simple de archivos/Otro ",1,1,"Observación","Ninguna"]
[null,null,"Criterio 4. Hipervínculo a los documentos: Catálogo de disposición documental y Guía simple de archivos, o en su caso, otros instrumentos adicionales",1,1,"Observación","Ninguna"]
[null,null,"Criterio 5. Nombre completo del (la) responsable e integrantes del área o unidad coordinadora de archivos",1,1,"Observación","Ninguna"]
[null,null,"Criterio 6. Puesto del (la) responsable e integrantes del área o unidad coordinadora de archivo",1,1,"Observación","Ninguna"]
[null,null,"Criterio 7. Cargo del (la) responsable e integrantes del área o unidad coordinadora de archivo",1,1,"Observación","Ninguna"]
[]
[null,null,"Criterios Adjetivos"]
[]
[null,null,"Criterio",null,"Valoración","Tipo","Observaciones, Recomendaciones y/o Requerimientos"]
[null,null,"Criterio 8.Periodo de actualización de la información: anual",1,1,"Observación","Ninguna"]
[null,null,"Criterio 9.La información publicada deberá estar actualizada al periodo que corresponde, de acuerdo con la Tabla de actualización y conservación de la información",1,1,"Observación","Ninguna"]
[null,null,"Criterio 10.Conservar en el sitio de Internet y a través de la Plataforma Nacional la información vigente de acuerdo con la Tabla de actualización y conservación de la información",1,1,"Observación","Ninguna"]
[null,null,"Criterio 11.Área(s) o unidad(es) administrativa(s) que genera(n) o posee(n) la información respectiva y son responsables de publicarla y actualizarla",1,1,"Observación","Ninguna"]
[null,null,"Criterio 12.Fecha de actualización de la información publicada con el formato día/mes/año ",1,1,"Observación","Ninguna"]
[null,null,"Criterio 13.Fecha de validación  de la información publicada con el formato día/mes/año ",1,1,"Observación","Ninguna"]
[null,null,"Criterio 14.Nota. Este criterio se cumple en caso de que sea necesario que el sujeto obligado incluya alguna aclaración relativa a la información publicada y/o explicación por la falta de información ",1,1,"Observación","Ninguna"]
[null,null,"Criterio 15.La información publicada se organiza mediante el formato 45, en el que se incluyen todos los campos especificados en los criterios sustantivos de contenido ",1,1,"Observación","Ninguna"]
[null,null,"Criterio 16.El soporte de la información permite su reutilización",1,1,"Observación","Ninguna"]

{"sheet":"Obligaciones","index":5,"n_rows":178,"n_cols":15,"rows_kept":178,"cut":false,"hidden":true,"merged":[]}
["Volver al índice","Hojas","Título","Artículo","Fracción","Inciso","No. de Crit.Sust","adj","Periodo de Actualización","del","al","RANG.SUST","del","al","RANG.ADJ"]
["ÍNDICE","Art 71.FI","Art. 71 - Fracción I - Inciso A. Plan de Desarrollo",71,"I","A",10,8,"Periodicidad de actualización: Sexenal para el Poder Ejecutivo Federal, las Entidades Federativas y el Gobierno de la Ciudad de México: cuando se decrete el Plan respectivo cada seis años o en caso de que el Congreso de la Unión realice observaciones para su ejecución, revisión o adecuación, se actualizará en marzo de cada año. Trianual para los Municipios (Ayuntamientos). Actualizarán el Plan Municipal de Desarrollo cada tres o cuatro años, dependiendo de la legislación local que corresponda",28,37,"28:37",42,49,"42:49"]
["Cat. SO","Art 71.FI","Art. 71 - Fracción I - Inciso B. Presupuesto de egresos",71,"I","B",15,8,"Periodicidad de actualización: Anual ",69,83,"69:83",88,95,"88:95"]
["Cat. Res","Art 71.FI","Art. 71 - Fracción I - Inciso C. Expropiaciones realizadas",71,"I","C",17,8,"Periodicidad de actualización: Trimestral ",115,131,"115:131",136,143,"136:143"]
["Aplic. SO","Art 71.FI","Art. 71 - Fracción I - Inciso D. Contribuyentes que recibieron cancelación o condonación de créditos fiscales",71,"I","D",22,8,"Periodicidad de actualización: Trimestral ",163,184,"163:184",189,196,"189:196"]
["Aplicabilidad Art.70","Art 71.FI","Art. 71 - Fracción I - Inciso E. Los nombres de las personas a quienes se les habilitó para ejercer como corredores y notarios públicos",71,"I","E",30,8,"Periodicidad de actualización: Trimestral ",216,245,"216:245",250,257,"250:257"]
["Art 70","Art 71.FI","Art. 71 - Fracción I - Inciso F. Planes de desarrollo urbano",71,"I","F",37,8,"Periodicidad de actualización: Anual. En el caso del Poder Ejecutivo Federal, Estatales y de la Ciudad de México. Los municipios actualizarán el/los Plan(es) Municipales cada tres o cuatro años según corresponda. Respecto a los tipos de uso del suelo, licencias de uso y construcción actualizarán trimestralmente. Poder Ejecutivo Federal, Estatales y de la Ciudad de México. Los municipios actualizarán el/los Plan(es) Municipales cada tres o cuatro años según corresponda. Respecto a los tipos de uso del suelo, licencias de uso y construcción actualizarán trimestralmente.",277,313,"277:313",318,325,"318:325"]
["Art 71.FI","Art 71.FI","Art. 71 - Fracción I - Inciso G. Disposiciones administrativas",71,"I","G",8,8,"Periodicidad de actualización: Trimestral ",345,352,"345:352",357,364,"357:364"]
["Art 71.FII","Art 71.FII","Art. 71 - Fracción II - Inciso A. Gacetas",71,"II","A",8,8,"Periodicidad de actualización: Trimestral,  de acuerdo con la normatividad correspondiente",28,35,"28:35",40,47,"40:47"]
["Art 72","Art 71.FII","Art. 71 - Fracción II - Inciso B. Calendario de sesiones del Cabildo",71,"II","B",12,8,"Periodicidad de actualización: Trimestral ",67,78,"67:78",83,90,"83:90"]
["Art 73","Art 72","Art. 72 - Fracción I. Agenda Legislativa",72,"I",null,11,8,"Periodicidad de actualización: Por cada periodo ordinario de sesiones. En los casos que el marco normativo de cada congreso lo estipule, la agenda legislativa se presentará por cada año legislativo o de manera trianual.",28,38,"28:38",43,50,"43:50"]
["Art 74.FI","Art 72","Art. 72 - Fracción II. Gaceta Parlamentaria",72,"II",null,11,8,"Periodicidad de actualización: Por cada sesión de Pleno, de acuerdo a la normatividad de cada órgano legislativo ",70,80,"70:80",85,92,"85:92"]
["Art 74.FII","Art 72","Art. 72 - Fracción III. Orden del día",72,"III",null,26,8,"Periodicidad de actualización: Por cada Sesión de Pleno, de acuerdo a la normatividad de cada órgano legislativo ",112,137,"112:137",142,149,"142:149"]
["Art 74.FIII","Art 72","Art. 72 - Fracción IV. Diario de debates",72,"IV",null,28,8,"Periodicidad de actualización: Por cada Sesión de Pleno, en un plazo no mayor a cinco días hábiles de que se haya llevado a cabo la sesión. La periodicidad con la que se lleven a cabo las sesiones deberá observarse en la normatividad de cada órgano legislativo",169,196,"169:196",201,208,"201:208"]
["Art 76","Art 72","Art. 72 - Fracción V. Versiones estereofónicas",72,"V",null,17,8,"Periodicidad de actualización: Quincenal. La periodicidad con la que se lleven a cabo las sesiones deberá observarse en la normatividad de cada órgano legislativo",228,244,"228:244",249,256,"249:256"]
["Art 77","Art 72","Art. 72 - Fracción VI. Listas de asistencia",72,"VI",null,19,8,"Periodicidad de actualización: Por cada sesión y reunión de comisiones, de acuerdo a la normatividad de cada órgano legislativo",276,294,"276:294",299,306,"299:306"]
["Art 78","Art 72","Art. 72 - Fracción VII. Iniciativas de ley o decreto y puntos de acuerdo",72,"VII",null,21,8,"Periodicidad de actualización: Por cada sesión de Pleno o de acuerdo a la normatividad de cada órgano legislativo ",326,346,"326:346",351,358,"351:358"]
["Art 79","Art 72","Art. 72 - Fracción VIII. Leyes, decretos, acuerdos",72,"VIII",null,15,8,"Periodicidad de actualización: Por cada sesión de Pleno, de acuerdo a la normatividad de cada órgano legislativo",378,392,"378:392",397,404,"397:404"]
["Art 75","Art 72","Art. 72 - Fracción IX. Convocatorias",72,"IX",null,110,8,"Periodicidad de actualización: Por cada sesión de Pleno, de acuerdo a la normatividad de cada órgano legislativo",424,533,"424:533",538,545,"538:545"]
["Art 80","Art 72","Art. 72 - Fracción X. Resoluciones de juicios políticos y declaraciones de procedencia",72,"X",null,22,8,"Periodicidad de actualización: Trimestral ",565,586,"565:586",591,598,"591:598"]
["Art 81","Art 72","Art. 72 - Fracción XI. Audiencias Públicas y comparecencias convocadas",72,"XI",null,31,8,"Periodicidad de actualización: Trimestral En el caso de los procedimientos de designación, ratificación, elección o reelección, deberá actualizarse cada fase del proceso en un plazo no mayor a 15 días hábiles",618,648,"618:648",653,660,"653:660"]
["Art 82","Art 72","Art. 72 - Fracción XII. Personal contratado por honorarios",72,"XII",null,20,8,"Periodicidad de actualización: Trimestral ",680,699,"680:699",704,711,"704:711"]
["Art.72_XIII","Art 72","Art. 72 - Fracción XIII. Informes trimestrales de gastos",72,"XIII",null,16,8,"Periodicidad de actualización: Trimestral ",731,746,"731:746",751,758,"751:758"]
["Art.72_XIV","Art 72","Art. 72 - Fracción XIV. Estudios",72,"XIV",null,12,8,"Periodicidad de actualización: Trimestral ",778,789,"778:789",794,801,"794:801"]
["Art.72_XV","Art 72","Art. 72 - Fracción XV. Padrón de cabilderos",72,"XV",null,35,8,"Periodicidad de actualización: Semestral ",821,855,"821:855",860,867,"860:867"]
["Art.73_I","Art 73","Art. 73 - Fracción I. Tesis y Ejecutorias publicadas",73,"I",null,15,8,"Periodicidad de actualización: Mensual ",28,42,"28:42",47,54,"47:54"]
["Art.73_II","Art 73","Art. 73 - Fracción II. Sentencias de interés público emitidas",73,"II",null,8,8,"Periodicidad de actualización: Trimestral ",74,81,"74:81",86,93,"86:93"]
["Art.73_III","Art 73","Art. 73 - Fracción III. Versiones estenográficas de las Sesiones públicas",73,"III",null,4,8,"Periodicidad de actualización: Trimestral ",113,116,"113:116",121,128,"121:128"]
["Art.73_IV","Art 73","Art. 73 - Fracción IV. Designación de Jueces y Magistrados",73,"IV",null,10,8,"Periodicidad de actualización: Trimestral ",148,157,"148:157",162,169,"162:169"]
["Art.73_V","Art 73","Art. 73 - Fracción V. Lista de acuerdos publicados (federal)",73,"V",null,4,8,"Periodicidad de actualización: Trimestral ",189,192,"189:192",197,204,"197:204"]
["Art.74_I_A","Art 74.FI","Art. 74 - Fracción I - Inciso A. Partidos Políticos con registro",74,"I","A",14,8,"Periodicidad de actualización: Trimestral ",28,41,"28:41",46,53,"46:53"]
["Art.74_I_B","Art 74.FI","Art. 74 - Fracción I - Inciso B. Informes presentados por organizaciones, asociaciones, agrupaciones y candidatos independientes",74,"I","B",17,8,"Periodicidad de actualización: Trimestral ",73,89,"73:89",94,101,"94:101"]
["Art.74_I_C","Art 74.FI","Art. 74 - Fracción I - Inciso C. Normatividad en materia de geografía y cartografía electoral",74,"I","C",14,8,"Periodicidad de actualización: Semestral ",121,134,"121:134",139,146,"139:146"]
["Art.74_I_D","Art 74.FI","Art. 74 - Fracción I - Inciso D. Listado de fórmulas de senadores",74,"I","D",40,8,"Periodicidad de actualización: Trianual, Sexenal ",166,205,"166:205",210,217,"210:217"]
["Art.74_I_E","Art 74.FI","Art. 74 - Fracción I - Inciso E. El catálogo de medios y pautas de transmisión, versiones de spots de institutos electorales y partid",74,"I","E",34,8,"Periodicidad de actualización: Trimestral ",237,270,"237:270",275,282,"275:282"]
["Art.74_I_F","Art 74.FI","Art. 74 - Fracción I - Inciso F. Montos entregados <<INE/OPLE>>",74,"I","F",19,8,"Periodicidad de actualización: Mensual, anual, trianual y sexenal ",302,320,"302:320",325,332,"325:332"]
["Art.74_I_G","Art 74.FI","Art. 74 - Fracción I - Inciso G. Acuerdos del Consejo General del INE/OPLE para la publicación de encuestas",74,"I","G",32,8,"Periodicidad de actualización: Semestral ",352,383,"352:383",388,395,"388:395"]
["Art.74_I_H","Art 74.FI","Art. 74 - Fracción I - Inciso H. Metodología del Programa de Resultados Preliminares",74,"I","H",21,8,"Periodicidad de actualización: Trianual, sexenal ",415,435,"415:435",440,447,"440:447"]
["Art.74_I_I","Art 74.FI","Art. 74 - Fracción I - Inciso I. Cómputos totales de elecciones y procesos de participación ciudadana <<sujeto obligado>>",74,"I","I",21,8,"Periodicidad de actualización: Trianual, sexenal ",467,487,"467:487",492,499,"492:499"]
["Art.74_I_J","Art 74.FI","Art. 74 - Fracción I - Inciso J. Resultados y declaración de validez de elecciones sujeto obligado.",74,"I","J",13,8,"Periodicidad de actualización: Cuando en cada elección ordinaria o de carácter extraordinaria se lleven a cabo los cómputos distritales (variable)",519,531,"519:531",536,543,"536:543"]
["Art.74_I_K","Art 74.FI","Art. 74 - Fracción I - Inciso K. Franquicias postales y telegráficas del sujeto obligado",74,"I","K",12,8,"Periodicidad de actualización: Trimestral ",563,574,"563:574",579,586,"579:586"]
["Art.74_I_L","Art 74.FI","Art. 74 - Fracción I - Inciso L. Procedimientos que deben llevar a cabo los votantes en el extranjero, sujeto obligado.",74,"I","L",39,8,"Periodicidad de actualización: Trianual, sexenal ",606,644,"606:644",649,656,"649:656"]
["Art.74_I_M","Art 74.FI","Art. 74 - Fracción I - Inciso M. Documentos de pérdida de registro",74,"I","M",8,8,"Periodicidad de actualización: Trimestral ",676,683,"676:683",688,695,"688:695"]
["Art.74_I_N","Art 74.FI","Art. 74 - Fracción I - Inciso N. Monitoreo a medios de comunicación de <<sujeto obligado>>",74,"I","N",39,8,"Periodicidad de actualización: Trianual, sexenal ",715,753,"715:753",758,765,"758:765"]
["Art.74_II_A","Art 74.FII","Art. 74 - Fracción II - Inciso A. Organismos de Protección de los derechos humanos Nacional y de las Entidades federativas",74,"II","A",13,8,"Periodicidad de actualización: Trimestral ",28,40,"28:40",45,52,"45:52"]
["Art.74_II_B","Art 74.FII","Art. 74 - Fracción II - Inciso B. Organismos de Protección de los derechos humanos Nacional y de las Entidades federativas",74,"II","B",15,8,"Periodicidad de actualización: Trimestral ",72,86,"72:86",91,98,"91:98"]
["Art.74_II_C","Art 74.FII","Art. 74 - Fracción II - Inciso C. Organismos de Protección de los derechos humanos Nacional y de las Entidades federativas",74,"II","C",8,8,"Periodicidad de actualización: Trimestral ",118,125,"118:125",130,137,"130:137"]
["Art.74_II_D","Art 74.FII","Art. 74 - Fracción II - Inciso D. Organismos de Protección de los derechos humanos Nacional y de las Entidades federativas",74,"II","D",6,8,"Periodicidad de actualización: Trimestral ",157,162,"157:162",167,174,"167:174"]
["Art.74_II_E","Art 74.FII","Art. 74 - Fracción II - Inciso E. Organismos de Protección de los derechos humanos Nacional y de las Entidades federativas",74,"II","E",9,8,"Periodicidad de actualización: Trimestral ",194,202,"194:202",207,214,"207:214"]
["Art.74_II_F","Art 74.FII","Art. 74 - Fracción II - Inciso F. Organismos de Protección de los Derechos Humanos Nacional y de las Entidades Federativas",74,"II","F",14,8,"Periodicidad de actualización: Trimestral ",234,247,"234:247",252,259,"252:259"]
["Art.74_II_G","Art 74.FII","Art. 74 - Fracción II - Inciso G. Organismos de Protección de los derechos humanos Nacional y de las Entidades federativas",74,"II","G",8,8,"Periodicidad de actualización: Trimestral ",279,286,"279:286",291,298,"291:298"]
["Art.74_II_H","Art 74.FII","Art. 74 - Fracción II - Inciso H. Organismos de Protección de los derechos humanos Nacional y de las Entidades federativas",74,"II","H",7,8,"Periodicidad de actualización: Trimestral ",318,324,"318:324",329,336,"329:336"]
["Art.74_II_I","Art 74.FII","Art. 74 - Fracción II - Inciso I. Organismos de Protección de los derechos humanos Nacional y de las Entidades federativas",74,"II","I",4,8,"Periodicidad de actualización: Trimestral ",356,359,"356:359",364,371,"364:371"]
["Art.74_II_J","Art 74.FII","Art. 74 - Fracción II - Inciso J. Organismos de Protección de los derechos humanos Nacional y de las Entidades federativas",74,"II","J",5,8,"Periodicidad de actualización: Trimestral ",391,395,"391:395",400,407,"400:407"]
["Art.74_II_K","Art 74.FII","Art. 74 - Fracción II - Inciso K. Organismos de Protección de los derechos humanos Nacional y de las Entidades federativas",74,"II","K",6,8,"Periodicidad de actualización: Trimestral ",427,432,"427:432",437,444,"437:444"]
["Art.74_II_L","Art 74.FII","Art. 74 - Fracción II - Inciso L. Organismos de Protección de los derechos humanos Nacional y de las Entidades federativas",74,"II","L",9,8,"Periodicidad de actualización: Trimestral ",464,472,"464:472",477,484,"477:484"]
["Art.74_II_M","Art 74.FII","Art. 74 - Fracción II - Inciso M. Lineamientos de la CNDH",74,"II","M",10,8,"Periodicidad de actualización: Trimestral ",504,513,"504:513",518,525,"518:525"]
["Art.74_III_A","Art 74.FIII","Art. 74 - Fracción III - Inciso A. Relación de las observaciones emitidas",74,"III","A",34,8,"Periodicidad de actualización: Trimestral ",28,61,"28:61",66,73,"66:73"]
["Art.74_III_B","Art 74.FIII","Art. 74 - Fracción III - Inciso B. Criterios orientadores derivados de las resoluciones emitidas",74,"III","B",18,8,"Periodicidad de actualización: Trimestral ",93,110,"93:110",115,122,"115:122"]
["Art.74_III_C","Art 74.FIII","Art. 74 - Fracción III - Inciso C. Sesiones celebradas por Pleno",74,"III","C",11,8,"Periodicidad de actualización: Trimestral ",142,152,"142:152",157,164,"157:164"]
["Art.74_III_D","Art 74.FIII","Art. 74 - Fracción III - Inciso D. Resultados de verificación al cumplimiento de la Ley",74,"III","D",12,8,"Periodicidad de actualización: Trimestral ",184,195,"184:195",200,207,"200:207"]
["Art.74_III_E","Art 74.FIII","Art. 74 - Fracción III - Inciso E. Estudios que apoyan la resolución del recurso de revisión",74,"III","E",16,8,"Periodicidad de actualización: Trimestral ",227,242,"227:242",247,254,"247:254"]
["Art.74_III_F","Art 74.FIII","Art. 74 - Fracción III - Inciso F. Listado de las sentencias, ejecutorias o suspensiones",74,"III","F",14,8,"Periodicidad de actualización: Trimestral ",274,287,"274:287",292,299,"292:299"]
["Art.74_III_G","Art 74.FIII","Art. 74 - Fracción III - Inciso G. Quejas presentadas",74,"III","G",32,8,"Periodicidad de actualización: Trimestral ",319,350,"319:350",355,362,"355:362"]
["Art.75_I","Art 75","Art. 75 - Fracción I. Oferta académica que ofrece",75,"I",null,8,8,"Periodicidad de actualización: Semestral  ",28,35,"28:35",40,47,"40:47"]
["Art.75_II","Art 75","Art. 75 - Fracción II. Procesos administrativos",75,"II",null,18,8,"Periodicidad de actualización: Semestral ",67,84,"67:84",89,96,"89:96"]
["Art.75_III","Art 75","Art. 75 - Fracción III. Remuneración de profesora/es",75,"III",null,9,8,"Periodicidad de actualización: Anual ",116,124,"116:124",129,136,"129:136"]
["Art.75_IV","Art 75","Art. 75 - Fracción IV. Personal académico con licencia",75,"IV",null,13,8,"Periodicidad de actualización: Trimestral ",156,168,"156:168",173,180,"173:180"]
["Art.75_V","Art 75","Art. 75 - Fracción V. Becas y apoyos",75,"V",null,12,8,"Periodicidad de actualización: Trimestral ",200,211,"200:211",216,223,"216:223"]
["Art.75_VI","Art 75","Art. 75 - Fracción VI. Convocatorias a consursos de oposición",75,"VI",null,14,8,"Periodicidad de actualización: Trimestral ",243,256,"243:256",261,268,"261:268"]
["Art.75_VII","Art 75","Art. 75 - Fracción VII. Proceso de selección de Consejos",75,"VII",null,15,8,"Periodicidad de actualización: Trimestral ",288,302,"288:302",307,314,"307:314"]
["Art.75_VIII","Art 75","Art. 75 - Fracción VIII. Evaluación del cuerpo docente",75,"VIII",null,18,8,"Periodicidad de actualización: Semestral ",334,351,"334:351",356,363,"356:363"]
["Art.75_IX","Art 75","Art. 75 - Fracción IX. Instituciones incorporadas",75,"IX",null,3,8,"Periodicidad de actualización: Semestral ",383,385,"383:385",390,397,"390:397"]
["Art.76_I","Art 76","Art. 76 - Fracción I. Padrón de afiliados o militantes",76,"I",null,7,8,"Periodicidad de actualización: Semestral y una vez que presenten su registro ante la autoridad electoral ",28,34,"28:34",39,46,"39:46"]
["Art.76_II","Art 76","Art. 76 - Fracción II. Acuerdos y resoluciones",76,"II",null,7,8,"Periodicidad de actualización: Trimestral ",66,72,"66:72",77,84,"77:84"]
["Art.76_III","Art 76","Art. 76 - Fracción III. Convenios de participación con sociedad civil",76,"III",null,9,8,"Periodicidad de actualización: Trimestral ",104,112,"104:112",117,124,"117:124"]
["Art.76_IV","Art 76","Art. 76 - Fracción IV. Contratación y convenios de bienes y servicios",76,"IV",null,12,8,"Periodicidad de actualización: Trimestral ",144,155,"144:155",160,167,"160:167"]
["Art.76_V","Art 76","Art. 76 - Fracción V. Minutas de sesiones del partido",76,"V",null,5,8,"Periodicidad de actualización: Trimestral ",187,191,"187:191",196,203,"196:203"]
["Art.76_VI","Art 76","Art. 76 - Fracción VI. Responsables de finanzas",76,"VI",null,7,8,"Periodicidad de actualización: Trimestral ",223,229,"223:229",234,241,"234:241"]
["Art.76_VII","Art 76","Art. 76 - Fracción VII. Organizaciones sociales",76,"VII",null,5,8,"Periodicidad de actualización: Trimestral ",261,265,"261:265",270,277,"270:277"]
["Art.76_VIII","Art 76","Art. 76 - Fracción VIII. Cuotas ordinarias y extraordinarias de militantes",76,"VIII",null,8,8,"Periodicidad de actualización: Trimestral ",297,304,"297:304",309,316,"309:316"]
["Art.76_IX","Art 76","Art. 76 - Fracción IX. Financiamiento privado",76,"IX",null,10,8,"Periodicidad de actualización: Trimestral ",336,345,"336:345",350,357,"350:357"]
["Art.76_X","Art 76","Art. 76 - Fracción X. Aportantes a campañas y precampañas",76,"X",null,10,8,"Periodicidad de actualización: Trimestral ",377,386,"377:386",391,398,"391:398"]
["Art.76_XI","Art 76","Art. 76 - Fracción XI. Acta de asamblea constitutiva",76,"XI",null,3,8,"Periodicidad de actualización: Anual ",418,420,"418:420",425,432,"425:432"]
["Art.76_XII","Art 76","Art. 76 - Fracción XII. Demarcaciones electorales",76,"XII",null,6,8,"Periodicidad de actualización: Semestral ",452,457,"452:457",462,469,"462:469"]
["Art.76_XIII","Art 76","Art. 76 - Fracción XIII. Tiempos en radio y tv",76,"XIII",null,7,8,"Periodicidad de actualización: Semestral ",489,495,"489:495",500,507,"500:507"]
["Art.76_XIV","Art 76","Art. 76 - Fracción XIV. Documentos básicos, plataformas, programas de gobierno y mecanismos de designación",76,"XIV",null,5,8,"Periodicidad de actualización: Semestral ",527,531,"527:531",536,543,"536:543"]
["Art.76_XV","Art 76","Art. 76 - Fracción XV. Directorios de órganos de dirección",76,"XV",null,8,8,"Periodicidad de actualización: Mensual ",563,570,"563:570",575,582,"575:582"]
["Art.76_XVI","Art 76","Art. 76 - Fracción XVI. Tabulador de remuneraciones",76,"XVI",null,10,8,"Periodicidad de actualización: Semestral ",602,611,"602:611",616,623,"616:623"]
["Art.76_XVII","Art 76","Art. 76 - Fracción XVII. Currículo de precandidatos y candidatos",76,"XVII",null,11,8,"Periodicidad de actualización: Trimestral ",643,653,"643:653",658,665,"658:665"]
["Art.76_XVIII","Art 76","Art. 76 - Fracción XVIII. Currículo de dirigentes",76,"XVIII",null,11,8,"Periodicidad de actualización: Trimestral ",685,695,"685:695",700,707,"700:707"]
["Art.76_XIX","Art 76","Art. 76 - Fracción XIX. Convenios de frente, coalición, fusión o de participación electoral con agrupaciones políticas nacio",76,"XIX",null,8,8,"Periodicidad de actualización: Semestral ",727,734,"727:734",739,746,"739:746"]
["Art.76_XX","Art 76","Art. 76 - Fracción XX. Convocatorias para elección de dirigentes y candidatos",76,"XX",null,10,8,"Periodicidad de actualización: Trimestral ",766,775,"766:775",780,787,"780:787"]
["Art.76_XXI","Art 76","Art. 76 - Fracción XXI. Responsables de procesos de evaluación y selección de candidatos",76,"XXI",null,11,8,"Periodicidad de actualización: Semestral ",807,817,"807:817",822,829,"822:829"]
["Art.76_XXII","Art 76","Art. 76 - Fracción XXII. Financiamiento público para liderazgo político de las mujeres",76,"XXII",null,10,8,"Periodicidad de actualización: Anual ",849,858,"849:858",863,870,"863:870"]
["Art.76_XXIII","Art 76","Art. 76 - Fracción XXIII. Resoluciones de órganos de control",76,"XXIII",null,11,8,"Periodicidad de actualización: Mensual ",890,900,"890:900",905,912,"905:912"]
["Art.76_XXIV","Art 76","Art. 76 - Fracción XXIV. Respecto de las Sanciones",76,"XXIV",null,16,8,"Periodicidad de actualización: Mensual ",932,947,"932:947",952,959,"952:959"]
["Art.76_XXV","Art 76","Art. 76 - Fracción XXV. Finanzas, patrimonio e inventario",76,"XXV",null,18,8,"Periodicidad de actualización: Semestral ",979,996,"1022:1039",1001,1008,"1044:1051"]
["Art.76_XXVI","Art 76","Art. 76 - Fracción XXVI. Resoluciones de órganos disciplinarios",76,"XXVI",null,9,8,"Periodicidad de actualización: Mensual ",1028,1036,"1071:1079",1041,1048,"1084:1091"]
["Art.76_XXVII","Art 76","Art. 76 - Fracción XXVII. Representantes electorales",76,"XXVII",null,9,8,"Periodicidad de actualización: Trimestral ",1068,1076,"1111:1119",1081,1088,"1124:1131"]
["Art.76_XXVIII","Art 76","Art. 76 - Fracción XXVIII. Control de procesos internos de selección de candidatos",76,"XXVIII",null,11,8,"Periodicidad de actualización: Trimestral ",1108,1118,"1151:1161",1123,1130,"1166:1173"]
["Art.76_XXIX","Art 76","Art. 76 - Fracción XXIX. Fundaciones, asociaciones, centros, institutos de investigación o capacitación",76,"XXIX",null,12,8,"Periodicidad de actualización: Mensual ",1150,1161,"1193:1204",1166,1173,"1209:1216"]
["Art.76_XXX","Art 76","Art. 76 - Fracción XXX. Resoluciones de autoridad electoral sobre ingresos y gastos",76,"XXX",null,5,8,"Periodicidad de actualización: Trimestral ",1193,1197,"1236:1240",1202,1209,"1245:1252"]
["Art.77_I","Art 77","Art. 77 - Fracción I. Nombre del servidor público y de persona física o moral",77,"I",null,16,8,"Periodicidad de actualización: Trimestral ",28,43,"28:43",48,55,"48:55"]
["Art.77_II","Art 77","Art. 77 - Fracción II. Unidad administrativa responsable del fideicomiso",77,"II",null,9,8,"Periodicidad de actualización: Trimestral  ",75,83,"75:83",88,95,"88:95"]
["Art.77_III","Art 77","Art. 77 - Fracción III. Origen (público o privado) y monto total del patrimonio fideicomitido <<sujeto obligado>>",77,"III",null,22,8,"Periodicidad de actualización: Trimestral ",115,136,"115:136",141,148,"141:148"]
["Art.77_IV","Art 77","Art. 77 - Fracción IV. Saldo total al cierre del ejercicio fiscal",77,"IV",null,6,8,"Periodicidad de actualización: Trimestral ",168,173,"168:173",178,185,"178:185"]
["Art.77_V","Art 77","Art. 77 - Fracción V. Modificaciones de los contratos o decretos de constitución",77,"V",null,10,8,"Periodicidad de actualización: Trimestral ",205,214,"205:214",219,226,"219:226"]
["Art.77_VI","Art 77","Art. 77 - Fracción VI. Padrón de beneficiarios",77,"VI",null,16,8,"Periodicidad de actualización: Trimestral ",246,261,"246:261",266,273,"266:273"]
["Art.77_VII","Art 77","Art. 77 - Fracción VII. Proceso de creación",77,"VII",null,29,8,"Periodicidad de actualización: Trimestral ",293,321,"293:321",326,333,"326:333"]
["Art.77_VIII","Art 77","Art. 77 - Fracción VIII. Los contratos de obras, adquisiciones y servicios de <<sujeto obligado>>",77,"VIII",null,19,8,"Periodicidad de actualización: Trimestral ",353,371,"353:371",376,383,"376:383"]
["Art.78_I","Art 78","Art. 78 - Fracción I. Registro de sindicatos, federaciones y confederaciones",78,"I",null,23,8,"Periodicidad de actualización: Trimestral  ",28,50,"28:50",55,62,"55:62"]
["Art.78_II","Art 78","Art. 78 - Fracción II. Las Tomas de nota",78,"II",null,13,8,"Periodicidad de actualización: Trimestral ",82,94,"82:94",99,106,"99:106"]
["Art.78_III","Art 78","Art. 78 - Fracción III. El estatuto",78,"III",null,12,8,"Periodicidad de actualización: Trimestral y cuando se decrete, reforme, adicione, derogue o abrogue cualquier documento aplicable, la información deberá publicarse y/o actualizarse en un plazo no mayor a 10 días hábiles a partir de la toma de nota. l",126,137,"126:137",142,149,"142:149"]
["Art.78_IV","Art 78","Art. 78 - Fracción IV. El Padrón de socios",78,"IV",null,10,8,"Periodicidad de actualización: Anual ",169,178,"169:178",183,190,"183:190"]
["Art.78_V","Art 78","Art. 78 - Fracción V. Las Actas de Asamblea",78,"V",null,9,8,"Periodicidad de actualización: Trimestral y cuando se expida el correspondiente oficio de toma de nota deberá publicarse y/o actualizarse en un plazo no mayor a 3 días hábiles.",210,218,"210:218",223,230,"223:230"]
["Art.78_VI","Art 78","Art. 78 - Fracción VI. Los Reglamentos interiores de trabajo",78,"VI",null,16,8,"Periodicidad de actualización: Trimestral ",250,265,"250:265",270,277,"270:277"]
["Art.78_VII","Art 78","Art. 78 - Fracción VII. Registro de sindicatos, federaciones y confederaciones",78,"VII",null,37,8,"Periodicidad de actualización: Trimestral y cuando se expida la resolución que tenga por depositado o modificado el instrumento que corresponda deberá publicarse y/o actualizarse en un plazo no mayor a 3 días hábiles.",297,333,"297:333",338,345,"338:345"]
["Art.78_VIII","Art 78","Art. 78 - Fracción VIII. Todos los documentos del expediente de registro sindical y de contratos colectivos de trabajo",78,"VIII",null,10,8,"Periodicidad de actualización: Trimestral ",365,374,"365:374",379,386,"379:386"]
["Art.79_I","Art 79","Art. 79 - Fracción I. Contratos y convenios entre sindicatos y autoridades, firmados",79,"I",null,18,8,"Periodicidad de actualización: Trimestral ",28,45,"28:45",50,57,"50:57"]
["Art.79_II","Art 79","Art. 79 - Fracción II. Directorio del Comité ejecutivo",79,"II",null,8,8,"Periodicidad de actualización: Anual y cuando se actualice la información de los integrantes del Comité Ejecutivo o los órganos que desempeñen las funciones propias de las directivas sindicales deberá publicarse y/o actualizarse en un plazo no mayor a tres días hábiles",77,84,"77:84",89,96,"89:96"]
["Art.79_III","Art 79","Art. 79 - Fracción III. Padrón de socios",79,"III",null,7,8,"Periodicidad de actualización: Trimestral y cuando se expida el oficio en el que la autoridad tome nota del padrón de socios actualizado deberá publicarse y/o actualizarse en un plazo no mayor a tres días hábiles",116,122,"116:122",127,134,"127:134"]
["Art.79_IV","Art 79","Art. 79 - Fracción IV. Relación de recursos públicos económicos, en especie, bienes o donativos",79,"IV",null,37,8,"Periodicidad de actualización: Trimestral ",154,190,"154:190",195,202,"195:202"]
["Art.80.1","Art 80","Art. 80. Listados con información de interés público",80,null,null,14,8,"Periodicidad de actualización: Semestral ",28,41,"28:41",46,53,"46:53"]
["Art.80.2","Art 80","Art. 80. Catálogos de información por sujeto obligado",80,null,null,5,8,"Periodicidad de actualización: Semestral ",73,77,"73:77",82,89,"82:89"]
["Art.81","Art 81","Art. 81. Personas físicas o morales a las que se permitió el uso de recursos públicos",81,null,null,21,8,"Periodicidad de actualización: Anual ",28,48,"28:48",53,60,"53:60"]
["Art.82","Art 82","Art. 82. Listados recibidos por parte de las personas físicas y morales",82,null,null,16,8,"Periodicidad de actualización: Anual ",28,43,"28:43",48,55,"48:55"]
["Art.55_FI","Art 55","Art. 55 - Fracción I. Marco Normativo",55,"I",null,5,8,"Periodo de actualización: Trimestral",28,32,"28:32",37,44,"37:44"]
["Art.55_FII","Art 55","Art. 55 - Fracción II. Estructura orgánica ",55,"II",null,13,8,"Periodo de actualización: Trimestral",63,75,"63:75",80,87,"80:87"]
["Art.55_FIII","Art 55","Art. 55 - Fracción III. Facultades de cada Área",55,"III",null,4,8,"Periodo de actualización: Trimestral",106,109,"106:109",114,121,"114:121"]
["Art.55_FIV","Art 55","Art. 55 - Fracción IV. Metas y objetivos ",55,"IV",null,7,8,"Periodo de actualización: Anual",140,146,"140:146",151,158,"151:158"]
["Art.55_FV","Art 55","Art. 55 - Fracción V. Indicadores interés público",55,"V",null,15,8,"Periodo de actualización: Anual",177,191,"177:191",196,203,"196:203"]
["Art.55_FVI","Art 55","Art. 55 - Fracción VI. Indicadores de resultados",55,"VI",null,16,8,"Periodo de actualización: Anual",222,237,"222:237",242,249,"242:249"]
["Art.55_FVII","Art 55","Art. 55 - Fracción VII. Directorio",55,"VII",null,9,8,"Periodo de actualización: Trimestral",268,276,"268:276",281,288,"281:288"]
["Art.55_FVIII","Art 55","Art. 55 - Fracción VIII. Remuneración servidores públicos",55,"VIII",null,20,8,"Periodo de actualización: Trimestral",307,326,"307:326",331,338,"331:338"]
["Art.55_FIX","Art 55","Art. 55 - Fracción IX. Gastos de representación y viáticos",55,"IX",null,52,8,"Periodo de actualización: Trimestral",357,408,"357:408",413,420,"413:420"]
["Art.55_FX","Art 55","Art. 55 - Fracción X. Total de plazas (base y confianza)",55,"X",null,14,8,"Periodo de actualización: Trimestral",439,452,"439:452",457,464,"457:464"]
["Art.55_FXI","Art 55","Art. 55 - Fracción XI. Contrataciones honorarios",55,"XI",null,14,8,"Periodo de actualización: Trimestral",483,496,"483:496",501,508,"501:508"]
["Art.55_FXII","Art 55","Art. 55 - Fracción XII. Declaraciones patrimoniales",55,"XII",null,9,8,"Periodo de actualización: Trimestral",527,543,"527:543",548,555,"548:555"]
["Art.55_FXIII","Art 55","Art. 55 - Fracción XIII. Datos de Unidad de Transparencia",55,"XIII",null,9,8,"Periodo de actualización: Trimestral",573,581,"573:581",586,593,"586:593"]
["Art.55_FXIV","Art 55","Art. 55 - Fracción XIV. Concursos para ocupar cargos ",55,"XIV",null,16,8,"Periodo de actualización: Trimestral",612,627,"612:627",632,639,"632:639"]
["Art.55_FXV","Art 55","Art. 55 - Fracción XV. Programas sociales",55,"XV",null,57,8,"Periodo de actualización: Trimestral",658,714,"658:714",719,726,"719:726"]
["Art.55_FXVI","Art 55","Art. 55 - Fracción XVI. Relaciones laborales y recursos públicos a  sindicatos",55,"XVI",null,24,8,"Periodo de actualización: Trimestral",745,768,"745:768",773,780,"773:780"]
["Art.55_FXVII","Art 55","Art. 55 - Fracción XVII. Datos curriculares",55,"XVII",null,13,8,"Periodo de actualización: Trimestral",799,811,"799:811",816,823,"816:823"]
["Art.55_FXVIII","Art 55","Art. 55 - Fracción XVIII. Funcionarios sancionados",55,"XVIII",null,14,8,"Periodo de actualización: Trimestral",842,855,"842:855",860,867,"860:855"]
["Art.55_FXIX","Art 55","Art. 55 - Fracción XIX. Servicios ",55,"XIX",null,22,8,"Periodo de actualización: Trimestral",886,907,"886:907",912,919,"912:919"]
["Art.55_FXX","Art 55","Art. 55 - Fracción XX. Trámites",55,"XX",null,22,8,"Periodo de actualización: Trimestral",938,959,"938:959",964,971,"964:971"]
["Art.55_FXXI","Art 55","Art. 55 - Fracción XXI. Presupuesto e informes trimestrales",55,"XXI",null,16,8,"Periodo de actualización: Trimestral",990,1005,"990:1005",1010,1017,"1010:1017"]
["Art.55_FXXII","Art 55","Art. 55 - Fracción XXII. Deuda pública",55,"XXII",null,26,8,"Periodo de actualización: Trimestral",1036,1061,"1036:1061",1066,1073,"1066:1073"]
["Art.55_FXXIII","Art 55","Art. 55 - Fracción XXIII. Comunicación social y publicidad ",55,"XXIII",null,83,8,"Periodo de actualización: Trimestral",1092,1174,"1092:1174",1179,1186,"1179:1186"]
["Art.55_FXXIV","Art 55","Art. 55 - Fracción XXIV. Resultados de auditorías",55,"XXIV",null,24,8,"Periodo de actualización: Trimestral",1205,1228,"1205:1228",1233,1240,"1233:1240"]
["Art.55_FXXV","Art 55","Art. 55 - Fracción XXV. Dictámenes estados financieros",55,"XXV",null,9,8,"Periodo de actualización: Anual",1259,1267,"1259:1267",1272,1279,"1272:1279"]
["Art.55_FXXVI","Art 55","Art. 55 - Fracción XXVI. Personas físicas o morales a quienes se asigne recursos públicos",55,"XXVI",null,17,8,"Periodo de actualización: Trimestral",1298,1314,"1298:1314",1319,1326,"1319:1326"]
["Art.55_FXXVII","Art 55","Art. 55 - Fracción XXVII. Concesiones, contratos, convenios, permisos, licencias o autorizaciones otorgados",55,"XXVII",null,17,8,"Periodo de actualización: Trimestral",1345,1361,"1345:1361",1366,1373,"1366:1373"]
["Art.55_FXXVIII","Art 55","Art. 55 - Fracción XXVIII. Procedimientos de adjudicación directa, invitación restringida y licitaciones",55,"XXVIII",null,93,8,"Periodo de actualización: Trimestral",1392,1489,"1392:1489",1494,1501,"1494:1501"]
["Art.55_FXXIX","Art 55","Art. 55 - Fracción XXIX. Informes",55,"XXIX",null,8,8,"Periodo de actualización: Trimestral",1520,1527,"1520:1527",1532,1539,"1532:1539"]
["Art.55_FXXX","Art 55","Art. 55 - Fracción XXX. Estadísticas generadas",55,"XXX",null,10,8,"Periodo de actualización: Trimestral",1558,1567,"1558:1567",1572,1579,"1572:1579"]
["Art.55_FXXXI","Art 55","Art. 55 - Fracción XXXI. Informes de avances y documentos financieros",55,"XXXI",null,11,8,"Periodo de actualización: Trimestral",1598,1608,"1598:1608",1613,1620,"1613:1620"]
["Art.55_FXXXII","Art 55","Art. 55 - Fracción XXXII. Padrón proveedores y contratistas",55,"XXXII",null,20,8,"Periodo de actualización: Trimestral",1639,1658,"1639:1658",1663,1670,"1663:1670"]
["Art.55_FXXXIII","Art 55","Art. 55 - Fracción XXXIII. Convenios con sectores social  y privado",55,"XXXIII",null,12,8,"Periodo de actualización: Trimestral",1689,1700,"1689:1700",1705,1712,"1705:1712"]
["Art.55_FXXXIV","Art 55","Art. 55 - Fracción XXXIV. Inventario de bienes",55,"XXXIV",null,36,8,"Periodo de actualización: Sexsenal",1731,1766,"1731:1766",1771,1778,"1771:1778"]
["Art.55_FXXXV","Art 55","Art. 55 - Fracción XXXV. Recomendaciones  y su atención en materia de derechos humanos",55,"XXXV",null,51,8,"Periodo de actualización: Trimestral",1797,1847,"1797:1847",1852,1859,"1852:1859"]
["Art.55_FXXXVI","Art 55","Art. 55 - Fracción XXXVI. Resoluciones y laudos de juicios",55,"XXXVI",null,10,8,"Periodo de actualización: Trimestral",1878,1887,"1878:1887",1892,1899,"1892:1899"]
["Art.55_FXXXVII","Art 55","Art. 55 - Fracción XXXVII. Mecanismos de participación ciudadana",55,"XXXVII",null,20,8,"Periodo de actualización: Trimestral",1918,1937,"1918:1937",1942,1949,"1942:1949"]
["Art.55_FXXXVIII","Art 55","Art. 55 - Fracción XXXVIII. Programas ofrecidos",55,"XXXVIII",null,43,8,"Periodo de actualización: Trimestral",1968,2010,"1968:2010",2015,2022,"2015:2022"]
["Art.55_FXXXIX","Art 55","Art. 55 - Fracción XXXIX. Actas y resoluciones del Comité de Transparencia",55,"XXXIX",null,24,8,"Periodo de actualización: Trimestral",2041,2064,"2041:2064",2069,2076,"2069:2076"]
["Art.55_FXL","Art 55","Art. 55 - Fracción XL. Evaluaciones y encuestas a programas financiados con recursos públicos",55,"XL",null,9,8,"Periodo de actualización: Anual",2095,2103,"2095:2103",2108,2115,"2108:2115"]
["Art.55_FXLI","Art 55","Art. 55 - Fracción XLI. Estudios pagados con recursos públicos",55,"XLI",null,43,8,"Periodo de actualización: Trimestral",2134,2176,"2134:2176",2181,2188,"2181:2188"]
["Art.55_FXLII","Art 55","Art. 55 - Fracción XLII. Pagos a jubilados y pensionados",55,"XLII",null,9,8,"Periodo de actualización: Trimestral",2207,2215,"2207:2215",2220,2227,"2220:2227"]
["Art.55_FXLIII","Art 55","Art. 55 - Fracción XLIII. Ingresos totales del sujeto obligado",55,"XLIII",null,14,8,"Periodo de actualización: Trimestral",2246,2259,"2246:2259",2264,2271,"2264:2271"]
["Art.55_FXLIV","Art 55","Art. 55 - Fracción XLIV. Donaciones en dinero o en especie",55,"XLIV",null,23,8,"Periodo de actualización: Trimestral",2290,2312,"2290:2312",2317,2324,"2317:2324"]
["Art.55_FXLV","Art 55","Art. 55 - Fracción XLV. Instrumentos de archivos",55,"XLV",null,8,8,"Periodo de actualización: Trimestral",2343,2350,"2343:2350",2355,2362,"2355:2362"]
["Art.55_FXLVI","Art 55","Art. 55 - Fracción XLVI. Actas de las sesiones, opiniones y recomendaciones de los consejos consultivos",55,"XLVI",null,14,8,"Periodo de actualización: Trimestral",2381,2394,"2381:2394",2399,2406,"2399:2406"]
["Art.55_FXLVII","Art 55","                            Art. 55 - Fracción XLVII. Enajenaciones de bienes que realicen por cualquier título o acto",55,"XLVII",null,15,8,"Periodo de actualización: Trimestral",2425,2440,"2425:2440",2445,2452,"2445:2452"]
["Art.55_FXLVIII","Art 55","                  Art. 55 - Fracción XLVIII. Servidores Públicos comisionados fuera de su Área de adscripción",55,"XLVIII",null,12,8,"Periodo de actualización: Trimestral",2468,2475,"2468:2475",2480,2487,"2480:2487"]
["Art.55_XLIX","Art 55","Art. 55 - Fracción XLIX. Otra información útil o relevante",55,"XLIX",null,12,8,"Periodo de actualización: Trimestral",2508,2519,"2508:2519",2524,2531,"2524:2531"]
["Art.55_UltPa","Art 55","Art. 55 - Último Párrafo. Aplicabilidad y conservación",55,"ltPa",null,3,8,"Periodo de actualización: Anual",2550,2552,"2550:2552",2557,2564,"2557:2564"]
[null,null,null,null,null,null,{"$f":"SUM(G2:H177)","v":4387}]

{"sheet":"Glosario","index":6,"n_rows":15,"n_cols":2,"rows_kept":15,"cut":false,"hidden":true,"merged":[]}
[]
[null,"Ninguna"]
[null,"NOTA MAL JUSTIFICADA.- La nota carece de motivación, toda vez que no justifica adecuadamente la inexistencia de la información, lo cual es contrario a lo dispuesto por el artículo 19 de la Ley General de Transparencia y Acceso a la Información Pública."]
[null,"ACTUALIZACIÓN Y VALIDACIÓN EXTEMPORANEA\nLa fecha de actualización de la información es extemporánea, toda vez que de conformidad con el artículo 49 de la Ley de Transparencia y Acceso a la Información Pública del Estado de Aguascalientes y sus Municipios, la información correspondiente a las obligaciones de transparencia debe efectuarse dentro de los veinte días naturales posteriores al cierre del periodo, según corresponda.\n"]
[null,"FECHA DE VALIDACIÓN ANTERIOR A LA ACTUALIZACIÓN.- La fecha de validación es anterior a la fecha de actualización, lo cual contraviene lo dispuesto en el capitulo de Disposiciones Generales de los Lineamientos Técnicos emitidos por el Sistema Nacional de Transparencia para el ejercicio 2018, en donde se establece que la fecha de validación es el día, mes y año en que se confirma que la información publicada es la más actualizada."]
[null,"FECHA DE ACTUALIZACIÓN Y/O VALIDACIÓN DENTRO DEL PERIODO REPORTADO.- La fecha de actualización y/o validación se encuentra dentro del periodo reportado, lo cual contraviene lo dispuesto en el artículo 49 de la Ley de Transparencia y Acceso a la Información Pública del Estado de Aguascalientes y sus Municipios, así como lo estipulado en las tablas de actualización y conservación publicadas en el Periódico Oficial del Estado en fecha 25 de marzo de 2019."]
[null,"FORMATO NO VIGENTE.- El formato publicado no corresponde al emitido por el Sistema Nacional de Transparencia para el ejercicio 2019, por cual no existe certeza de que la información publicada sea veraz, confiable, oportuna, congruente, integral, actualizada, accesible, comprensible y verificable, lo anterior conforme a lo dispuesto en el artículo 48 de la Ley de Transparencia y Acceso a la Información Pública del Estado de Aguascalientes y sus Municipios."]
[null,"EL FORMATO NO SE ENCUENTRA PUBLICADO.- El formato no se encuentra actualizado y publicado al periodo que se evalúa, lo cual contraviene lo dispuesto en el artículo 47 de la Ley de Transparencia y Acceso a la Información Pública del Estado de Aguascalientes y sus Municipios, por lo anterior se califican con valor “0” todos y cada uno de los criterios respectivos."]
[null,"HIPERVÍNCULOS.- Los hipervínculos no remiten al documento solicitado.\nLos hipervínculos no se encuentran habilitados.\n"]
[null,"CELDAS VACIAS.- Se detectaron celdas sin información y no se justifica dicha omisión en la nota respectiva"]
[null,"ERROR EN FECHA DE INICIO Y TERMINO DEL PERIODO QUE INFORMA.- La fecha de inicio/término del periodo que se informa es incorrecta, toda vez que el presente formato tiene un periodo de actualización ___________, por lo que el periodo reportado comprende del ________________al _______________________. Lo anterior de conformidad con lo establecido en los Lineamientos Técnicos Generales para el ejercicio 2019 y en las respectivas tablas de actualización y conservación de la información publicadas en Periódico Oficial del Estado en fecha 25 de marzo de 2019"]
[null,"SE INCUMPLE CON LA CONSERVACIÓN.- El sujeto obligado no cumple con la conservación requerida para esta fracción, por lo que se califica con valor “0” el presente criterio, esto toda vez que de conformidad con los Lineamientos Técnicos Generales deben permanecer publicados los formatos correspondientes a los _______________ejercicios anteriores"]
[null,"NOTA INCONGRUENTE.- Lo manifestado en la nota es incongruente con la información plasmada en los criterios sustantivos, esto toda vez que, al no presentarse el supuesto, dichas celdas deberán hallarse sin información, esto a efecto de evitar confusión en las usuarias y usuarios de la plataforma revisada"]
[null,"PERIODO REPORTADO ERRONEAMENTE.- El presente formato tiene un periodo de actualización ___________________, siendo el caso que fue reportado como _______________, lo cual contraviene lo dispuesto en los Lineamientos Técnicos Generales para el ejercicio 2019, así como lo establecido en la tabla de actualización y conservación de la información publicada en el Periódico Oficial del Estado en fecha 25 de marzo de 2019"]
[null,"EL SUJETO OBLIGADO ADUCE NO APLICABILIDAD, SIENDO QUE DE CONFORMIDAD CON SU TABLA DE APLICABILIDAD SI TIENE LA OBLIGACIÓN DE REPORTAR DICHA FRACCIÓN.- De conformidad con las tablas de aplicabilidad aprobadas por el Pleno de este organismo garante y publicadas en Periódico Oficial del Estado en fecha 25 de marzo de 2019, la presente fracción si le es aplicable al sujeto obligado que nos ocupa, por lo anterior y siendo el caso que la nota carece de fundamentación y motivación se califican con valor “0” todos y cada uno de los criterios respectivos"]

{"sheet":"observaciones","index":7,"n_rows":4,"n_cols":2,"rows_kept":4,"cut":false,"hidden":true,"merged":[]}
[]
[null,"Observación"]
[null,"Recomendación"]
[null,"Requerimiento"]

{"sheet":"calificación","index":8,"n_rows":4,"n_cols":3,"rows_kept":4,"cut":false,"hidden":true,"merged":[]}
[]
[null,null,0]
[null,null,0.5]
[null,null,1]